Workbook

Sheet notes (hidden)
H2: =SUM(H3:H8) -> 0
C3: 600 | D3: 24 | E3: 600 | F3: 1000 | G3: =IF(Form!$D$4=D3,1,0) -> 0 | H3: =IF(G3=1,IF(OR(E3>Form!M$5,F3<Form!M$5),1,0),0) -> 0
C4: 800 | D4: 30 | E4: 800 | F4: 1200 | G4: =IF(Form!$D$4=D4,1,0) -> 0 | H4: =IF(G4=1,IF(OR(E4>Form!M$5,F4<Form!M$5),1,0),0) -> 0
C5: 1000 | D5: 36 | E5: 1000 | F5: 1400 | G5: =IF(Form!$D$4=D5,1,0) -> 0 | H5: =IF(G5=1,IF(OR(E5>Form!M$5,F5<Form!M$5),1,0),0) -> 0
C6: 1200 | D6: 42 | E6: 1200 | F6: 1600 | G6: =IF(Form!$D$4=D6,1,0) -> 0 | H6: =IF(G6=1,IF(OR(E6>Form!M$5,F6<Form!M$5),1,0),0) -> 0
C7: 1400 | D7: 48 | E7: 1400 | F7: 1800 | G7: =IF(Form!$D$4=D7,1,0) -> 0 | H7: =IF(G7=1,IF(OR(E7>Form!M$5,F7<Form!M$5),1,0),0) -> 0
C8: 1600 | D8: 60 | E8: 1600 | F8: 2000 | G8: =IF(Form!$D$4=D8,1,0) -> 0 | H8: =IF(G8=1,IF(OR(E8>Form!M$5,F8<Form!M$5),1,0),0) -> 0
C9: 1800
C10: 2000
D13: Total
B14: =Form!M5+Form!M6 -> 0 | E14: =E31 -> 0 | F14: =F31 -> 0 | G14: 0 | H14: 0 | I14: 0 | J14: 0 | K14: 0 | L14: =SUM(E14:K14) -> 0 | P14: 58
E15: =Form!C27 -> 85 | F15: =Form!E27 -> 95 | G15: =Form!G27 -> 100 | H15: =Form!I27 -> 105 | I15: =Form!K27 -> 110 | J15: =Form!M27 -> 115 | K15: =Form!O27 -> 125
A16: =C16+D16 -> 0 | B16: =P16 -> 0 | C16: =Form!A31 -> 0 | D16: =Form!B31 -> 0 | E16: =Form!C31 -> 0 | F16: =Form!E31 -> 0 | G16: =Form!G31 -> 0 | H16: =Form!I31 -> 0 | I16: =Form!K31 -> 0 | J16: =Form!M31 -> 0 | K16: =Form!O31 -> 0 | L16: =Form!$M$5+Form!M$6 -> 0 | M16: =IF(C16+D16=Form!M$5+Form!M$6,1,0) -> 1 | N16: =IF(A16<L16,1,0) -> 0 | O16: =IF(A16>L16,2,0) -> 0 | P16: =IF(AND(N16=1,N17=0),1,0)+IF(AND(O15=0,O16=2),2,0) -> 0
A17: =C17+D17 -> 0 | B17: =P17 -> 0 | C17: =C16 -> 0 | D17: =Form!B32 -> 0 | E17: =Form!C32 -> 0 | F17: =Form!E32 -> 0 | G17: =Form!G32 -> 0 | H17: =Form!I32 -> 0 | I17: =Form!K32 -> 0 | J17: =Form!M32 -> 0 | K17: =Form!O32 -> 0 | L17: =Form!$M$5+Form!M$6 -> 0 | M17: =IF(C17+D17=Form!M$5+Form!M$6,1,0) -> 1 | N17: =IF(A17<L17,1,0) -> 0 | O17: =IF(A17>L17,2,0) -> 0 | P17: =IF(AND(N17=1,N18=0),1,0)+IF(AND(O16=0,O17=2),2,0) -> 0
A18: 0 | B18: 0 | C18: =C17 -> 0 | D18: =Form!B33 -> 0 | E18: =Form!C33 -> 0 | F18: =Form!E33 -> 0 | G18: =Form!G33 -> 0 | H18: =Form!I33 -> 0 | I18: =Form!K33 -> 0 | J18: =Form!M33 -> 0 | K18: =Form!O33 -> 0 | L18: =Form!$M$5+Form!M$6 -> 0 | M18: =IF(C18+D18=Form!M$5+Form!M$6,1,0) -> 1 | N18: 0 | O18: =IF(A18>L18,2,0) -> 0 | P18: =IF(AND(N18=1,N19=0),1,0)+IF(AND(O17=0,O18=2),2,0) -> 0
A19: 0 | B19: 0 | C19: =C18 -> 0 | D19: =Form!B34 -> 0 | E19: =Form!C34 -> 0 | F19: =Form!E34 -> 0 | G19: =Form!G34 -> 0 | H19: =Form!I34 -> 0 | I19: =Form!K34 -> 0 | J19: =Form!M34 -> 0 | K19: =Form!O34 -> 0 | L19: =Form!$M$5+Form!M$6 -> 0 | M19: =IF(C19+D19=Form!M$5+Form!M$6,1,0) -> 1 | N19: 0 | O19: =IF(A19>L19,2,0) -> 0 | P19: =IF(AND(N19=1,N20=0),1,0)+IF(AND(O18=0,O19=2),2,0) -> 0
A20: 0 | B20: 0 | C20: =Form!A35 -> 0 | D20: =Form!B35 -> 0 | E20: =Form!C35 -> 0 | F20: =Form!E35 -> 0 | G20: =Form!G35 -> 0 | H20: =Form!I35 -> 0 | I20: =Form!K35 -> 0 | J20: =Form!M35 -> 0 | K20: =Form!O35 -> 0 | L20: =Form!$M$5+Form!M$6 -> 0 | M20: =IF(C20+D20=Form!M$5+Form!M$6,1,0) -> 1 | N20: 0 | O20: =IF(A20>L20,2,0) -> 0 | P20: =IF(AND(N20=1,N21=0),1,0)+IF(AND(O19=0,O20=2),2,0) -> 0
A21: 0 | B21: 0 | C21: =C20 -> 0 | D21: =Form!B36 -> 0 | E21: =Form!C36 -> 0 | F21: =Form!E36 -> 0 | G21: =Form!G36 -> 0 | H21: =Form!I36 -> 0 | I21: =Form!K36 -> 0 | J21: =Form!M36 -> 0 | K21: =Form!O36 -> 0 | L21: =Form!$M$5+Form!M$6 -> 0 | M21: =IF(C21+D21=Form!M$5+Form!M$6,1,0) -> 1 | N21: 0 | O21: =IF(A21>L21,2,0) -> 0 | P21: =IF(AND(N21=1,N22=0),1,0)+IF(AND(O20=0,O21=2),2,0) -> 0
A22: 0 | B22: 0 | C22: =C21 -> 0 | D22: =Form!B37 -> 0 | E22: =Form!C37 -> 0 | F22: =Form!E37 -> 0 | G22: =Form!G37 -> 0 | H22: =Form!I37 -> 0 | I22: =Form!K37 -> 0 | J22: =Form!M37 -> 0 | K22: =Form!O37 -> 0 | L22: =Form!$M$5+Form!M$6 -> 0 | M22: =IF(C22+D22=Form!M$5+Form!M$6,1,0) -> 1 | N22: 0 | O22: 0 | P22: 0
A23: 0 | B23: 0 | C23: =C22 -> 0 | D23: =Form!B38 -> 0 | E23: =Form!C38 -> 0 | F23: =Form!E38 -> 0 | G23: =Form!G38 -> 0 | H23: =Form!I38 -> 0 | I23: =Form!K38 -> 0 | J23: =Form!M38 -> 0 | K23: =Form!O38 -> 0 | L23: =Form!$M$5+Form!M$6 -> 0 | M23: =IF(C23+D23=Form!M$5+Form!M$6,1,0) -> 1 | N23: 0 | O23: 0 | P23: 0
A24: 0 | B24: 0 | C24: =Form!A39 -> 0 | D24: =Form!B39 -> 0 | E24: =Form!C39 -> 0 | F24: =Form!E39 -> 0 | G24: =Form!G39 -> 0 | H24: =Form!I39 -> 0 | I24: =Form!K39 -> 0 | J24: =Form!M39 -> 0 | K24: =Form!O39 -> 0 | L24: =Form!$M$5+Form!M$6 -> 0 | M24: =IF(C24+D24=Form!M$5+Form!M$6,1,0) -> 1 | N24: 0 | O24: 0 | P24: 0
A25: 0 | B25: 0 | C25: =C24 -> 0 | D25: =Form!B40 -> 0 | E25: =Form!C40 -> 0 | F25: =Form!E40 -> 0 | G25: =Form!G40 -> 0 | H25: =Form!I40 -> 0 | I25: =Form!K40 -> 0 | J25: =Form!M40 -> 0 | K25: =Form!O40 -> 0 | L25: =Form!$M$5+Form!M$6 -> 0 | M25: =IF(C25+D25=Form!M$5+Form!M$6,1,0) -> 1 | N25: 0 | O25: 0 | P25: 0
A26: 0 | B26: 0 | C26: =C25 -> 0 | D26: =Form!B41 -> 0 | E26: =Form!C41 -> 0 | F26: =Form!E41 -> 0 | G26: =Form!G41 -> 0 | H26: =Form!I41 -> 0 | I26: =Form!K41 -> 0 | J26: =Form!M41 -> 0 | K26: =Form!O41 -> 0 | L26: =Form!$M$5+Form!M$6 -> 0 | M26: =IF(C26+D26=Form!M$5+Form!M$6,1,0) -> 1 | N26: 0 | O26: 0 | P26: 0
A27: 0 | B27: 0 | C27: =C26 -> 0 | D27: =Form!B42 -> 0 | E27: =Form!C42 -> 0 | F27: =Form!E42 -> 0 | G27: =Form!G42 -> 0 | H27: =Form!I42 -> 0 | I27: =Form!K42 -> 0 | J27: =Form!M42 -> 0 | K27: =Form!O42 -> 0 | L27: =Form!$M$5+Form!M$6 -> 0 | M27: =IF(C27+D27=Form!M$5+Form!M$6,1,0) -> 1 | N27: 0 | O27: 0 | P27: 0
A28: 0 | B28: =SUM(B16:B27) -> 0
F29: =IF(AND(F15>Form!$M$4,E15<Form!$M$4),2,0) -> 0 | G29: =IF(AND(G15>Form!$M$4,F15<Form!$M$4),2,0) -> 0 | H29: =IF(AND(H15>Form!$M$4,G15<Form!$M$4),2,0) -> 0 | I29: =IF(AND(I15>Form!$M$4,H15<Form!$M$4),2,0) -> 0 | J29: =IF(AND(J15>Form!$M$4,I15<Form!$M$4),2,0) -> 0 | K29: =IF(AND(K15>Form!$M$4,J15<Form!$M$4),2,0) -> 0
C30: =HLOOKUP(1,E14:K15,2,FALSE) ->  | E30: =IF(F29=2,1,0) -> 0 | F30: =IF(G29=2,1,0) -> 0 | G30: 0 | H30: 0 | I30: 0 | J30: 0 | K30: 0
C31: =HLOOKUP(2,E14:K15,2,FALSE) ->  | E31: =SUM(E29:E30) -> 0 | F31: 0 | G31: 0 | H31: 0 | I31: 0 | J31: 0 | K31: 0
B32: =(VLOOKUP(1,B14:K27,3,FALSE)) ->  | C32: =IF(ISERROR(B32),0,B32) -> 0 | E32: =(C34-C35)/(C32-C33)*(Form!$M$6-C33)+C35 ->  | F32: =(C36-C37)/(C32-C33)*(Form!M6-C33)+C37 -> 
B33: =VLOOKUP(2,B14:K27,3,FALSE) ->  | C33: =IF(ISERROR(B33),0,B33) -> 0 | E33: =IF(AND(B28=0,L14=3),VLOOKUP(Form!$M$5+Form!$M$6,notes!A14:K27,MATCH(1,notes!A14:K14,FALSE),FALSE),0) -> 0 | F33: =IF(AND(B28=0,L14=3),VLOOKUP(Form!$M$5+Form!$M$6,notes!A14:K27,MATCH(2,notes!A14:K14,FALSE),FALSE),0) -> 0 | I33: exactly
B34: =VLOOKUP(1,B14:K27,MATCH(1,B14:K14,FALSE),FALSE) ->  | C34: =MIN(B34,B36) ->  | E34: =IF(ISERROR(E32),E33,E32) -> 0 | F34: =IF(ISERROR(F32),F33,F32) -> 0 | I34: x | J34: y | K34: err1 | L34: err2 | M34: err3 | N34: ans
B35: =VLOOKUP(2,B14:K27,MATCH(1,B14:K14,FALSE),FALSE) ->  | C35: =MAX(B35,B37) ->  | E35: =MIN(E34:F34) -> 0 | F35: =MAX(E34:F34) -> 0 | I35: y | J35: y | K35: =IF(ISERROR(VLOOKUP(Form!$M$5+Form!$M$6,notes!A15:K27,MATCH(Form!$M$4,notes!A15:K15,FALSE),FALSE)),0,VLOOKUP(Form!$M$5+Form!$M$6,notes!A15:K27,MATCH(Form!$M$4,notes!A15:K15,FALSE),FALSE)) -> 0 | N35: =SUM(K35:M35) -> 0
B36: =VLOOKUP(1,B14:K27,MATCH(2,B14:K14,FALSE),FALSE) ->  | C36: =MAX(B36,B34) ->  | E36: =(E35-F35)/(C31-C30)*(Form!$M$4-C30)+F35 ->  | I36: y | J36: n | N36: =SUM(K36:M36) -> 0
B37: =VLOOKUP(2,B14:K27,MATCH(2,B14:K14,FALSE),FALSE) ->  | C37: =MIN(B35,B37) ->  | I37: n | J37: n | K37: =IF(OR(E36>100000,E36<=0),0,E36) ->  | L37: =IF(K37<>0,0,MIN(E32:F32)) ->  | M37: =IF(AND(L37=0,K37=0),C34,0) ->  | N37: =SUM(K37:M37) -> 
N38: =IF(ISERROR(N37),N35,N37) -> 0
A41: sens | E41: =E58 -> 0 | F41: =F58 -> 0 | G41: 0 | H41: 0 | I41: 0 | J41: 0 | K41: 0 | L41: =SUM(E41:K41) -> 0
E42: =E15 -> 85 | F42: =F15 -> 95 | G42: 100 | H42: 105 | I42: 110 | J42: 115 | K42: 125
A43: =C43+D43 -> 0 | B43: =P43 -> 0 | C43: =C16 -> 0 | D43: =D16 -> 0 | E43: =Form!D31 -> 0 | F43: =Form!F31 -> 0 | G43: =Form!H31 -> 0 | H43: =Form!J31 -> 0 | I43: =Form!L31 -> 0 | J43: =Form!N31 -> 0 | K43: =Form!P31 -> 0 | L43: =Form!$M$5+Form!M$6 -> 0 | M43: =IF(C43+D43=Form!M$5+Form!M$6,1,0) -> 1 | N43: =IF(A43<L43,1,0) -> 0 | O43: =IF(A43>L43,2,0) -> 0 | P43: =IF(AND(N43=1,N44=0),1,0)+IF(AND(O42=0,O43=2),2,0) -> 0
A44: =C44+D44 -> 0 | B44: =P44 -> 0 | C44: =C17 -> 0 | D44: =D17 -> 0 | E44: =Form!D32 -> 0 | F44: =Form!F32 -> 0 | G44: =Form!H32 -> 0 | H44: =Form!J32 -> 0 | I44: =Form!L32 -> 0 | J44: =Form!N32 -> 0 | K44: =Form!P32 -> 0 | L44: =Form!$M$5+Form!M$6 -> 0 | M44: =IF(C44+D44=Form!M$5+Form!M$6,1,0) -> 1 | N44: =IF(A44<L44,1,0) -> 0 | O44: =IF(A44>L44,2,0) -> 0 | P44: =IF(AND(N44=1,N45=0),1,0)+IF(AND(O43=0,O44=2),2,0) -> 0
A45: =C45+D45 -> 0 | B45: 0 | C45: 0 | D45: 0 | E45: =Form!D33 -> 0 | F45: =Form!F33 -> 0 | G45: =Form!H33 -> 0 | H45: =Form!J33 -> 0 | I45: =Form!L33 -> 0 | J45: =Form!N33 -> 0 | K45: =Form!P33 -> 0 | L45: =Form!$M$5+Form!M$6 -> 0 | M45: =IF(C45+D45=Form!M$5+Form!M$6,1,0) -> 1 | N45: 0 | O45: =IF(A45>L45,2,0) -> 0 | P45: =IF(AND(N45=1,N46=0),1,0)+IF(AND(O44=0,O45=2),2,0) -> 0
A46: 0 | B46: 0 | C46: 0 | D46: 0 | E46: =Form!D34 -> 0 | F46: =Form!F34 -> 0 | G46: =Form!H34 -> 0 | H46: =Form!J34 -> 0 | I46: =Form!L34 -> 0 | J46: =Form!N34 -> 0 | K46: =Form!P34 -> 0 | L46: =Form!$M$5+Form!M$6 -> 0 | M46: =IF(C46+D46=Form!M$5+Form!M$6,1,0) -> 1 | N46: 0 | O46: =IF(A46>L46,2,0) -> 0 | P46: =IF(AND(N46=1,N47=0),1,0)+IF(AND(O45=0,O46=2),2,0) -> 0
A47: 0 | B47: 0 | C47: 0 | D47: 0 | E47: =Form!D35 -> 0 | F47: =Form!F35 -> 0 | G47: =Form!H35 -> 0 | H47: =Form!J35 -> 0 | I47: =Form!L35 -> 0 | J47: =Form!N35 -> 0 | K47: =Form!P35 -> 0 | L47: =Form!$M$5+Form!M$6 -> 0 | M47: =IF(C47+D47=Form!M$5+Form!M$6,1,0) -> 1 | N47: 0 | O47: =IF(A47>L47,2,0) -> 0 | P47: =IF(AND(N47=1,N48=0),1,0)+IF(AND(O46=0,O47=2),2,0) -> 0
A48: 0 | B48: 0 | C48: 0 | D48: 0 | E48: =Form!D36 -> 0 | F48: =Form!F36 -> 0 | G48: =Form!H36 -> 0 | H48: =Form!J36 -> 0 | I48: =Form!L36 -> 0 | J48: =Form!N36 -> 0 | K48: =Form!P36 -> 0 | L48: =Form!$M$5+Form!M$6 -> 0 | M48: =IF(C48+D48=Form!M$5+Form!M$6,1,0) -> 1 | N48: 0 | O48: =IF(A48>L48,2,0) -> 0 | P48: =IF(AND(N48=1,N49=0),1,0)+IF(AND(O47=0,O48=2),2,0) -> 0
A49: 0 | B49: 0 | C49: 0 | D49: 0 | E49: =Form!D37 -> 0 | F49: =Form!F37 -> 0 | G49: =Form!H37 -> 0 | H49: =Form!J37 -> 0 | I49: =Form!L37 -> 0 | J49: =Form!N37 -> 0 | K49: =Form!P37 -> 0 | L49: =Form!$M$5+Form!M$6 -> 0 | M49: =IF(C49+D49=Form!M$5+Form!M$6,1,0) -> 1 | N49: 0 | O49: 0 | P49: 0
A50: 0 | B50: 0 | C50: 0 | D50: 0 | E50: =Form!D38 -> 0 | F50: =Form!F38 -> 0 | G50: =Form!H38 -> 0 | H50: =Form!J38 -> 0 | I50: =Form!L38 -> 0 | J50: =Form!N38 -> 0 | K50: =Form!P38 -> 0 | L50: =Form!$M$5+Form!M$6 -> 0 | M50: =IF(C50+D50=Form!M$5+Form!M$6,1,0) -> 1 | N50: 0 | O50: 0 | P50: 0
A51: 0 | B51: 0 | C51: 0 | D51: 0 | E51: =Form!D39 -> 0 | F51: =Form!F39 -> 0 | G51: =Form!H39 -> 0 | H51: =Form!J39 -> 0 | I51: =Form!L39 -> 0 | J51: =Form!N39 -> 0 | K51: =Form!P39 -> 0 | L51: =Form!$M$5+Form!M$6 -> 0 | M51: =IF(C51+D51=Form!M$5+Form!M$6,1,0) -> 1 | N51: 0 | O51: 0 | P51: 0
A52: 0 | B52: 0 | C52: 0 | D52: 0 | E52: =Form!D40 -> 0 | F52: =Form!F40 -> 0 | G52: =Form!H40 -> 0 | H52: =Form!J40 -> 0 | I52: =Form!L40 -> 0 | J52: =Form!N40 -> 0 | K52: =Form!P40 -> 0 | L52: =Form!$M$5+Form!M$6 -> 0 | M52: =IF(C52+D52=Form!M$5+Form!M$6,1,0) -> 1 | N52: 0 | O52: 0 | P52: 0
A53: 0 | B53: 0 | C53: 0 | D53: 0 | E53: =Form!D41 -> 0 | F53: =Form!F41 -> 0 | G53: =Form!H41 -> 0 | H53: =Form!J41 -> 0 | I53: =Form!L41 -> 0 | J53: =Form!N41 -> 0 | K53: =Form!P41 -> 0 | L53: =Form!$M$5+Form!M$6 -> 0 | M53: =IF(C53+D53=Form!M$5+Form!M$6,1,0) -> 1 | N53: 0 | O53: 0 | P53: 0
A54: 0 | B54: 0 | C54: 0 | D54: 0 | E54: =Form!D42 -> 0 | F54: =Form!F42 -> 0 | G54: =Form!H42 -> 0 | H54: =Form!J42 -> 0 | I54: =Form!L42 -> 0 | J54: =Form!N42 -> 0 | K54: =Form!P42 -> 0 | L54: =Form!$M$5+Form!M$6 -> 0 | M54: =IF(C54+D54=Form!M$5+Form!M$6,1,0) -> 1 | N54: 0 | O54: 0 | P54: 0
A55: 0 | B55: =SUM(B43:B54) -> 0
F56: =IF(AND(F42>Form!$M$4,E42<Form!$M$4),2,0) -> 0 | G56: =IF(AND(G42>Form!$M$4,F42<Form!$M$4),2,0) -> 0 | H56: =IF(AND(H42>Form!$M$4,G42<Form!$M$4),2,0) -> 0 | I56: =IF(AND(I42>Form!$M$4,H42<Form!$M$4),2,0) -> 0 | J56: =IF(AND(J42>Form!$M$4,I42<Form!$M$4),2,0) -> 0 | K56: =IF(AND(K42>Form!$M$4,J42<Form!$M$4),2,0) -> 0
C57: =HLOOKUP(1,E41:K42,2,FALSE) ->  | E57: =IF(F56=2,1,0) -> 0 | F57: =IF(G56=2,1,0) -> 0 | G57: 0 | H57: 0 | I57: 0 | J57: 0 | K57: 0
C58: =HLOOKUP(2,E41:K42,2,FALSE) ->  | E58: =SUM(E56:E57) -> 0 | F58: 0 | G58: 0 | H58: 0 | I58: 0 | J58: 0 | K58: 0
B59: =(VLOOKUP(1,B41:K54,3,FALSE)) ->  | C59: =IF(ISERROR(B59),0,B59) -> 0 | E59: =(C61-C62)/(C59-C60)*(Form!$M$6-C60)+C62 ->  | F59: =(C63-C64)/(C59-C60)*(Form!M6-C60)+C64 -> 
B60: =VLOOKUP(2,B41:K54,3,FALSE) ->  | C60: =IF(ISERROR(B60),0,B60) -> 0 | E60: =IF(AND(B55=0,L41=3),VLOOKUP(Form!$M$5+Form!$M$6,notes!A41:K54,MATCH(1,notes!A41:K41,FALSE),FALSE),0) -> 0 | F60: =IF(AND(B55=0,L41=3),VLOOKUP(Form!$M$5+Form!$M$6,notes!A41:K54,MATCH(2,notes!A41:K41,FALSE),FALSE),0) -> 0 | I60: exactly
B61: =VLOOKUP(1,B41:K54,MATCH(1,B41:K41,FALSE),FALSE) ->  | C61: =MIN(B61,B63) ->  | E61: =IF(ISERROR(E59),E60,E59) -> 0 | F61: =IF(ISERROR(F59),F60,F59) -> 0 | I61: x | J61: y | K61: err1 | L61: err2 | M61: err3 | N61: ans
B62: =VLOOKUP(2,B41:K54,MATCH(1,B41:K41,FALSE),FALSE) ->  | C62: =MAX(B62,B64) ->  | E62: =MIN(E61:F61) -> 0 | F62: =MAX(E61:F61) -> 0 | I62: y | J62: y | K62: =IF(ISERROR(VLOOKUP(Form!$M$5+Form!$M$6,notes!A42:K54,MATCH(Form!$M$4,notes!A42:K42,FALSE),FALSE)),0,VLOOKUP(Form!$M$5+Form!$M$6,notes!A42:K54,MATCH(Form!$M$4,notes!A42:K42,FALSE),FALSE)) -> 0 | N62: =SUM(K62:M62) -> 0
B63: =VLOOKUP(1,B41:K54,MATCH(2,B41:K41,FALSE),FALSE) ->  | C63: =MAX(B63,B61) ->  | E63: =(E62-F62)/(C58-C57)*(Form!$M$4-C57)+F62 ->  | I63: y | J63: n | N63: =SUM(K63:M63) -> 0
B64: =VLOOKUP(2,B41:K54,MATCH(2,B41:K41,FALSE),FALSE) ->  | C64: =MIN(B62,B64) ->  | I64: n | J64: n | K64: =IF(OR(E63>100000,E63<=0),0,E63) ->  | L64: =IF(K64<>0,0,MIN(E59:F59)) ->  | M64: =IF(AND(L64=0,K64=0),C61,0) ->  | N64: =SUM(K64:M64) -> 
B65: =VLOOKUP(Form!M32+Form!M33,A41:K54,MATCH(2,A41:K41,FALSE),FALSE) ->  | N65: =IF(ISERROR(N64),N62,N64) -> 0

Sheet Options (hidden)
A1: 14ACXS
A2: SL18XC
A3: XC16S
A4: XC20

Sheet Calcs (hidden)
D1: Condenser :
D2: ADP Evaporator:
D3: Condenser Entering Air Temperature: | E3: 100 | F3: (°F) Dry Bulb, 85°F to 115°F
D4: Evaporator Air Flow: | E4: 1265 | F4: CFM
D5: Entering Evaporator Air (DB): | E5: 77.5 | F5: (°F) Dry Bulb
D6: Entering Evaporator Air (WB): | E6: 60.6 | F6: (°F) Wet Bulb, 63°F to 71°F
A9: Total
A10: 28.55 | B10: 1200 60.6
B12: Diff 200 | C12: =A10-A14 -> 0.308 | D12: Diff 1 cfm | E12: =C12/200 -> 0.00154 | F12: 1265 total | G12: =A10-(65*E12) -> 28.4499
A14: 28.242 | B14: 1400 60.6
A16: Sens
A17: 25.32 | B17: 1200 60.6
B19: Diff 200 | C19: =A17-A21 -> 0.5544 | D19: Diff 1 cfm | E19: =C19/200 -> 0.002772 | F19: 1265 Sens | G19: =A17-(65*E19) -> 25.13982
A21: 24.7656 | B21: 1400 60.6

Sheet 14ACXS_18 (hidden)
A2: 14ACXS_18
A3: Evaporator Air | C3: Condenser Entering Air Temperature ˚F
A4: 80 | B4: °F DB | C4: 85 | E4: 95 | G4: 100 | I4: 105 | K4: 110 | M4: 115 | O4: 125
A5: CFM | B5: EWB† ˚F | C5: Capacity Mbtuh | E5: Capacity Mbtuh | G5: Capacity Mbtuh | I5: Capacity Mbtuh | K5: Capacity Mbtuh | M5: Capacity Mbtuh | O5: Capacity Mbtuh
C6: Total | D6: Sens. | E6: Total | F6: Sens. | G6: Total | H6: Sens. | I6: Total | J6: Sens. | K6: Total | L6: Sens. | M6: Total | N6: Sens. | O6: Total | P6: Sens.
R7: Total Factors | Y7: Sens. % | AF7: IDB Adj | AM7: Sens Calc
A8: 525 | B8: 71 | C8: =R8*$E$13 -> 19.35678392 | D8: =IF(AM8>C8,C8,AM8) -> 11.22693467 | E8: =S8*$E$13 -> 18.45226131 | F8: =IF(AN8>E8,E8,AN8) -> 11.07135678 | G8: =T8*$E$13 -> 18 | H8: =IF(AO8>G8,G8,AO8) -> 10.89 | I8: =U8*$E$13 -> 17.54773869 | J8: =IF(AP8>I8,I8,AP8) -> 10.7041206 | K8: =V8*$E$13 -> 17.05025126 | L8: =IF(AQ8>K8,K8,AQ8) -> 10.48590452 | M8: =W8*$E$13 -> 16.55276382 | N8: =IF(AR8>M8,M8,AR8) -> 10.26271357 | O8: =X8*$E$13 -> 15.46733668 | P8: =IF(AS8>O8,O8,AS8) -> 9.899095477 | R8: 1.075376884 | S8: 1.025125628 | T8: 1 | U8: 0.9748743719 | V8: 0.9472361809 | W8: 0.9195979899 | X8: 0.8592964824 | Y8: 0.58 | Z8: 0.6 | AA8: 0.605 | AB8: 0.61 | AC8: 0.615 | AD8: 0.62 | AE8: 0.64 | AF8: 0.9782857143 | AG8: 1.010285714 | AH8: 1.02247619 | AI8: 1.034666667 | AJ8: 1.005333333 | AK8: 0.976 | AL8: 0.9771428571 | AM8: =Y8*C8+($A$4-80)*AF8*$A$8/1000 -> 11.22693467 | AN8: =Z8*E8+($A$4-80)*AG8*$A$8/1000 -> 11.07135678 | AO8: =AA8*G8+($A$4-80)*AH8*$A$8/1000 -> 10.89 | AP8: =AB8*I8+($A$4-80)*AI8*$A$8/1000 -> 10.7041206 | AQ8: =AC8*K8+($A$4-80)*AJ8*$A$8/1000 -> 10.48590452 | AR8: =AD8*M8+($A$4-80)*AK8*$A$8/1000 -> 10.26271357 | AS8: =AE8*O8+($A$4-80)*AL8*$A$8/1000 -> 9.899095477
B9: 67 | C9: 18.27135678 | D9: 13.33809045 | E9: =S9*$E$13 -> 17.54773869 | F9: =IF(AN9>E9,E9,AN9) -> 13.16080402 | G9: 17.09547739 | H9: =IF(AO9>G9,G9,AO9) -> 12.90708543 | I9: 16.64321608 | J9: =IF(AP9>I9,I9,AP9) -> 12.64884422 | K9: 16.14572864 | L9: =IF(AQ9>K9,K9,AQ9) -> 12.43221106 | M9: 15.64824121 | N9: =IF(AR9>M9,M9,AR9) -> 12.20562814 | O9: 14.65326633 | P9: =IF(AS9>O9,O9,AS9) -> 11.86914573 | R9: 1.015075377 | S9: 0.9748743719 | T9: 0.9497487437 | U9: 0.9246231156 | V9: 0.8969849246 | W9: 0.8693467337 | X9: 0.8140703518 | Y9: 0.73 | Z9: 0.75 | AA9: 0.755 | AB9: 0.76 | AC9: 0.77 | AD9: 0.78 | AE9: 0.81 | AF9: 1.000380952 | AG9: 1.034666667 | AH9: 1.008 | AI9: 0.9813333333 | AJ9: 0.952 | AK9: 0.9226666667 | AL9: 0.9874285714 | AM9: =Y9*C9+($A$4-80)*AF9*$A$8/1000 -> 13.33809045 | AN9: =Z9*E9+($A$4-80)*AG9*$A$8/1000 -> 13.16080402 | AO9: =AA9*G9+($A$4-80)*AH9*$A$8/1000 -> 12.90708543 | AP9: =AB9*I9+($A$4-80)*AI9*$A$8/1000 -> 12.64884422 | AQ9: =AC9*K9+($A$4-80)*AJ9*$A$8/1000 -> 12.43221106 | AR9: =AD9*M9+($A$4-80)*AK9*$A$8/1000 -> 12.20562814 | AS9: =AE9*O9+($A$4-80)*AL9*$A$8/1000 -> 11.86914573
B10: 63 | C10: 17.36683417 | D10: 15.45648241 | E10: =S10*$E$13 -> 16.55276382 | F10: 15.06301508 | G10: 16.14572864 | H10: 14.85407035 | I10: 15.73869347 | J10: 14.63698492 | K10: 15.28643216 | L10: 14.44567839 | M10: 14.83417085 | N10: 14.24080402 | O10: 13.83919598 | P10: 13.70080402 | R10: 0.9648241206 | S10: 0.9195979899 | T10: 0.8969849246 | U10: 0.8743718593 | V10: 0.8492462312 | W10: 0.824120603 | X10: 0.7688442211 | Y10: 0.89 | Z10: 0.91 | AA10: 0.92 | AB10: 0.93 | AC10: 0.945 | AD10: 0.96 | AE10: 0.99 | AF10: 0.9508571429 | AG10: 0.976 | AH10: 0.952 | AI10: 0.928 | AJ10: 0.9325714286 | AK10: 0.9371428571 | AL10: 0.9325714286 | AM10: 15.45648241 | AN10: =Z10*E10+($A$4-80)*AG10*$A$8/1000 -> 15.06301508 | AO10: =AA10*G10+($A$4-80)*AH10*$A$8/1000 -> 14.85407035 | AP10: 14.63698492 | AQ10: 14.44567839 | AR10: 14.24080402 | AS10: 13.70080402
B11: 59 | C11: 16.73366834 | D11: 16.73366834 | E11: =S11*$E$13 -> 16.10050251 | F11: 16.10050251 | G11: 15.73869347 | H11: 15.73869347 | I11: 15.37688442 | J11: 15.37688442 | K11: 15.01507538 | L11: 15.01507538 | M11: 14.65326633 | N11: 14.65326633 | O11: 13.83919598 | P11: 13.83919598 | R11: 0.9296482412 | S11: 0.8944723618 | T11: 0.8743718593 | U11: 0.8542713568 | V11: 0.8341708543 | W11: 0.8140703518 | X11: 0.7688442211 | Y11: 1 | Z11: 1 | AA11: 1 | AB11: 1 | AC11: 1 | AD11: 1 | AE11: 1 | AF11: 0.5638095238 | AG11: 0.4068571429 | AH11: 0.3005714286 | AI11: 0.1942857143 | AJ11: 0.128 | AK11: 0.06171428571 | AL11: 0 | AM11: 16.73366834 | AN11: =Z11*E11+($A$4-80)*AG11*$A$8/1000 -> 16.10050251 | AO11: =AA11*G11+($A$4-80)*AH11*$A$8/1000 -> 15.73869347 | AP11: =AB11*I11+($A$4-80)*AI11*$A$8/1000 -> 15.37688442 | AQ11: 15.01507538 | AR11: 14.65326633 | AS11: 13.83919598
A12: 600 | B12: 71 | C12: 19.89949749 | D12: 12.13869347 | E12: =S12*$E$13 -> 18.99497487 | F12: 11.77688442 | G12: 18.49748744 | H12: 11.56092965 | I12: 18 | J12: 11.34 | K12: 17.50251256 | L12: 11.11409548 | M12: 17.00502513 | N12: 10.88321608 | O12: 15.82914573 | P12: 10.44723618 | R12: 1.105527638 | S12: 1.055276382 | T12: 1.027638191 | U12: 1 | V12: 0.972361809 | W12: 0.9447236181 | X12: 0.8793969849 | Y12: 0.61 | Z12: 0.62 | AA12: 0.625 | AB12: 0.63 | AC12: 0.635 | AD12: 0.64 | AE12: 0.66 | AF12: 0.9533333333 | AG12: 0.98 | AH12: 0.9543333333 | AI12: 0.9286666667 | AJ12: 0.9343333333 | AK12: 0.94 | AL12: 0.9333333333 | AM12: =Y12*C12+($A$4-80)*AF12*$A$12/1000 -> 12.13869347 | AN12: =Z12*E12+($A$4-80)*AG12*$A$12/1000 -> 11.77688442 | AO12: =AA12*G12+($A$4-80)*AH12*$A$12/1000 -> 11.56092965 | AP12: =AB12*I12+($A$4-80)*AI12*$A$12/1000 -> 11.34 | AQ12: =AC12*K12+($A$4-80)*AJ12*$A$12/1000 -> 11.11409548 | AR12: =AD12*M12+($A$4-80)*AK12*$A$12/1000 -> 10.88321608 | AS12: =AE12*O12+($A$4-80)*AL12*$A$12/1000 -> 10.44723618
B13: 67 | C13: 18.81407035 | D13: 14.29869347 | E13: 18 | F13: 14.04 | G13: 17.54773869 | H13: 13.86271357 | I13: 17.09547739 | J13: 13.67638191 | K13: 16.59798995 | L13: 13.44437186 | M13: 16.10050251 | N13: 13.20241206 | O13: 15.01507538 | P13: 12.76281407 | R13: 1.045226131 | S13: 1 | T13: 0.9748743719 | U13: 0.9497487437 | V13: 0.9221105528 | W13: 0.8944723618 | X13: 0.8341708543 | Y13: 0.76 | Z13: 0.78 | AA13: 0.79 | AB13: 0.8 | AC13: 0.81 | AD13: 0.82 | AE13: 0.85 | AF13: 0.9706666667 | AG13: 0.995 | AH13: 0.97 | AI13: 0.945 | AJ13: 0.9471666667 | AK13: 0.9493333333 | AL13: 0.9406666667 | AM13: =Y13*C13+($A$4-80)*AF13*$A$12/1000 -> 14.29869347 | AN13: =Z13*E13+($A$4-80)*AG13*$A$12/1000 -> 14.04 | AO13: =AA13*G13+($A$4-80)*AH13*$A$12/1000 -> 13.86271357 | AP13: =AB13*I13+($A$4-80)*AI13*$A$12/1000 -> 13.67638191 | AQ13: =AC13*K13+($A$4-80)*AJ13*$A$12/1000 -> 13.44437186 | AR13: =AD13*M13+($A$4-80)*AK13*$A$12/1000 -> 13.20241206 | AS13: =AE13*O13+($A$4-80)*AL13*$A$12/1000 -> 12.76281407
B14: 63 | C14: 17.90954774 | D14: 16.6558794 | E14: =S14*$E$13 -> 17.09547739 | F14: 16.24070352 | G14: 16.64321608 | H14: 16.06070352 | I14: 16.19095477 | J14: 15.86713568 | K14: 15.73869347 | L14: 15.58130653 | M14: 15.28643216 | N14: 15.28643216 | O14: 14.38190955 | P14: 14.38190955 | R14: 0.9949748744 | S14: 0.9497487437 | T14: 0.9246231156 | U14: 0.8994974874 | V14: 0.8743718593 | W14: 0.8492462312 | X14: 0.7989949749 | Y14: 0.93 | Z14: 0.95 | AA14: 0.965 | AB14: 0.98 | AC14: 0.99 | AD14: 1 | AE14: 1 | AF14: 0.924 | AG14: 0.945 | AH14: 0.9498333333 | AI14: 0.9546666667 | AJ14: 0.928 | AK14: 0.9013333333 | AL14: 0.636 | AM14: 16.6558794 | AN14: =Z14*E14+($A$4-80)*AG14*$A$12/1000 -> 16.24070352 | AO14: =AA14*G14+($A$4-80)*AH14*$A$12/1000 -> 16.06070352 | AP14: 15.86713568 | AQ14: 15.58130653 | AR14: 15.28643216 | AS14: 14.38190955
B15: 59 | C15: 17.45728643 | D15: 17.45728643 | E15: 16.8241206 | F15: 16.8241206 | G15: 16.46231156 | H15: 16.46231156 | I15: 16.10050251 | J15: 16.10050251 | K15: 15.69346734 | L15: 15.69346734 | M15: 15.28643216 | N15: 15.28643216 | O15: 14.38190955 | P15: 14.38190955 | R15: 0.9698492462 | S15: 0.9346733668 | T15: 0.9145728643 | U15: 0.8944723618 | V15: 0.8718592965 | W15: 0.8492462312 | X15: 0.7989949749 | Y15: 1 | Z15: 1 | AA15: 1 | AB15: 1 | AC15: 1 | AD15: 1 | AE15: 1 | AF15: 0.2573333333 | AG15: 0.062 | AH15: 0.031 | AI15: 0 | AJ15: 0 | AK15: 0 | AL15: 0 | AM15: 17.45728643 | AN15: =Z15*E15+($A$4-80)*AG15*$A$12/1000 -> 16.8241206 | AO15: =AA15*G15+($A$4-80)*AH15*$A$12/1000 -> 16.46231156 | AP15: 16.10050251 | AQ15: 15.69346734 | AR15: 15.28643216 | AS15: 14.38190955
A16: 675 | B16: 71 | C16: 20.44221106 | D16: 12.87859296 | E16: 19.35678392 | F16: 12.38834171 | G16: 18.90452261 | H16: 12.19341709 | I16: 18.45226131 | J16: 11.99396985 | K16: 17.86432161 | L16: 11.70113065 | M16: 17.27638191 | N16: 11.40241206 | O16: 16.10050251 | P16: 11.27035176 | R16: 1.135678392 | S16: 1.075376884 | T16: 1.050251256 | U16: 1.025125628 | V16: 0.9924623116 | W16: 0.959798995 | X16: 0.8944723618 | Y16: 0.63 | Z16: 0.64 | AA16: 0.645 | AB16: 0.65 | AC16: 0.655 | AD16: 0.66 | AE16: 0.7 | AF16: 1.004444444 | AG16: 0.9511111111 | AH16: 0.9591111111 | AI16: 0.9671111111 | AJ16: 0.9362962963 | AK16: 0.9054814815 | AL16: 0.9493333333 | AM16: =Y16*C16+($A$4-80)*AF16*$A$16/1000 -> 12.87859296 | AN16: =Z16*E16+($A$4-80)*AG16*$A$16/1000 -> 12.38834171 | AO16: =AA16*G16+($A$4-80)*AH16*$A$16/1000 -> 12.19341709 | AP16: =AB16*I16+($A$4-80)*AI16*$A$16/1000 -> 11.99396985 | AQ16: =AC16*K16+($A$4-80)*AJ16*$A$16/1000 -> 11.70113065 | AR16: =AD16*M16+($A$4-80)*AK16*$A$16/1000 -> 11.40241206 | AS16: =AE16*O16+($A$4-80)*AL16*$A$16/1000 -> 11.27035176
B17: 67 | C17: 19.35678392 | D17: 15.2918593 | E17: 18.45226131 | F17: 14.94633166 | G17: 17.95477387 | H17: 14.72291457 | I17: 17.45728643 | J17: 14.48954774 | K17: 16.95979899 | L17: 14.33103015 | M17: 16.46231156 | N17: 14.15758794 | O17: 15.28643216 | P17: 13.60492462 | R17: 1.075376884 | S17: 1.025125628 | T17: 0.9974874372 | U17: 0.9698492462 | V17: 0.9422110553 | W17: 0.9145728643 | X17: 0.8492462312 | Y17: 0.79 | Z17: 0.81 | AA17: 0.82 | AB17: 0.83 | AC17: 0.845 | AD17: 0.86 | AE17: 0.89 | AF17: 0.9511111111 | AG17: 0.9671111111 | AH17: 0.9696296296 | AI17: 0.9721481481 | AJ17: 0.9714074074 | AK17: 0.9706666667 | AL17: 0.9514074074 | AM17: =Y17*C17+($A$4-80)*AF17*$A$16/1000 -> 15.2918593 | AN17: =Z17*E17+($A$4-80)*AG17*$A$16/1000 -> 14.94633166 | AO17: =AA17*G17+($A$4-80)*AH17*$A$16/1000 -> 14.72291457 | AP17: =AB17*I17+($A$4-80)*AI17*$A$16/1000 -> 14.48954774 | AQ17: =AC17*K17+($A$4-80)*AJ17*$A$16/1000 -> 14.33103015 | AR17: =AD17*M17+($A$4-80)*AK17*$A$16/1000 -> 14.15758794 | AS17: =AE17*O17+($A$4-80)*AL17*$A$16/1000 -> 13.60492462
B18: 63 | C18: 18.27135678 | D18: 17.72321608 | E18: 17.45728643 | F18: 17.28271357 | G18: 17.05025126 | H18: 16.965 | I18: 16.64321608 | J18: 16.64321608 | K18: 16.2361809 | L18: 16.2361809 | M18: 15.82914573 | N18: 15.82914573 | O18: 14.83417085 | P18: 14.83417085 | R18: 1.015075377 | S18: 0.9698492462 | T18: 0.9472361809 | U18: 0.9246231156 | V18: 0.9020100503 | W18: 0.8793969849 | X18: 0.824120603 | Y18: 0.97 | Z18: 0.99 | AA18: 0.995 | AB18: 1 | AC18: 1 | AD18: 1 | AE18: 1 | AF18: 0.8977777778 | AG18: 0.914962963 | AH18: 0.8663703704 | AI18: 0.8177777778 | AJ18: 0.72 | AK18: 0.6222222222 | AL18: 0.3887407407 | AM18: 17.72321608 | AN18: =Z18*E18+($A$4-80)*AG18*$A$16/1000 -> 17.28271357 | AO18: =AA18*G18+($A$4-80)*AH18*$A$16/1000 -> 16.965 | AP18: 16.64321608 | AQ18: 16.2361809 | AR18: 15.82914573 | AS18: 14.83417085
B19: 59 | C19: 18.09045226 | D19: 18.09045226 | E19: 17.36683417 | F19: 17.36683417 | G19: 17.00502513 | H19: 17.00502513 | I19: 16.64321608 | J19: 16.64321608 | K19: 16.19095477 | L19: 16.19095477 | M19: 15.73869347 | N19: 15.73869347 | O19: 14.83417085 | P19: 14.83417085 | R19: 1.005025126 | S19: 0.9648241206 | T19: 0.9447236181 | U19: 0.9246231156 | V19: 0.8994974874 | W19: 0.8743718593 | X19: 0.824120603 | Y19: 1 | Z19: 1 | AA19: 1 | AB19: 1 | AC19: 1 | AD19: 1 | AE19: 1 | AF19: 0 | AG19: 0 | AH19: 0 | AI19: 0 | AJ19: 0 | AK19: 0 | AL19: 0 | AM19: 18.09045226 | AN19: =Z19*E19+($A$4-80)*AG19*$A$16/1000 -> 17.36683417 | AO19: =AA19*G19+($A$4-80)*AH19*$A$16/1000 -> 17.00502513 | AP19: 16.64321608 | AQ19: 16.19095477 | AR19: 15.73869347 | AS19: 14.83417085

Sheet 14ACXS_24 (hidden)
A2: 14ACXS_24
A3: Evaporator Air | C3: Condenser Entering Air Temperature ˚F
A4: 80 | B4: °F DB | C4: 85 | E4: 95 | G4: 100 | I4: 105 | K4: 110 | M4: 115 | O4: 125
A5: CFM | B5: EWB† ˚F | C5: Capacity Mbtuh | E5: Capacity Mbtuh | G5: Capacity Mbtuh | I5: Capacity Mbtuh | K5: Capacity Mbtuh | M5: Capacity Mbtuh | O5: Capacity Mbtuh
C6: Total | D6: Sens. | E6: Total | F6: Sens. | G6: Total | H6: Sens. | I6: Total | J6: Sens. | K6: Total | L6: Sens. | M6: Total | N6: Sens. | O6: Total | P6: Sens.
R7: Total Factors | Y7: Sens. % | AF7: IDB Adj | AM7: Sens Calc
A8: 700 | B8: 71 | C8: =R8*$E$13 -> 50.92 | D8: =IF(AM8>C8,C8,AM8) -> 30.0428 | E8: =S8*$E$13 -> 48.64 | F8: =IF(AN8>E8,E8,AN8) -> 29.184 | G8: =T8*$E$13 -> 47.5 | H8: =IF(AO8>G8,G8,AO8) -> 28.975 | I8: =U8*$E$13 -> 46.36 | J8: =IF(AP8>I8,I8,AP8) -> 28.7432 | K8: =V8*$E$13 -> 44.84 | L8: =IF(AQ8>K8,K8,AQ8) -> 28.025 | M8: =W8*$E$13 -> 43.32 | N8: =IF(AR8>M8,M8,AR8) -> 27.2916 | O8: =X8*$E$13 -> 40.28 | P8: =IF(AS8>O8,O8,AS8) -> 26.182 | R8: 1.072 | S8: 1.024 | T8: 1 | U8: 0.976 | V8: 0.944 | W8: 0.912 | X8: 0.848 | Y8: 0.59 | Z8: 0.6 | AA8: 0.61 | AB8: 0.62 | AC8: 0.625 | AD8: 0.63 | AE8: 0.65 | AF8: 0.9188571429 | AG8: 0.9508571429 | AH8: 0.9634285714 | AI8: 0.976 | AJ8: 0.944 | AK8: 0.912 | AL8: 0.9691428571 | AM8: =Y8*C8+($A$4-80)*AF8*$A$8/1000 -> 30.0428 | AN8: =Z8*E8+($A$4-80)*AG8*$A$8/1000 -> 29.184 | AO8: =AA8*G8+($A$4-80)*AH8*$A$8/1000 -> 28.975 | AP8: =AB8*I8+($A$4-80)*AI8*$A$8/1000 -> 28.7432 | AQ8: =AC8*K8+($A$4-80)*AJ8*$A$8/1000 -> 28.025 | AR8: =AD8*M8+($A$4-80)*AK8*$A$8/1000 -> 27.2916 | AS8: =AE8*O8+($A$4-80)*AL8*$A$8/1000 -> 26.182
B9: 67 | C9: 48.26 | D9: 35.2298 | E9: =S9*$E$13 -> 46.36 | F9: =IF(AN9>E9,E9,AN9) -> 34.77 | G9: 45.03 | H9: =IF(AO9>G9,G9,AO9) -> 34.2228 | I9: 43.7 | J9: =IF(AP9>I9,I9,AP9) -> 33.649 | K9: 42.37 | L9: =IF(AQ9>K9,K9,AQ9) -> 33.26045 | M9: 41.04 | N9: =IF(AR9>M9,M9,AR9) -> 32.832 | O9: 37.81 | P9: =IF(AS9>O9,O9,AS9) -> 31.3823 | R9: 1.016 | S9: 0.976 | T9: 0.948 | U9: 0.92 | V9: 0.892 | W9: 0.864 | X9: 0.796 | Y9: 0.73 | Z9: 0.75 | AA9: 0.76 | AB9: 0.77 | AC9: 0.785 | AD9: 0.8 | AE9: 0.83 | AF9: 0.8708571429 | AG9: 0.9062857143 | AH9: 0.9131428571 | AI9: 0.92 | AJ9: 0.9228571429 | AK9: 0.9257142857 | AL9: 0.9665714286 | AM9: =Y9*C9+($A$4-80)*AF9*$A$8/1000 -> 35.2298 | AN9: =Z9*E9+($A$4-80)*AG9*$A$8/1000 -> 34.77 | AO9: =AA9*G9+($A$4-80)*AH9*$A$8/1000 -> 34.2228 | AP9: =AB9*I9+($A$4-80)*AI9*$A$8/1000 -> 33.649 | AQ9: =AC9*K9+($A$4-80)*AJ9*$A$8/1000 -> 33.26045 | AR9: =AD9*M9+($A$4-80)*AK9*$A$8/1000 -> 32.832 | AS9: =AE9*O9+($A$4-80)*AL9*$A$8/1000 -> 31.3823
B10: 63 | C10: 45.98 | D10: 41.382 | E10: =S10*$E$13 -> 43.7 | F10: 40.204 | G10: 42.56 | H10: 39.7936 | I10: 41.42 | J10: 39.349 | K10: 40.09 | L10: 38.68685 | M10: 38.76 | N10: 37.9848 | O10: 35.91 | P10: 35.91 | R10: 0.968 | S10: 0.92 | T10: 0.896 | U10: 0.872 | V10: 0.844 | W10: 0.816 | X10: 0.756 | Y10: 0.9 | Z10: 0.92 | AA10: 0.935 | AB10: 0.95 | AC10: 0.965 | AD10: 0.98 | AE10: 1 | AF10: 0.968 | AG10: 0.92 | AH10: 0.9271428571 | AI10: 0.9342857143 | AJ10: 0.9334285714 | AK10: 0.9325714286 | AL10: 0.81 | AM10: 41.382 | AN10: =Z10*E10+($A$4-80)*AG10*$A$8/1000 -> 40.204 | AO10: =AA10*G10+($A$4-80)*AH10*$A$8/1000 -> 39.7936 | AP10: 39.349 | AQ10: 38.68685 | AR10: 37.9848 | AS10: 35.91
B11: 59 | C11: 44.08 | D11: 44.08 | E11: =S11*$E$13 -> 42.56 | F11: 42.56 | G11: 41.61 | H11: 41.61 | I11: 40.66 | J11: 40.66 | K11: 39.52 | L11: 39.52 | M11: 38.38 | N11: 38.38 | O11: 35.91 | P11: 35.91 | R11: 0.928 | S11: 0.896 | T11: 0.876 | U11: 0.856 | V11: 0.832 | W11: 0.808 | X11: 0.756 | Y11: 1 | Z11: 1 | AA11: 1 | AB11: 1 | AC11: 1 | AD11: 1 | AE11: 1 | AF11: 0.464 | AG11: 0.256 | AH11: 0.1891428571 | AI11: 0.1222857143 | AJ11: 0.06114285714 | AK11: 0 | AL11: 0 | AM11: 44.08 | AN11: =Z11*E11+($A$4-80)*AG11*$A$8/1000 -> 42.56 | AO11: =AA11*G11+($A$4-80)*AH11*$A$8/1000 -> 41.61 | AP11: =AB11*I11+($A$4-80)*AI11*$A$8/1000 -> 40.66 | AQ11: 39.52 | AR11: 38.38 | AS11: 35.91
A12: 800 | B12: 71 | C12: 52.44 | D12: 31.9884 | E12: =S12*$E$13 -> 50.16 | F12: 31.0992 | G12: 48.83 | H12: 30.7629 | I12: 47.5 | J12: 30.4 | K12: 45.98 | L12: 29.887 | M12: 44.46 | N12: 29.3436 | O12: 41.04 | P12: 27.9072 | R12: 1.104 | S12: 1.056 | T12: 1.028 | U12: 1 | V12: 0.968 | W12: 0.936 | X12: 0.864 | Y12: 0.61 | Z12: 0.62 | AA12: 0.63 | AB12: 0.64 | AC12: 0.65 | AD12: 0.66 | AE12: 0.68 | AF12: 0.966 | AG12: 0.924 | AH12: 0.93075 | AI12: 0.9375 | AJ12: 0.93675 | AK12: 0.936 | AL12: 0.918 | AM12: =Y12*C12+($A$4-80)*AF12*$A$12/1000 -> 31.9884 | AN12: =Z12*E12+($A$4-80)*AG12*$A$12/1000 -> 31.0992 | AO12: =AA12*G12+($A$4-80)*AH12*$A$12/1000 -> 30.7629 | AP12: =AB12*I12+($A$4-80)*AI12*$A$12/1000 -> 30.4 | AQ12: =AC12*K12+($A$4-80)*AJ12*$A$12/1000 -> 29.887 | AR12: =AD12*M12+($A$4-80)*AK12*$A$12/1000 -> 29.3436 | AS12: =AE12*O12+($A$4-80)*AL12*$A$12/1000 -> 27.9072
B13: 67 | C13: 49.78 | D13: 38.3306 | E13: 47.5 | F13: 37.525 | G13: 46.17 | H13: 36.936 | I13: 44.84 | J13: 36.3204 | K13: 43.32 | L13: 35.739 | M13: 41.8 | N13: 35.112 | O13: 38.76 | P13: 33.7212 | R13: 1.048 | S13: 1 | T13: 0.972 | U13: 0.944 | V13: 0.912 | W13: 0.88 | X13: 0.816 | Y13: 0.77 | Z13: 0.79 | AA13: 0.8 | AB13: 0.81 | AC13: 0.825 | AD13: 0.84 | AE13: 0.87 | AF13: 0.917 | AG13: 0.9375 | AH13: 0.94075 | AI13: 0.944 | AJ13: 0.967 | AK13: 0.99 | AL13: 0.918 | AM13: =Y13*C13+($A$4-80)*AF13*$A$12/1000 -> 38.3306 | AN13: =Z13*E13+($A$4-80)*AG13*$A$12/1000 -> 37.525 | AO13: =AA13*G13+($A$4-80)*AH13*$A$12/1000 -> 36.936 | AP13: =AB13*I13+($A$4-80)*AI13*$A$12/1000 -> 36.3204 | AQ13: =AC13*K13+($A$4-80)*AJ13*$A$12/1000 -> 35.739 | AR13: =AD13*M13+($A$4-80)*AK13*$A$12/1000 -> 35.112 | AS13: =AE13*O13+($A$4-80)*AL13*$A$12/1000 -> 33.7212
B14: 63 | C14: 47.12 | D14: 44.2928 | E14: =S14*$E$13 -> 44.84 | F14: 43.0464 | G14: 43.7 | H14: 42.6075 | I14: 42.56 | J14: 42.1344 | K14: 41.23 | L14: 41.02385 | M14: 39.9 | N14: 39.9 | O14: 37.43 | P14: 37.43 | R14: 0.992 | S14: 0.944 | T14: 0.92 | U14: 0.896 | V14: 0.868 | W14: 0.84 | X14: 0.788 | Y14: 0.94 | Z14: 0.96 | AA14: 0.975 | AB14: 0.99 | AC14: 0.995 | AD14: 1 | AE14: 1 | AF14: 0.93 | AG14: 0.885 | AH14: 0.8905 | AI14: 0.896 | AJ14: 0.8155 | AK14: 0.735 | AL14: 0.4925 | AM14: 44.2928 | AN14: =Z14*E14+($A$4-80)*AG14*$A$12/1000 -> 43.0464 | AO14: =AA14*G14+($A$4-80)*AH14*$A$12/1000 -> 42.6075 | AP14: 42.1344 | AQ14: 41.02385 | AR14: 39.9 | AS14: 37.43
B15: 59 | C15: 45.98 | D15: 45.98 | E15: 44.08 | F15: 44.08 | G15: 43.13 | H15: 43.13 | I15: 42.18 | J15: 42.18 | K15: 41.04 | L15: 41.04 | M15: 39.9 | N15: 39.9 | O15: 37.24 | P15: 37.24 | R15: 0.968 | S15: 0.928 | T15: 0.908 | U15: 0.888 | V15: 0.864 | W15: 0.84 | X15: 0.784 | Y15: 1 | Z15: 1 | AA15: 1 | AB15: 1 | AC15: 1 | AD15: 1 | AE15: 1 | AF15: 0.1815 | AG15: 0.058 | AH15: 0.029 | AI15: 0 | AJ15: 0 | AK15: 0 | AL15: 0 | AM15: 45.98 | AN15: =Z15*E15+($A$4-80)*AG15*$A$12/1000 -> 44.08 | AO15: =AA15*G15+($A$4-80)*AH15*$A$12/1000 -> 43.13 | AP15: 42.18 | AQ15: 41.04 | AR15: 39.9 | AS15: 37.24
A16: 900 | B16: 71 | C16: 53.58 | D16: 33.7554 | E16: 50.92 | F16: 33.098 | G16: 49.59 | H16: 32.48145 | I16: 48.26 | J16: 31.8516 | K16: 46.74 | L16: 31.3158 | M16: 45.22 | N16: 30.7496 | O16: 41.8 | P16: 29.678 | R16: 1.128 | S16: 1.072 | T16: 1.044 | U16: 1.016 | V16: 0.984 | W16: 0.952 | X16: 0.88 | Y16: 0.63 | Z16: 0.65 | AA16: 0.655 | AB16: 0.66 | AC16: 0.67 | AD16: 0.68 | AE16: 0.71 | AF16: 0.8773333333 | AG16: 0.9528888889 | AH16: 0.928 | AI16: 0.9031111111 | AJ16: 0.9011111111 | AK16: 0.8991111111 | AL16: 0.9288888889 | AM16: =Y16*C16+($A$4-80)*AF16*$A$16/1000 -> 33.7554 | AN16: =Z16*E16+($A$4-80)*AG16*$A$16/1000 -> 33.098 | AO16: =AA16*G16+($A$4-80)*AH16*$A$16/1000 -> 32.48145 | AP16: =AB16*I16+($A$4-80)*AI16*$A$16/1000 -> 31.8516 | AQ16: =AC16*K16+($A$4-80)*AJ16*$A$16/1000 -> 31.3158 | AR16: =AD16*M16+($A$4-80)*AK16*$A$16/1000 -> 30.7496 | AS16: =AE16*O16+($A$4-80)*AL16*$A$16/1000 -> 29.678
B17: 67 | C17: 50.92 | D17: 40.736 | E17: 48.64 | F17: 39.8848 | G17: 47.31 | H17: 39.2673 | I17: 45.98 | J17: 38.6232 | K17: 44.46 | L17: 38.0133 | M17: 42.94 | N17: 37.3578 | O17: 39.52 | P17: 36.3584 | R17: 1.072 | S17: 1.024 | T17: 0.996 | U17: 0.968 | V17: 0.936 | W17: 0.904 | X17: 0.832 | Y17: 0.8 | Z17: 0.82 | AA17: 0.83 | AB17: 0.84 | AC17: 0.855 | AD17: 0.87 | AE17: 0.92 | AF17: 0.8933333333 | AG17: 0.9102222222 | AH17: 0.9122222222 | AI17: 0.9142222222 | AJ17: 0.9091111111 | AK17: 0.904 | AL17: 0.9244444444 | AM17: =Y17*C17+($A$4-80)*AF17*$A$16/1000 -> 40.736 | AN17: =Z17*E17+($A$4-80)*AG17*$A$16/1000 -> 39.8848 | AO17: =AA17*G17+($A$4-80)*AH17*$A$16/1000 -> 39.2673 | AP17: =AB17*I17+($A$4-80)*AI17*$A$16/1000 -> 38.6232 | AQ17: =AC17*K17+($A$4-80)*AJ17*$A$16/1000 -> 38.0133 | AR17: =AD17*M17+($A$4-80)*AK17*$A$16/1000 -> 37.3578 | AS17: =AE17*O17+($A$4-80)*AL17*$A$16/1000 -> 36.3584
B18: 63 | C18: 48.26 | D18: 47.2948 | E18: 45.98 | F18: 45.98 | G18: 44.84 | H18: 44.84 | I18: 43.7 | J18: 43.7 | K18: 42.56 | L18: 42.56 | M18: 41.42 | N18: 41.42 | O18: 38.38 | P18: 38.38 | R18: 1.016 | S18: 0.968 | T18: 0.944 | U18: 0.92 | V18: 0.896 | W18: 0.872 | X18: 0.808 | Y18: 0.98 | Z18: 1 | AA18: 1 | AB18: 1 | AC18: 1 | AD18: 1 | AE18: 1 | AF18: 0.9031111111 | AG18: 0.8604444444 | AH18: 0.7624444444 | AI18: 0.6644444444 | AJ18: 0.5744444444 | AK18: 0.4844444444 | AL18: 0.2693333333 | AM18: 47.2948 | AN18: =Z18*E18+($A$4-80)*AG18*$A$16/1000 -> 45.98 | AO18: =AA18*G18+($A$4-80)*AH18*$A$16/1000 -> 44.84 | AP18: 43.7 | AQ18: 42.56 | AR18: 41.42 | AS18: 38.38
B19: 59 | C19: 47.88 | D19: 47.88 | E19: 45.98 | F19: 45.98 | G19: 44.84 | H19: 44.84 | I19: 43.7 | J19: 43.7 | K19: 42.37 | L19: 42.37 | M19: 41.04 | N19: 41.04 | O19: 38.38 | P19: 38.38 | R19: 1.008 | S19: 0.968 | T19: 0.944 | U19: 0.92 | V19: 0.892 | W19: 0.864 | X19: 0.808 | Y19: 1 | Z19: 1 | AA19: 1 | AB19: 1 | AC19: 1 | AD19: 1 | AE19: 1 | AF19: 0 | AG19: 0 | AH19: 0 | AI19: 0 | AJ19: 0 | AK19: 0 | AL19: 0 | AM19: 47.88 | AN19: =Z19*E19+($A$4-80)*AG19*$A$16/1000 -> 45.98 | AO19: =AA19*G19+($A$4-80)*AH19*$A$16/1000 -> 44.84 | AP19: 43.7 | AQ19: 42.37 | AR19: 41.04 | AS19: 38.38

Sheet 14ACXS_30 (hidden)
A2: 14ACXS_30
A3: Evaporator Air | C3: Condenser Entering Air Temperature ˚F
A4: 80 | B4: °F DB | C4: 85 | E4: 95 | G4: 100 | I4: 105 | K4: 110 | M4: 115 | O4: 125
A5: CFM | B5: EWB† ˚F | C5: Capacity Mbtuh | E5: Capacity Mbtuh | G5: Capacity Mbtuh | I5: Capacity Mbtuh | K5: Capacity Mbtuh | M5: Capacity Mbtuh | O5: Capacity Mbtuh
C6: Total | D6: Sens. | E6: Total | F6: Sens. | G6: Total | H6: Sens. | I6: Total | J6: Sens. | K6: Total | L6: Sens. | M6: Total | N6: Sens. | O6: Total | P6: Sens.
R7: Total Factors | Y7: Sens. % | AF7: IDB Adj | AM7: Sens Calc
A8: 875 | B8: 71 | C8: =R8*$E$13 -> 51.37755102 | D8: =IF(AM8>C8,C8,AM8) -> 30.3127551 | E8: =S8*$E$13 -> 48.79251701 | F8: =IF(AN8>E8,E8,AN8) -> 29.76343537 | G8: =T8*$E$13 -> 47.5 | H8: =IF(AO8>G8,G8,AO8) -> 29.2125 | I8: =U8*$E$13 -> 46.20748299 | J8: =IF(AP8>I8,I8,AP8) -> 28.64863946 | K8: =V8*$E$13 -> 44.91496599 | L8: =IF(AQ8>K8,K8,AQ8) -> 28.29642857 | M8: =W8*$E$13 -> 43.62244898 | N8: =IF(AR8>M8,M8,AR8) -> 27.91836735 | O8: =X8*$E$13 -> 40.39115646 | P8: =IF(AS8>O8,O8,AS8) -> 26.65816327 | R8: 1.081632653 | S8: 1.027210884 | T8: 1 | U8: 0.9727891156 | V8: 0.9455782313 | W8: 0.9183673469 | X8: 0.8503401361 | Y8: 0.59 | Z8: 0.61 | AA8: 0.615 | AB8: 0.62 | AC8: 0.63 | AD8: 0.64 | AE8: 0.66 | AF8: 0.8722285714 | AG8: 0.9664 | AH8: 0.9408 | AI8: 0.9152 | AJ8: 0.9204571429 | AK8: 0.9257142857 | AL8: 0.9142857143 | AM8: =Y8*C8+($A$4-80)*AF8*$A$8/1000 -> 30.3127551 | AN8: =Z8*E8+($A$4-80)*AG8*$A$8/1000 -> 29.76343537 | AO8: =AA8*G8+($A$4-80)*AH8*$A$8/1000 -> 29.2125 | AP8: =AB8*I8+($A$4-80)*AI8*$A$8/1000 -> 28.64863946 | AQ8: =AC8*K8+($A$4-80)*AJ8*$A$8/1000 -> 28.29642857 | AR8: =AD8*M8+($A$4-80)*AK8*$A$8/1000 -> 27.91836735 | AS8: =AE8*O8+($A$4-80)*AL8*$A$8/1000 -> 26.65816327
B9: 67 | C9: 48.46938776 | D9: 35.86734694 | E9: =S9*$E$13 -> 46.20748299 | F9: =IF(AN9>E9,E9,AN9) -> 35.11768707 | G9: 45.07653061 | H9: =IF(AO9>G9,G9,AO9) -> 34.70892857 | I9: 43.94557823 | J9: =IF(AP9>I9,I9,AP9) -> 34.27755102 | K9: 42.4914966 | L9: =IF(AQ9>K9,K9,AQ9) -> 33.7807398 | M9: 41.03741497 | N9: =IF(AR9>M9,M9,AR9) -> 33.24030612 | O9: 38.1292517 | P9: =IF(AS9>O9,O9,AS9) -> 32.02857143 | R9: 1.020408163 | S9: 0.9727891156 | T9: 0.9489795918 | U9: 0.925170068 | V9: 0.8945578231 | W9: 0.8639455782 | X9: 0.8027210884 | Y9: 0.74 | Z9: 0.76 | AA9: 0.77 | AB9: 0.78 | AC9: 0.795 | AD9: 0.81 | AE9: 0.84 | AF9: 0.8914285714 | AG9: 0.9152 | AH9: 0.9238857143 | AI9: 0.9325714286 | AJ9: 0.9307428571 | AK9: 0.9289142857 | AL9: 0.9170285714 | AM9: =Y9*C9+($A$4-80)*AF9*$A$8/1000 -> 35.86734694 | AN9: =Z9*E9+($A$4-80)*AG9*$A$8/1000 -> 35.11768707 | AO9: =AA9*G9+($A$4-80)*AH9*$A$8/1000 -> 34.70892857 | AP9: =AB9*I9+($A$4-80)*AI9*$A$8/1000 -> 34.27755102 | AQ9: =AC9*K9+($A$4-80)*AJ9*$A$8/1000 -> 33.7807398 | AR9: =AD9*M9+($A$4-80)*AK9*$A$8/1000 -> 33.24030612 | AS9: =AE9*O9+($A$4-80)*AL9*$A$8/1000 -> 32.02857143
B10: 63 | C10: 45.88435374 | D10: 41.7547619 | E10: =S10*$E$13 -> 43.62244898 | F10: 41.00510204 | G10: 42.4914966 | H10: 40.36692177 | I10: 41.36054422 | J10: 39.70612245 | K10: 40.06802721 | L10: 39.06632653 | M10: 38.7755102 | N10: 38.3877551 | O10: 36.19047619 | P10: 36.19047619 | R10: 0.9659863946 | S10: 0.9183673469 | T10: 0.8945578231 | U10: 0.8707482993 | V10: 0.843537415 | W10: 0.8163265306 | X10: 0.7619047619 | Y10: 0.91 | Z10: 0.94 | AA10: 0.95 | AB10: 0.96 | AC10: 0.975 | AD10: 0.99 | AE10: 1 | AF10: 0.9088 | AG10: 0.9257142857 | AH10: 0.9017142857 | AI10: 0.8777142857 | AJ10: 0.8777142857 | AK10: 0.8777142857 | AL10: 0.6656 | AM10: 41.7547619 | AN10: =Z10*E10+($A$4-80)*AG10*$A$8/1000 -> 41.00510204 | AO10: =AA10*G10+($A$4-80)*AH10*$A$8/1000 -> 40.36692177 | AP10: 39.70612245 | AQ10: 39.06632653 | AR10: 38.3877551 | AS10: 36.19047619
B11: 59 | C11: 44.59183673 | D11: 44.59183673 | E11: =S11*$E$13 -> 42.65306122 | F11: 42.65306122 | G11: 41.68367347 | H11: 41.68367347 | I11: 40.71428571 | J11: 40.71428571 | K11: 39.58333333 | L11: 39.58333333 | M11: 38.45238095 | N11: 38.45238095 | O11: 36.19047619 | P11: 36.19047619 | R11: 0.9387755102 | S11: 0.8979591837 | T11: 0.8775510204 | U11: 0.8571428571 | V11: 0.8333333333 | W11: 0.8095238095 | X11: 0.7619047619 | Y11: 1 | Z11: 1 | AA11: 1 | AB11: 1 | AC11: 1 | AD11: 1 | AE11: 1 | AF11: 0.3154285714 | AG11: 0.1810285714 | AH11: 0.1193142857 | AI11: 0.0576 | AJ11: 0.0288 | AK11: 0 | AL11: 0 | AM11: 44.59183673 | AN11: =Z11*E11+($A$4-80)*AG11*$A$8/1000 -> 42.65306122 | AO11: =AA11*G11+($A$4-80)*AH11*$A$8/1000 -> 41.68367347 | AP11: =AB11*I11+($A$4-80)*AI11*$A$8/1000 -> 40.71428571 | AQ11: 39.58333333 | AR11: 38.45238095 | AS11: 36.19047619
A12: 1000 | B12: 71 | C12: 52.67006803 | D12: 32.65544218 | E12: =S12*$E$13 -> 50.08503401 | F12: 31.55357143 | G12: 48.79251701 | H12: 31.22721088 | I12: 47.5 | J12: 30.875 | K12: 46.04591837 | L12: 30.16007653 | M12: 44.59183673 | N12: 29.43061224 | O12: 41.36054422 | P12: 28.12517007 | R12: 1.108843537 | S12: 1.054421769 | T12: 1.027210884 | U12: 1 | V12: 0.9693877551 | W12: 0.9387755102 | X12: 0.8707482993 | Y12: 0.62 | Z12: 0.63 | AA12: 0.64 | AB12: 0.65 | AC12: 0.655 | AD12: 0.66 | AE12: 0.68 | AF12: 0.9128 | AG12: 0.93 | AH12: 0.9354 | AI12: 0.9408 | AJ12: 0.912 | AK12: 0.8832 | AL12: 0.8704 | AM12: =Y12*C12+($A$4-80)*AF12*$A$12/1000 -> 32.65544218 | AN12: =Z12*E12+($A$4-80)*AG12*$A$12/1000 -> 31.55357143 | AO12: =AA12*G12+($A$4-80)*AH12*$A$12/1000 -> 31.22721088 | AP12: =AB12*I12+($A$4-80)*AI12*$A$12/1000 -> 30.875 | AQ12: =AC12*K12+($A$4-80)*AJ12*$A$12/1000 -> 30.16007653 | AR12: =AD12*M12+($A$4-80)*AK12*$A$12/1000 -> 29.43061224 | AS12: =AE12*O12+($A$4-80)*AL12*$A$12/1000 -> 28.12517007
B13: 67 | C13: 49.76190476 | D13: 38.81428571 | E13: 47.5 | F13: 38 | G13: 46.20748299 | H13: 37.42806122 | I13: 44.91496599 | J13: 36.83027211 | K13: 43.46088435 | L13: 36.28983844 | M13: 42.00680272 | N13: 35.70578231 | O13: 38.7755102 | P13: 34.51020408 | R13: 1.047619048 | S13: 1 | T13: 0.9727891156 | U13: 0.9455782313 | V13: 0.9149659864 | W13: 0.8843537415 | X13: 0.8163265306 | Y13: 0.78 | Z13: 0.8 | AA13: 0.81 | AB13: 0.82 | AC13: 0.835 | AD13: 0.85 | AE13: 0.89 | AF13: 0.924 | AG13: 0.9408 | AH13: 0.9152 | AI13: 0.8896 | AJ13: 0.8868 | AK13: 0.884 | AL13: 0.912 | AM13: =Y13*C13+($A$4-80)*AF13*$A$12/1000 -> 38.81428571 | AN13: =Z13*E13+($A$4-80)*AG13*$A$12/1000 -> 38 | AO13: =AA13*G13+($A$4-80)*AH13*$A$12/1000 -> 37.42806122 | AP13: =AB13*I13+($A$4-80)*AI13*$A$12/1000 -> 36.83027211 | AQ13: =AC13*K13+($A$4-80)*AJ13*$A$12/1000 -> 36.28983844 | AR13: =AD13*M13+($A$4-80)*AK13*$A$12/1000 -> 35.70578231 | AS13: =AE13*O13+($A$4-80)*AL13*$A$12/1000 -> 34.51020408
B14: 63 | C14: 47.17687075 | D14: 44.81802721 | E14: =S14*$E$13 -> 44.91496599 | F14: 44.01666667 | G14: 43.62244898 | H14: 43.18622449 | I14: 42.32993197 | J14: 42.32993197 | K14: 41.19897959 | L14: 41.19897959 | M14: 40.06802721 | N14: 40.06802721 | O14: 37.4829932 | P14: 37.4829932 | R14: 0.9931972789 | S14: 0.9455782313 | T14: 0.9183673469 | U14: 0.8911564626 | V14: 0.8673469388 | W14: 0.843537415 | X14: 0.7891156463 | Y14: 0.95 | Z14: 0.98 | AA14: 0.99 | AB14: 1 | AC14: 1 | AD14: 1 | AE14: 1 | AF14: 0.8176 | AG14: 0.8896 | AH14: 0.8378 | AI14: 0.786 | AJ14: 0.7154 | AK14: 0.6448 | AL14: 0.4176 | AM14: 44.81802721 | AN14: =Z14*E14+($A$4-80)*AG14*$A$12/1000 -> 44.01666667 | AO14: =AA14*G14+($A$4-80)*AH14*$A$12/1000 -> 43.18622449 | AP14: 42.32993197 | AQ14: 41.19897959 | AR14: 40.06802721 | AS14: 37.4829932
B15: 59 | C15: 46.20748299 | D15: 46.20748299 | E15: 44.59183673 | F15: 44.59183673 | G15: 43.46088435 | H15: 43.46088435 | I15: 42.32993197 | J15: 42.32993197 | K15: 41.19897959 | L15: 41.19897959 | M15: 40.06802721 | N15: 40.06802721 | O15: 37.4829932 | P15: 37.4829932 | R15: 0.9727891156 | S15: 0.9387755102 | T15: 0.9149659864 | U15: 0.8911564626 | V15: 0.8673469388 | W15: 0.843537415 | X15: 0.7891156463 | Y15: 1 | Z15: 1 | AA15: 1 | AB15: 1 | AC15: 1 | AD15: 1 | AE15: 1 | AF15: 0.0572 | AG15: 0 | AH15: 0 | AI15: 0 | AJ15: 0 | AK15: 0 | AL15: 0 | AM15: 46.20748299 | AN15: =Z15*E15+($A$4-80)*AG15*$A$12/1000 -> 44.59183673 | AO15: =AA15*G15+($A$4-80)*AH15*$A$12/1000 -> 43.46088435 | AP15: 42.32993197 | AQ15: 41.19897959 | AR15: 40.06802721 | AS15: 37.4829932
A16: 1125 | B16: 71 | C16: 53.63945578 | D16: 34.3292517 | E16: 51.05442177 | F16: 33.18537415 | G16: 49.60034014 | H16: 32.73622449 | I16: 48.1462585 | J16: 32.2579932 | K16: 46.69217687 | L16: 31.75068027 | M16: 45.23809524 | N16: 31.21428571 | O16: 42.00680272 | P16: 30.24489796 | R16: 1.129251701 | S16: 1.074829932 | T16: 1.044217687 | U16: 1.013605442 | V16: 0.9829931973 | W16: 0.9523809524 | X16: 0.8843537415 | Y16: 0.64 | Z16: 0.65 | AA16: 0.66 | AB16: 0.67 | AC16: 0.68 | AD16: 0.69 | AE16: 0.72 | AF16: 0.8853333333 | AG16: 0.8426666667 | AH16: 0.8716444444 | AI16: 0.9006222222 | AJ16: 0.8983111111 | AK16: 0.896 | AL16: 0.8782222222 | AM16: =Y16*C16+($A$4-80)*AF16*$A$16/1000 -> 34.3292517 | AN16: =Z16*E16+($A$4-80)*AG16*$A$16/1000 -> 33.18537415 | AO16: =AA16*G16+($A$4-80)*AH16*$A$16/1000 -> 32.73622449 | AP16: =AB16*I16+($A$4-80)*AI16*$A$16/1000 -> 32.2579932 | AQ16: =AC16*K16+($A$4-80)*AJ16*$A$16/1000 -> 31.75068027 | AR16: =AD16*M16+($A$4-80)*AK16*$A$16/1000 -> 31.21428571 | AS16: =AE16*O16+($A$4-80)*AL16*$A$16/1000 -> 30.24489796
B17: 67 | C17: 50.73129252 | D17: 41.09234694 | E17: 48.46938776 | F17: 40.22959184 | G17: 47.01530612 | H17: 39.72793367 | I17: 45.56122449 | J17: 39.18265306 | K17: 44.10714286 | L17: 38.59375 | M17: 42.65306122 | N17: 37.96122449 | O17: 39.42176871 | P17: 36.6622449 | R17: 1.068027211 | S17: 1.020408163 | T17: 0.9897959184 | U17: 0.9591836735 | V17: 0.9285714286 | W17: 0.8979591837 | X17: 0.8299319728 | Y17: 0.81 | Z17: 0.83 | AA17: 0.845 | AB17: 0.86 | AC17: 0.875 | AD17: 0.89 | AE17: 0.93 | AF17: 0.8931555556 | AG17: 0.9066666667 | AH17: 0.9045333333 | AI17: 0.9024 | AJ17: 0.8970666667 | AK17: 0.8917333333 | AL17: 0.8675555556 | AM17: =Y17*C17+($A$4-80)*AF17*$A$16/1000 -> 41.09234694 | AN17: =Z17*E17+($A$4-80)*AG17*$A$16/1000 -> 40.22959184 | AO17: =AA17*G17+($A$4-80)*AH17*$A$16/1000 -> 39.72793367 | AP17: =AB17*I17+($A$4-80)*AI17*$A$16/1000 -> 39.18265306 | AQ17: =AC17*K17+($A$4-80)*AJ17*$A$16/1000 -> 38.59375 | AR17: =AD17*M17+($A$4-80)*AK17*$A$16/1000 -> 37.96122449 | AS17: =AE17*O17+($A$4-80)*AL17*$A$16/1000 -> 36.6622449
B18: 63 | C18: 48.1462585 | D18: 47.66479592 | E18: 45.88435374 | F18: 45.88435374 | G18: 44.75340136 | H18: 44.75340136 | I18: 43.62244898 | J18: 43.62244898 | K18: 42.4914966 | L18: 42.4914966 | M18: 41.36054422 | N18: 41.36054422 | O18: 38.7755102 | P18: 38.7755102 | R18: 1.013605442 | S18: 0.9659863946 | T18: 0.9421768707 | U18: 0.9183673469 | V18: 0.8945578231 | W18: 0.8707482993 | X18: 0.8163265306 | Y18: 0.99 | Z18: 1 | AA18: 1 | AB18: 1 | AC18: 1 | AD18: 1 | AE18: 1 | AF18: 0.8476444444 | AG18: 0.7068444444 | AH18: 0.6414222222 | AI18: 0.576 | AJ18: 0.4700444444 | AK18: 0.3640888889 | AL18: 0.2133333333 | AM18: 47.66479592 | AN18: =Z18*E18+($A$4-80)*AG18*$A$16/1000 -> 45.88435374 | AO18: =AA18*G18+($A$4-80)*AH18*$A$16/1000 -> 44.75340136 | AP18: 43.62244898 | AQ18: 42.4914966 | AR18: 41.36054422 | AS18: 38.7755102
B19: 59 | C19: 47.82312925 | D19: 47.82312925 | E19: 45.88435374 | F19: 45.88435374 | G19: 44.75340136 | H19: 44.75340136 | I19: 43.62244898 | J19: 43.62244898 | K19: 42.4914966 | L19: 42.4914966 | M19: 41.36054422 | N19: 41.36054422 | O19: 38.7755102 | P19: 38.7755102 | R19: 1.006802721 | S19: 0.9659863946 | T19: 0.9421768707 | U19: 0.9183673469 | V19: 0.8945578231 | W19: 0.8707482993 | X19: 0.8163265306 | Y19: 1 | Z19: 1 | AA19: 1 | AB19: 1 | AC19: 1 | AD19: 1 | AE19: 1 | AF19: 0 | AG19: 0 | AH19: 0 | AI19: 0 | AJ19: 0 | AK19: 0 | AL19: 0 | AM19: 47.82312925 | AN19: =Z19*E19+($A$4-80)*AG19*$A$16/1000 -> 45.88435374 | AO19: =AA19*G19+($A$4-80)*AH19*$A$16/1000 -> 44.75340136 | AP19: 43.62244898 | AQ19: 42.4914966 | AR19: 41.36054422 | AS19: 38.7755102

Sheet 14ACXS_36 (hidden)
A2: 14ACXS_36
A3: Evaporator Air | C3: Condenser Entering Air Temperature ˚F
A4: 80 | B4: °F DB | C4: 85 | E4: 95 | G4: 100 | I4: 105 | K4: 110 | M4: 115 | O4: 125
A5: CFM | B5: EWB† ˚F | C5: Capacity Mbtuh | E5: Capacity Mbtuh | G5: Capacity Mbtuh | I5: Capacity Mbtuh | K5: Capacity Mbtuh | M5: Capacity Mbtuh | O5: Capacity Mbtuh
C6: Total | D6: Sens. | E6: Total | F6: Sens. | G6: Total | H6: Sens. | I6: Total | J6: Sens. | K6: Total | L6: Sens. | M6: Total | N6: Sens. | O6: Total | P6: Sens.
R7: Total Factors | Y7: Sens. % | AF7: IDB Adj | AM7: Sens Calc
A8: 1050 | B8: 71 | C8: =R8*$E$13 -> 51.17403315 | D8: =IF(AM8>C8,C8,AM8) -> 30.70441989 | E8: =S8*$E$13 -> 48.8121547 | F8: =IF(AN8>E8,E8,AN8) -> 29.77541436 | G8: =T8*$E$13 -> 47.5 | H8: =IF(AO8>G8,G8,AO8) -> 29.45 | I8: =U8*$E$13 -> 46.1878453 | J8: =IF(AP8>I8,I8,AP8) -> 29.09834254 | K8: =V8*$E$13 -> 44.87569061 | L8: =IF(AQ8>K8,K8,AQ8) -> 28.49606354 | M8: =W8*$E$13 -> 43.56353591 | N8: =IF(AR8>M8,M8,AR8) -> 27.88066298 | O8: =X8*$E$13 -> 40.41436464 | P8: =IF(AS8>O8,O8,AS8) -> 27.07762431 | R8: 1.077348066 | S8: 1.027624309 | T8: 1 | U8: 0.9723756906 | V8: 0.9447513812 | W8: 0.9171270718 | X8: 0.8508287293 | Y8: 0.6 | Z8: 0.61 | AA8: 0.62 | AB8: 0.63 | AC8: 0.635 | AD8: 0.64 | AE8: 0.67 | AF8: 0.9657142857 | AG8: 0.992 | AH8: 0.9988571429 | AI8: 1.005714286 | AJ8: 0.9771428571 | AK8: 0.9485714286 | AL8: 0.9973333333 | AM8: =Y8*C8+($A$4-80)*AF8*$A$8/1000 -> 30.70441989 | AN8: =Z8*E8+($A$4-80)*AG8*$A$8/1000 -> 29.77541436 | AO8: =AA8*G8+($A$4-80)*AH8*$A$8/1000 -> 29.45 | AP8: =AB8*I8+($A$4-80)*AI8*$A$8/1000 -> 29.09834254 | AQ8: =AC8*K8+($A$4-80)*AJ8*$A$8/1000 -> 28.49606354 | AR8: =AD8*M8+($A$4-80)*AK8*$A$8/1000 -> 27.88066298 | AS8: =AE8*O8+($A$4-80)*AL8*$A$8/1000 -> 27.07762431
B9: 67 | C9: 48.54972376 | D9: 36.41229282 | E9: =S9*$E$13 -> 46.1878453 | F9: =IF(AN9>E9,E9,AN9) -> 35.56464088 | G9: 45.00690608 | H9: =IF(AO9>G9,G9,AO9) -> 35.10538674 | I9: 43.82596685 | J9: =IF(AP9>I9,I9,AP9) -> 34.62251381 | K9: 42.51381215 | L9: =IF(AQ9>K9,K9,AQ9) -> 34.22361878 | M9: 41.20165746 | N9: =IF(AR9>M9,M9,AR9) -> 33.78535912 | O9: 38.05248619 | P9: =IF(AS9>O9,O9,AS9) -> 32.34461326 | R9: 1.022099448 | S9: 0.9723756906 | T9: 0.9475138122 | U9: 0.9226519337 | V9: 0.8950276243 | W9: 0.8674033149 | X9: 0.8011049724 | Y9: 0.75 | Z9: 0.77 | AA9: 0.78 | AB9: 0.79 | AC9: 0.805 | AD9: 0.82 | AE9: 0.85 | AF9: 0.9161904762 | AG9: 0.9386666667 | AH9: 0.9464761905 | AI9: 0.9542857143 | AJ9: 0.9556190476 | AK9: 0.956952381 | AL9: 0.939047619 | AM9: =Y9*C9+($A$4-80)*AF9*$A$8/1000 -> 36.41229282 | AN9: =Z9*E9+($A$4-80)*AG9*$A$8/1000 -> 35.56464088 | AO9: =AA9*G9+($A$4-80)*AH9*$A$8/1000 -> 35.10538674 | AP9: =AB9*I9+($A$4-80)*AI9*$A$8/1000 -> 34.62251381 | AQ9: =AC9*K9+($A$4-80)*AJ9*$A$8/1000 -> 34.22361878 | AR9: =AD9*M9+($A$4-80)*AK9*$A$8/1000 -> 33.78535912 | AS9: =AE9*O9+($A$4-80)*AL9*$A$8/1000 -> 32.34461326
B10: 63 | C10: 45.92541436 | D10: 42.25138122 | E10: =S10*$E$13 -> 43.56353591 | F10: 41.38535912 | G10: 42.51381215 | H10: 40.81325967 | I10: 41.4640884 | J10: 40.22016575 | K10: 40.1519337 | L10: 39.5496547 | M10: 38.83977901 | N10: 38.83977901 | O10: 36.47790055 | P10: 36.47790055 | R10: 0.9668508287 | S10: 0.9171270718 | T10: 0.8950276243 | U10: 0.8729281768 | V10: 0.8453038674 | W10: 0.817679558 | X10: 0.7679558011 | Y10: 0.92 | Z10: 0.95 | AA10: 0.96 | AB10: 0.97 | AC10: 0.985 | AD10: 1 | AE10: 1 | AF10: 0.9333333333 | AG10: 0.9485714286 | AH10: 0.9257142857 | AI10: 0.9028571429 | AJ10: 0.9024761905 | AK10: 0.9020952381 | AL10: 0.6354285714 | AM10: 42.25138122 | AN10: =Z10*E10+($A$4-80)*AG10*$A$8/1000 -> 41.38535912 | AO10: =AA10*G10+($A$4-80)*AH10*$A$8/1000 -> 40.81325967 | AP10: 40.22016575 | AQ10: 39.5496547 | AR10: 38.83977901 | AS10: 36.47790055
B11: 59 | C11: 44.61325967 | D11: 44.61325967 | E11: =S11*$E$13 -> 43.03867403 | F11: 43.03867403 | G11: 41.98895028 | H11: 41.98895028 | I11: 40.93922652 | J11: 40.93922652 | K11: 39.88950276 | L11: 39.88950276 | M11: 38.83977901 | N11: 38.83977901 | O11: 36.47790055 | P11: 36.47790055 | R11: 0.9392265193 | S11: 0.9060773481 | T11: 0.8839779006 | U11: 0.861878453 | V11: 0.8397790055 | W11: 0.817679558 | X11: 0.7679558011 | Y11: 1 | Z11: 1 | AA11: 1 | AB11: 1 | AC11: 1 | AD11: 1 | AE11: 1 | AF11: 0.259047619 | AG11: 0.124952381 | AH11: 0.06247619048 | AI11: 0 | AJ11: 0 | AK11: 0 | AL11: 0 | AM11: 44.61325967 | AN11: =Z11*E11+($A$4-80)*AG11*$A$8/1000 -> 43.03867403 | AO11: =AA11*G11+($A$4-80)*AH11*$A$8/1000 -> 41.98895028 | AP11: =AB11*I11+($A$4-80)*AI11*$A$8/1000 -> 40.93922652 | AQ11: 39.88950276 | AR11: 38.83977901 | AS11: 36.47790055
A12: 1200 | B12: 71 | C12: 52.48618785 | D12: 32.54143646 | E12: =S12*$E$13 -> 49.86187845 | F12: 31.91160221 | G12: 48.68093923 | H12: 31.3992058 | I12: 47.5 | J12: 30.875 | K12: 45.92541436 | L12: 30.31077348 | M12: 44.35082873 | N12: 29.71505525 | O12: 41.20165746 | P12: 28.42914365 | R12: 1.104972376 | S12: 1.049723757 | T12: 1.024861878 | U12: 1 | V12: 0.9668508287 | W12: 0.9337016575 | X12: 0.8674033149 | Y12: 0.62 | Z12: 0.64 | AA12: 0.645 | AB12: 0.65 | AC12: 0.66 | AD12: 0.67 | AE12: 0.69 | AF12: 0.9333333333 | AG12: 0.95 | AH12: 0.9576666667 | AI12: 0.9653333333 | AJ12: 0.9615 | AK12: 0.9576666667 | AL12: 0.942 | AM12: =Y12*C12+($A$4-80)*AF12*$A$12/1000 -> 32.54143646 | AN12: =Z12*E12+($A$4-80)*AG12*$A$12/1000 -> 31.91160221 | AO12: =AA12*G12+($A$4-80)*AH12*$A$12/1000 -> 31.3992058 | AP12: =AB12*I12+($A$4-80)*AI12*$A$12/1000 -> 30.875 | AQ12: =AC12*K12+($A$4-80)*AJ12*$A$12/1000 -> 30.31077348 | AR12: =AD12*M12+($A$4-80)*AK12*$A$12/1000 -> 29.71505525 | AS12: =AE12*O12+($A$4-80)*AL12*$A$12/1000 -> 28.42914365
B13: 67 | C13: 49.86187845 | D13: 39.39088398 | E13: 47.5 | F13: 38.475 | G13: 46.1878453 | H13: 37.87403315 | I13: 44.87569061 | J13: 37.2468232 | K13: 43.43232044 | L13: 36.70031077 | M13: 41.98895028 | N13: 36.11049724 | O13: 38.83977901 | P13: 34.9558011 | R13: 1.049723757 | S13: 1 | T13: 0.9723756906 | U13: 0.9447513812 | V13: 0.9143646409 | W13: 0.8839779006 | X13: 0.817679558 | Y13: 0.79 | Z13: 0.81 | AA13: 0.82 | AB13: 0.83 | AC13: 0.845 | AD13: 0.86 | AE13: 0.9 | AF13: 0.95 | AG13: 0.9653333333 | AH13: 0.9386666667 | AI13: 0.912 | AJ13: 0.936 | AK13: 0.96 | AL13: 0.9373333333 | AM13: =Y13*C13+($A$4-80)*AF13*$A$12/1000 -> 39.39088398 | AN13: =Z13*E13+($A$4-80)*AG13*$A$12/1000 -> 38.475 | AO13: =AA13*G13+($A$4-80)*AH13*$A$12/1000 -> 37.87403315 | AP13: =AB13*I13+($A$4-80)*AI13*$A$12/1000 -> 37.2468232 | AQ13: =AC13*K13+($A$4-80)*AJ13*$A$12/1000 -> 36.70031077 | AR13: =AD13*M13+($A$4-80)*AK13*$A$12/1000 -> 36.11049724 | AS13: =AE13*O13+($A$4-80)*AL13*$A$12/1000 -> 34.9558011
B14: 63 | C14: 47.23756906 | D14: 45.82044199 | E14: =S14*$E$13 -> 44.87569061 | F14: 44.4269337 | G14: 43.69475138 | H14: 43.47627762 | I14: 42.51381215 | J14: 42.51381215 | K14: 41.4640884 | L14: 41.4640884 | M14: 40.41436464 | N14: 40.41436464 | O14: 37.79005525 | P14: 37.79005525 | R14: 0.9944751381 | S14: 0.9447513812 | T14: 0.9198895028 | U14: 0.8950276243 | V14: 0.8729281768 | W14: 0.8508287293 | X14: 0.7955801105 | Y14: 0.97 | Z14: 0.99 | AA14: 0.995 | AB14: 1 | AC14: 1 | AD14: 1 | AE14: 1 | AF14: 0.96 | AG14: 0.912 | AH14: 0.834 | AI14: 0.756 | AJ14: 0.686 | AK14: 0.616 | AL14: 0.384 | AM14: 45.82044199 | AN14: =Z14*E14+($A$4-80)*AG14*$A$12/1000 -> 44.4269337 | AO14: =AA14*G14+($A$4-80)*AH14*$A$12/1000 -> 43.47627762 | AP14: 42.51381215 | AQ14: 41.4640884 | AR14: 40.41436464 | AS14: 37.79005525
B15: 59 | C15: 46.45027624 | D15: 46.45027624 | E15: 44.61325967 | F15: 44.61325967 | G15: 43.56353591 | H15: 43.56353591 | I15: 42.51381215 | J15: 42.51381215 | K15: 41.4640884 | L15: 41.4640884 | M15: 40.41436464 | N15: 40.41436464 | O15: 37.79005525 | P15: 37.79005525 | R15: 0.9779005525 | S15: 0.9392265193 | T15: 0.9171270718 | U15: 0.8950276243 | V15: 0.8729281768 | W15: 0.8508287293 | X15: 0.7955801105 | Y15: 1 | Z15: 1 | AA15: 1 | AB15: 1 | AC15: 1 | AD15: 1 | AE15: 1 | AF15: 0 | AG15: 0 | AH15: 0 | AI15: 0 | AJ15: 0 | AK15: 0 | AL15: 0 | AM15: 46.45027624 | AN15: =Z15*E15+($A$4-80)*AG15*$A$12/1000 -> 44.61325967 | AO15: =AA15*G15+($A$4-80)*AH15*$A$12/1000 -> 43.56353591 | AP15: 42.51381215 | AQ15: 41.4640884 | AR15: 40.41436464 | AS15: 37.79005525
A16: 1350 | B16: 71 | C16: 53.79834254 | D16: 34.96892265 | E16: 51.17403315 | F16: 33.77486188 | G16: 49.73066298 | H16: 33.3195442 | I16: 48.28729282 | J16: 32.83535912 | K16: 46.71270718 | L16: 32.23176796 | M16: 45.13812155 | N16: 31.59668508 | O16: 41.72651934 | P16: 30.46035912 | R16: 1.132596685 | S16: 1.077348066 | T16: 1.046961326 | U16: 1.016574586 | V16: 0.9834254144 | W16: 0.9502762431 | X16: 0.8784530387 | Y16: 0.65 | Z16: 0.66 | AA16: 0.67 | AB16: 0.68 | AC16: 0.69 | AD16: 0.7 | AE16: 0.73 | AF16: 0.9718518519 | AG16: 0.9244444444 | AH16: 0.9256296296 | AI16: 0.9268148148 | AJ16: 0.9220740741 | AK16: 0.9173333333 | AL16: 0.9893333333 | AM16: =Y16*C16+($A$4-80)*AF16*$A$16/1000 -> 34.96892265 | AN16: =Z16*E16+($A$4-80)*AG16*$A$16/1000 -> 33.77486188 | AO16: =AA16*G16+($A$4-80)*AH16*$A$16/1000 -> 33.3195442 | AP16: =AB16*I16+($A$4-80)*AI16*$A$16/1000 -> 32.83535912 | AQ16: =AC16*K16+($A$4-80)*AJ16*$A$16/1000 -> 32.23176796 | AR16: =AD16*M16+($A$4-80)*AK16*$A$16/1000 -> 31.59668508 | AS16: =AE16*O16+($A$4-80)*AL16*$A$16/1000 -> 30.46035912
B17: 67 | C17: 50.5179558 | D17: 41.42472376 | E17: 48.28729282 | F17: 40.56132597 | G17: 46.97513812 | H17: 40.16374309 | I17: 45.66298343 | J17: 39.72679558 | K17: 44.21961326 | L17: 39.13435773 | M17: 42.77624309 | N17: 38.49861878 | O17: 39.62707182 | P17: 37.24944751 | R17: 1.063535912 | S17: 1.016574586 | T17: 0.9889502762 | U17: 0.9613259669 | V17: 0.9309392265 | W17: 0.9005524862 | X17: 0.8342541436 | Y17: 0.82 | Z17: 0.84 | AA17: 0.855 | AB17: 0.87 | AC17: 0.885 | AD17: 0.9 | AE17: 0.94 | AF17: 0.9125925926 | AG17: 0.9268148148 | AH17: 0.9274074074 | AI17: 0.928 | AJ17: 0.9228148148 | AK17: 0.9176296296 | AL17: 0.8948148148 | AM17: =Y17*C17+($A$4-80)*AF17*$A$16/1000 -> 41.42472376 | AN17: =Z17*E17+($A$4-80)*AG17*$A$16/1000 -> 40.56132597 | AO17: =AA17*G17+($A$4-80)*AH17*$A$16/1000 -> 40.16374309 | AP17: =AB17*I17+($A$4-80)*AI17*$A$16/1000 -> 39.72679558 | AQ17: =AC17*K17+($A$4-80)*AJ17*$A$16/1000 -> 39.13435773 | AR17: =AD17*M17+($A$4-80)*AK17*$A$16/1000 -> 38.49861878 | AS17: =AE17*O17+($A$4-80)*AL17*$A$16/1000 -> 37.24944751
B18: 63 | C18: 48.28729282 | D18: 48.28729282 | E18: 46.1878453 | F18: 46.1878453 | G18: 45.00690608 | H18: 45.00690608 | I18: 43.82596685 | J18: 43.82596685 | K18: 42.64502762 | L18: 42.64502762 | M18: 41.4640884 | N18: 41.4640884 | O18: 38.83977901 | P18: 38.83977901 | R18: 1.016574586 | S18: 0.9723756906 | T18: 0.9475138122 | U18: 0.9226519337 | V18: 0.8977900552 | W18: 0.8729281768 | X18: 0.817679558 | Y18: 1 | Z18: 1 | AA18: 1 | AB18: 1 | AC18: 1 | AD18: 1 | AE18: 1 | AF18: 0.8177777778 | AG18: 0.6779259259 | AH18: 0.6111111111 | AI18: 0.5442962963 | AJ18: 0.436 | AK18: 0.3277037037 | AL18: 0.1315555556 | AM18: 48.28729282 | AN18: =Z18*E18+($A$4-80)*AG18*$A$16/1000 -> 46.1878453 | AO18: =AA18*G18+($A$4-80)*AH18*$A$16/1000 -> 45.00690608 | AP18: 43.82596685 | AQ18: 42.64502762 | AR18: 41.4640884 | AS18: 38.83977901
B19: 59 | C19: 48.02486188 | D19: 48.02486188 | E19: 46.1878453 | F19: 46.1878453 | G19: 45.00690608 | H19: 45.00690608 | I19: 43.82596685 | J19: 43.82596685 | K19: 42.64502762 | L19: 42.64502762 | M19: 41.4640884 | N19: 41.4640884 | O19: 38.83977901 | P19: 38.83977901 | R19: 1.011049724 | S19: 0.9723756906 | T19: 0.9475138122 | U19: 0.9226519337 | V19: 0.8977900552 | W19: 0.8729281768 | X19: 0.817679558 | Y19: 1 | Z19: 1 | AA19: 1 | AB19: 1 | AC19: 1 | AD19: 1 | AE19: 1 | AF19: 0 | AG19: 0 | AH19: 0 | AI19: 0 | AJ19: 0 | AK19: 0 | AL19: 0 | AM19: 48.02486188 | AN19: =Z19*E19+($A$4-80)*AG19*$A$16/1000 -> 46.1878453 | AO19: =AA19*G19+($A$4-80)*AH19*$A$16/1000 -> 45.00690608 | AP19: 43.82596685 | AQ19: 42.64502762 | AR19: 41.4640884 | AS19: 38.83977901

Sheet 14ACXS_42 (hidden)
A2: 14ACXS_42
A3: Evaporator Air | C3: Condenser Entering Air Temperature ˚F
A4: 80 | B4: °F DB | C4: 85 | E4: 95 | G4: 100 | I4: 105 | K4: 110 | M4: 115 | O4: 125
A5: CFM | B5: EWB† ˚F | C5: Capacity Mbtuh | E5: Capacity Mbtuh | G5: Capacity Mbtuh | I5: Capacity Mbtuh | K5: Capacity Mbtuh | M5: Capacity Mbtuh | O5: Capacity Mbtuh
C6: Total | D6: Sens. | E6: Total | F6: Sens. | G6: Total | H6: Sens. | I6: Total | J6: Sens. | K6: Total | L6: Sens. | M6: Total | N6: Sens. | O6: Total | P6: Sens.
R7: Total Factors | Y7: Sens. % | AF7: IDB Adj | AM7: Sens Calc
A8: 1225 | B8: 71 | C8: =R8*$E$13 -> 50.81395349 | D8: =IF(AM8>C8,C8,AM8) -> 30.48837209 | E8: =S8*$E$13 -> 48.60465116 | F8: =IF(AN8>E8,E8,AN8) -> 29.64883721 | G8: =T8*$E$13 -> 47.5 | H8: =IF(AO8>G8,G8,AO8) -> 29.2125 | I8: =U8*$E$13 -> 46.39534884 | J8: =IF(AP8>I8,I8,AP8) -> 28.76511628 | K8: =V8*$E$13 -> 45.01453488 | L8: =IF(AQ8>K8,K8,AQ8) -> 28.35915698 | M8: =W8*$E$13 -> 43.63372093 | N8: =IF(AR8>M8,M8,AR8) -> 27.9255814 | O8: =X8*$E$13 -> 40.43023256 | P8: =IF(AS8>O8,O8,AS8) -> 26.68395349 | R8: 1.069767442 | S8: 1.023255814 | T8: 1 | U8: 0.976744186 | V8: 0.9476744186 | W8: 0.9186046512 | X8: 0.8511627907 | Y8: 0.6 | Z8: 0.61 | AA8: 0.615 | AB8: 0.62 | AC8: 0.63 | AD8: 0.64 | AE8: 0.66 | AF8: 0.9763265306 | AG8: 0.933877551 | AH8: 0.9469387755 | AI8: 0.96 | AJ8: 0.9636734694 | AK8: 0.9673469388 | AL8: 0.9560816327 | AM8: =Y8*C8+($A$4-80)*AF8*$A$8/1000 -> 30.48837209 | AN8: =Z8*E8+($A$4-80)*AG8*$A$8/1000 -> 29.64883721 | AO8: =AA8*G8+($A$4-80)*AH8*$A$8/1000 -> 29.2125 | AP8: =AB8*I8+($A$4-80)*AI8*$A$8/1000 -> 28.76511628 | AQ8: =AC8*K8+($A$4-80)*AJ8*$A$8/1000 -> 28.35915698 | AR8: =AD8*M8+($A$4-80)*AK8*$A$8/1000 -> 27.9255814 | AS8: =AE8*O8+($A$4-80)*AL8*$A$8/1000 -> 26.68395349
B9: 67 | C9: 48.60465116 | D9: 35.96744186 | E9: =S9*$E$13 -> 46.39534884 | F9: =IF(AN9>E9,E9,AN9) -> 35.26046512 | G9: 45.29069767 | H9: =IF(AO9>G9,G9,AO9) -> 34.87383721 | I9: 44.18604651 | J9: =IF(AP9>I9,I9,AP9) -> 34.46511628 | K9: 42.86046512 | L9: =IF(AQ9>K9,K9,AQ9) -> 33.85976744 | M9: 41.53488372 | N9: =IF(AR9>M9,M9,AR9) -> 33.22790698 | O9: 38.6627907 | P9: =IF(AS9>O9,O9,AS9) -> 32.09011628 | R9: 1.023255814 | S9: 0.976744186 | T9: 0.9534883721 | U9: 0.9302325581 | V9: 0.9023255814 | W9: 0.8744186047 | X9: 0.8139534884 | Y9: 0.74 | Z9: 0.76 | AA9: 0.77 | AB9: 0.78 | AC9: 0.79 | AD9: 0.8 | AE9: 0.83 | AF9: 0.933877551 | AG9: 0.96 | AH9: 0.9697959184 | AI9: 0.9795918367 | AJ9: 0.9502040816 | AK9: 0.9208163265 | AL9: 0.9142857143 | AM9: =Y9*C9+($A$4-80)*AF9*$A$8/1000 -> 35.96744186 | AN9: =Z9*E9+($A$4-80)*AG9*$A$8/1000 -> 35.26046512 | AO9: =AA9*G9+($A$4-80)*AH9*$A$8/1000 -> 34.87383721 | AP9: =AB9*I9+($A$4-80)*AI9*$A$8/1000 -> 34.46511628 | AQ9: =AC9*K9+($A$4-80)*AJ9*$A$8/1000 -> 33.85976744 | AR9: =AD9*M9+($A$4-80)*AK9*$A$8/1000 -> 33.22790698 | AS9: =AE9*O9+($A$4-80)*AL9*$A$8/1000 -> 32.09011628
B10: 63 | C10: 45.84302326 | D10: 41.71715116 | E10: =S10*$E$13 -> 44.18604651 | F10: 41.09302326 | G10: 42.97093023 | H10: 40.39267442 | I10: 41.75581395 | J10: 39.66802326 | K10: 40.65116279 | L10: 39.22837209 | M10: 39.54651163 | N10: 38.7555814 | O10: 36.6744186 | P10: 36.6744186 | R10: 0.9651162791 | S10: 0.9302325581 | T10: 0.9046511628 | U10: 0.8790697674 | V10: 0.8558139535 | W10: 0.8325581395 | X10: 0.7720930233 | Y10: 0.91 | Z10: 0.93 | AA10: 0.94 | AB10: 0.95 | AC10: 0.965 | AD10: 0.98 | AE10: 1 | AF10: 0.9485714286 | AG10: 0.9795918367 | AH10: 0.9526530612 | AI10: 0.9257142857 | AJ10: 0.9012244898 | AK10: 0.8767346939 | AL10: 0.8130612245 | AM10: 41.71715116 | AN10: =Z10*E10+($A$4-80)*AG10*$A$8/1000 -> 41.09302326 | AO10: =AA10*G10+($A$4-80)*AH10*$A$8/1000 -> 40.39267442 | AP10: 39.66802326 | AQ10: 39.22837209 | AR10: 38.7555814 | AS10: 36.6744186
B11: 59 | C11: 44.73837209 | D11: 44.73837209 | E11: =S11*$E$13 -> 43.08139535 | F11: 43.08139535 | G11: 42.19767442 | H11: 42.19767442 | I11: 41.31395349 | J11: 41.31395349 | K11: 40.20930233 | L11: 40.20930233 | M11: 39.10465116 | N11: 39.10465116 | O11: 36.89534884 | P11: 36.89534884 | R11: 0.9418604651 | S11: 0.9069767442 | T11: 0.888372093 | U11: 0.8697674419 | V11: 0.8465116279 | W11: 0.823255814 | X11: 0.776744186 | Y11: 1 | Z11: 1 | AA11: 1 | AB11: 1 | AC11: 1 | AD11: 1 | AE11: 1 | AF11: 0.3967346939 | AG11: 0.2546938776 | AH11: 0.157877551 | AI11: 0.06106122449 | AJ11: 0.03053061224 | AK11: 0 | AL11: 0 | AM11: 44.73837209 | AN11: =Z11*E11+($A$4-80)*AG11*$A$8/1000 -> 43.08139535 | AO11: =AA11*G11+($A$4-80)*AH11*$A$8/1000 -> 42.19767442 | AP11: =AB11*I11+($A$4-80)*AI11*$A$8/1000 -> 41.31395349 | AQ11: 40.20930233 | AR11: 39.10465116 | AS11: 36.89534884
A12: 1400 | B12: 71 | C12: 51.91860465 | D12: 32.18953488 | E12: =S12*$E$13 -> 49.70930233 | F12: 31.31686047 | G12: 48.60465116 | H12: 31.10697674 | I12: 47.5 | J12: 30.875 | K12: 46.11918605 | L12: 30.20806686 | M12: 44.73837209 | N12: 29.52732558 | O12: 41.31395349 | P12: 28.09348837 | R12: 1.093023256 | S12: 1.046511628 | T12: 1.023255814 | U12: 1 | V12: 0.9709302326 | W12: 0.9418604651 | X12: 0.8697674419 | Y12: 0.62 | Z12: 0.63 | AA12: 0.64 | AB12: 0.65 | AC12: 0.655 | AD12: 0.66 | AE12: 0.68 | AF12: 0.94 | AG12: 0.9 | AH12: 0.9414285714 | AI12: 0.9828571429 | AJ12: 0.9542857143 | AK12: 0.9257142857 | AL12: 0.9082857143 | AM12: =Y12*C12+($A$4-80)*AF12*$A$12/1000 -> 32.18953488 | AN12: =Z12*E12+($A$4-80)*AG12*$A$12/1000 -> 31.31686047 | AO12: =AA12*G12+($A$4-80)*AH12*$A$12/1000 -> 31.10697674 | AP12: =AB12*I12+($A$4-80)*AI12*$A$12/1000 -> 30.875 | AQ12: =AC12*K12+($A$4-80)*AJ12*$A$12/1000 -> 30.20806686 | AR12: =AD12*M12+($A$4-80)*AK12*$A$12/1000 -> 29.52732558 | AS12: =AE12*O12+($A$4-80)*AL12*$A$12/1000 -> 28.09348837
B13: 67 | C13: 49.70930233 | D13: 38.77325581 | E13: 47.5 | F13: 37.525 | G13: 46.39534884 | H13: 37.11627907 | I13: 45.29069767 | J13: 36.68546512 | K13: 43.90988372 | L13: 36.22565407 | M13: 42.52906977 | N13: 35.7244186 | O13: 39.54651163 | P13: 34.80093023 | R13: 1.046511628 | S13: 1 | T13: 0.976744186 | U13: 0.9534883721 | V13: 0.9244186047 | W13: 0.8953488372 | X13: 0.8325581395 | Y13: 0.78 | Z13: 0.79 | AA13: 0.8 | AB13: 0.81 | AC13: 0.825 | AD13: 0.84 | AE13: 0.88 | AF13: 0.9642857143 | AG13: 0.9214285714 | AH13: 0.9 | AI13: 0.8785714286 | AJ13: 0.9067857143 | AK13: 0.935 | AL13: 0.9717142857 | AM13: =Y13*C13+($A$4-80)*AF13*$A$12/1000 -> 38.77325581 | AN13: =Z13*E13+($A$4-80)*AG13*$A$12/1000 -> 37.525 | AO13: =AA13*G13+($A$4-80)*AH13*$A$12/1000 -> 37.11627907 | AP13: =AB13*I13+($A$4-80)*AI13*$A$12/1000 -> 36.68546512 | AQ13: =AC13*K13+($A$4-80)*AJ13*$A$12/1000 -> 36.22565407 | AR13: =AD13*M13+($A$4-80)*AK13*$A$12/1000 -> 35.7244186 | AS13: =AE13*O13+($A$4-80)*AL13*$A$12/1000 -> 34.80093023
B14: 63 | C14: 47.5 | D14: 45.125 | E14: =S14*$E$13 -> 45.29069767 | F14: 43.93197674 | G14: 44.18604651 | H14: 43.52325581 | I14: 43.08139535 | J14: 43.08139535 | K14: 41.86627907 | L14: 41.86627907 | M14: 40.65116279 | N14: 40.65116279 | O14: 38.22093023 | P14: 38.22093023 | R14: 1 | S14: 0.9534883721 | T14: 0.9302325581 | U14: 0.9069767442 | V14: 0.8813953488 | W14: 0.8558139535 | X14: 0.8046511628 | Y14: 0.95 | Z14: 0.97 | AA14: 0.985 | AB14: 1 | AC14: 1 | AD14: 1 | AE14: 1 | AF14: 0.9214285714 | AG14: 0.8785714286 | AH14: 0.885 | AI14: 0.8914285714 | AJ14: 0.8137142857 | AK14: 0.736 | AL14: 0.4942857143 | AM14: 45.125 | AN14: =Z14*E14+($A$4-80)*AG14*$A$12/1000 -> 43.93197674 | AO14: =AA14*G14+($A$4-80)*AH14*$A$12/1000 -> 43.52325581 | AP14: 43.08139535 | AQ14: 41.86627907 | AR14: 40.65116279 | AS14: 38.22093023
B15: 59 | C15: 46.39534884 | D15: 46.39534884 | E15: 44.73837209 | F15: 44.73837209 | G15: 43.90988372 | H15: 43.90988372 | I15: 43.08139535 | J15: 43.08139535 | K15: 41.86627907 | L15: 41.86627907 | M15: 40.65116279 | N15: 40.65116279 | O15: 38.22093023 | P15: 38.22093023 | R15: 0.976744186 | S15: 0.9418604651 | T15: 0.9244186047 | U15: 0.9069767442 | V15: 0.8813953488 | W15: 0.8558139535 | X15: 0.8046511628 | Y15: 1 | Z15: 1 | AA15: 1 | AB15: 1 | AC15: 1 | AD15: 1 | AE15: 1 | AF15: 0.12 | AG15: 0 | AH15: 0 | AI15: 0 | AJ15: 0 | AK15: 0 | AL15: 0 | AM15: 46.39534884 | AN15: =Z15*E15+($A$4-80)*AG15*$A$12/1000 -> 44.73837209 | AO15: =AA15*G15+($A$4-80)*AH15*$A$12/1000 -> 43.90988372 | AP15: 43.08139535 | AQ15: 41.86627907 | AR15: 40.65116279 | AS15: 38.22093023
A16: 1575 | B16: 71 | C16: 53.02325581 | D16: 33.93488372 | E16: 50.81395349 | F16: 33.02906977 | G16: 49.43313953 | H16: 32.62587209 | I16: 48.05232558 | J16: 32.19505814 | K16: 46.67151163 | L16: 31.73662791 | M16: 45.29069767 | N16: 31.2505814 | O16: 41.97674419 | P16: 29.80348837 | R16: 1.11627907 | S16: 1.069767442 | T16: 1.040697674 | U16: 1.011627907 | V16: 0.9825581395 | W16: 0.9534883721 | X16: 0.8837209302 | Y16: 0.64 | Z16: 0.65 | AA16: 0.66 | AB16: 0.67 | AC16: 0.68 | AD16: 0.69 | AE16: 0.71 | AF16: 0.9142857143 | AG16: 0.8761904762 | AH16: 0.9076190476 | AI16: 0.939047619 | AJ16: 0.9380952381 | AK16: 0.9371428571 | AL16: 0.8685714286 | AM16: =Y16*C16+($A$4-80)*AF16*$A$16/1000 -> 33.93488372 | AN16: =Z16*E16+($A$4-80)*AG16*$A$16/1000 -> 33.02906977 | AO16: =AA16*G16+($A$4-80)*AH16*$A$16/1000 -> 32.62587209 | AP16: =AB16*I16+($A$4-80)*AI16*$A$16/1000 -> 32.19505814 | AQ16: =AC16*K16+($A$4-80)*AJ16*$A$16/1000 -> 31.73662791 | AR16: =AD16*M16+($A$4-80)*AK16*$A$16/1000 -> 31.2505814 | AS16: =AE16*O16+($A$4-80)*AL16*$A$16/1000 -> 29.80348837
B17: 67 | C17: 50.81395349 | D17: 41.15930233 | E17: 48.60465116 | F17: 40.34186047 | G17: 47.22383721 | H17: 39.66802326 | I17: 45.84302326 | J17: 38.96656977 | K17: 44.4622093 | L17: 38.45981105 | M17: 43.08139535 | N17: 37.91162791 | O17: 40.20930233 | P17: 36.99255814 | R17: 1.069767442 | S17: 1.023255814 | T17: 0.9941860465 | U17: 0.9651162791 | V17: 0.9360465116 | W17: 0.9069767442 | X17: 0.8465116279 | Y17: 0.81 | Z17: 0.83 | AA17: 0.84 | AB17: 0.85 | AC17: 0.865 | AD17: 0.88 | AE17: 0.92 | AF17: 0.9346031746 | AG17: 0.9498412698 | AH17: 0.9228571429 | AI17: 0.8958730159 | AJ17: 0.8936507937 | AK17: 0.8914285714 | AL17: 0.9244444444 | AM17: =Y17*C17+($A$4-80)*AF17*$A$16/1000 -> 41.15930233 | AN17: =Z17*E17+($A$4-80)*AG17*$A$16/1000 -> 40.34186047 | AO17: =AA17*G17+($A$4-80)*AH17*$A$16/1000 -> 39.66802326 | AP17: =AB17*I17+($A$4-80)*AI17*$A$16/1000 -> 38.96656977 | AQ17: =AC17*K17+($A$4-80)*AJ17*$A$16/1000 -> 38.45981105 | AR17: =AD17*M17+($A$4-80)*AK17*$A$16/1000 -> 37.91162791 | AS17: =AE17*O17+($A$4-80)*AL17*$A$16/1000 -> 36.99255814
B18: 63 | C18: 48.60465116 | D18: 48.11860465 | E18: 46.39534884 | F18: 46.39534884 | G18: 45.29069767 | H18: 45.29069767 | I18: 44.18604651 | J18: 44.18604651 | K18: 43.08139535 | L18: 43.08139535 | M18: 41.97674419 | N18: 41.97674419 | O18: 39.3255814 | P18: 39.3255814 | R18: 1.023255814 | S18: 0.976744186 | T18: 0.9534883721 | U18: 0.9302325581 | V18: 0.9069767442 | W18: 0.8837209302 | X18: 0.8279069767 | Y18: 0.99 | Z18: 1 | AA18: 1 | AB18: 1 | AC18: 1 | AD18: 1 | AE18: 1 | AF18: 0.893968254 | AG18: 0.8 | AH18: 0.7301587302 | AI18: 0.6603174603 | AJ18: 0.5714285714 | AK18: 0.4825396825 | AL18: 0.2712380952 | AM18: 48.11860465 | AN18: =Z18*E18+($A$4-80)*AG18*$A$16/1000 -> 46.39534884 | AO18: =AA18*G18+($A$4-80)*AH18*$A$16/1000 -> 45.29069767 | AP18: 44.18604651 | AQ18: 43.08139535 | AR18: 41.97674419 | AS18: 39.3255814
B19: 59 | C19: 48.05232558 | D19: 48.05232558 | E19: 46.39534884 | F19: 46.39534884 | G19: 45.29069767 | H19: 45.29069767 | I19: 44.18604651 | J19: 44.18604651 | K19: 43.08139535 | L19: 43.08139535 | M19: 41.97674419 | N19: 41.97674419 | O19: 39.3255814 | P19: 39.3255814 | R19: 1.011627907 | S19: 0.976744186 | T19: 0.9534883721 | U19: 0.9302325581 | V19: 0.9069767442 | W19: 0.8837209302 | X19: 0.8279069767 | Y19: 1 | Z19: 1 | AA19: 1 | AB19: 1 | AC19: 1 | AD19: 1 | AE19: 1 | AF19: 0 | AG19: 0 | AH19: 0 | AI19: 0 | AJ19: 0 | AK19: 0 | AL19: 0 | AM19: 48.05232558 | AN19: =Z19*E19+($A$4-80)*AG19*$A$16/1000 -> 46.39534884 | AO19: =AA19*G19+($A$4-80)*AH19*$A$16/1000 -> 45.29069767 | AP19: 44.18604651 | AQ19: 43.08139535 | AR19: 41.97674419 | AS19: 39.3255814

Sheet XC16S_24 (hidden)
A2: XC16S_24
A3: Evaporator Air | C3: Condenser Entering Air Temperature ˚F
A4: 80 | B4: °F DB | C4: 85 | E4: 95 | G4: 100 | I4: 105 | K4: 110 | M4: 115 | O4: 125
A5: CFM | B5: EWB† ˚F | C5: Capacity Mbtuh | E5: Capacity Mbtuh | G5: Capacity Mbtuh | I5: Capacity Mbtuh | K5: Capacity Mbtuh | M5: Capacity Mbtuh | O5: Capacity Mbtuh
C6: Total | D6: Sens. | E6: Total | F6: Sens. | G6: Total | H6: Sens. | I6: Total | J6: Sens. | K6: Total | L6: Sens. | M6: Total | N6: Sens. | O6: Total | P6: Sens.
R7: Total Factors | Y7: Sens. % | AF7: IDB Adj | AM7: Sens Calc
A8: 780 | B8: 71 | C8: =R8*$E$13 -> 51.68 | D8: =IF(AM8>C8,C8,AM8) -> 31.008 | E8: =S8*$E$13 -> 49.02 | F8: =IF(AN8>E8,E8,AN8) -> 29.9022 | G8: =T8*$E$13 -> 47.88 | H8: =IF(AO8>G8,G8,AO8) -> 29.4462 | I8: =U8*$E$13 -> 46.74 | J8: =IF(AP8>I8,I8,AP8) -> 28.9788 | K8: =V8*$E$13 -> 45.22 | L8: =IF(AQ8>K8,K8,AQ8) -> 28.4886 | M8: =W8*$E$13 -> 43.7 | N8: =IF(AR8>M8,M8,AR8) -> 27.968 | O8: =X8*$E$13 -> 40.66 | P8: =IF(AS8>O8,O8,AS8) -> 26.8356 | R8: 1.088 | S8: 1.032 | T8: 1.008 | U8: 0.984 | V8: 0.952 | W8: 0.92 | X8: 0.856 | Y8: 0.6 | Z8: 0.61 | AA8: 0.615 | AB8: 0.62 | AC8: 0.63 | AD8: 0.64 | AE8: 0.66 | AF8: 0.9764102564 | AG8: 0.9261538462 | AH8: 0.9361538462 | AI8: 0.9461538462 | AJ8: 0.9448717949 | AK8: 0.9435897436 | AL8: 0.9328205128 | AM8: =Y8*C8+($A$4-80)*AF8*$A$8/1000 -> 31.008 | AN8: =Z8*E8+($A$4-80)*AG8*$A$8/1000 -> 29.9022 | AO8: =AA8*G8+($A$4-80)*AH8*$A$8/1000 -> 29.4462 | AP8: =AB8*I8+($A$4-80)*AI8*$A$8/1000 -> 28.9788 | AQ8: =AC8*K8+($A$4-80)*AJ8*$A$8/1000 -> 28.4886 | AR8: =AD8*M8+($A$4-80)*AK8*$A$8/1000 -> 27.968 | AS8: =AE8*O8+($A$4-80)*AL8*$A$8/1000 -> 26.8356
B9: 67 | C9: 49.4 | D9: 37.05 | E9: =S9*$E$13 -> 47.12 | F9: =IF(AN9>E9,E9,AN9) -> 36.2824 | G9: 45.98 | H9: =IF(AO9>G9,G9,AO9) -> 35.8644 | I9: 44.84 | J9: =IF(AP9>I9,I9,AP9) -> 35.4236 | K9: 43.32 | L9: =IF(AQ9>K9,K9,AQ9) -> 34.8726 | M9: 41.8 | N9: =IF(AR9>M9,M9,AR9) -> 34.276 | O9: 38.76 | P9: =IF(AS9>O9,O9,AS9) -> 32.946 | R9: 1.04 | S9: 0.992 | T9: 0.968 | U9: 0.944 | V9: 0.912 | W9: 0.88 | X9: 0.816 | Y9: 0.75 | Z9: 0.77 | AA9: 0.78 | AB9: 0.79 | AC9: 0.805 | AD9: 0.82 | AE9: 0.85 | AF9: 0.9333333333 | AG9: 0.9538461538 | AH9: 0.9307692308 | AI9: 0.9076923077 | AJ9: 0.9333333333 | AK9: 0.958974359 | AL9: 0.9415384615 | AM9: =Y9*C9+($A$4-80)*AF9*$A$8/1000 -> 37.05 | AN9: =Z9*E9+($A$4-80)*AG9*$A$8/1000 -> 36.2824 | AO9: =AA9*G9+($A$4-80)*AH9*$A$8/1000 -> 35.8644 | AP9: =AB9*I9+($A$4-80)*AI9*$A$8/1000 -> 35.4236 | AQ9: =AC9*K9+($A$4-80)*AJ9*$A$8/1000 -> 34.8726 | AR9: =AD9*M9+($A$4-80)*AK9*$A$8/1000 -> 34.276 | AS9: =AE9*O9+($A$4-80)*AL9*$A$8/1000 -> 32.946
B10: 63 | C10: 47.12 | D10: 43.3504 | E10: =S10*$E$13 -> 44.84 | F10: 42.598 | G10: 43.7 | H10: 41.952 | I10: 42.56 | J10: 41.2832 | K10: 41.23 | L10: 40.61155 | M10: 39.9 | N10: 39.9 | O10: 37.24 | P10: 37.24 | R10: 0.992 | S10: 0.944 | T10: 0.92 | U10: 0.896 | V10: 0.868 | W10: 0.84 | X10: 0.784 | Y10: 0.92 | Z10: 0.95 | AA10: 0.96 | AB10: 0.97 | AC10: 0.985 | AD10: 1 | AE10: 1 | AF10: 0.8902564103 | AG10: 0.9682051282 | AH10: 0.9435897436 | AI10: 0.918974359 | AJ10: 0.8902564103 | AK10: 0.8615384615 | AL10: 0.6533333333 | AM10: 43.3504 | AN10: =Z10*E10+($A$4-80)*AG10*$A$8/1000 -> 42.598 | AO10: =AA10*G10+($A$4-80)*AH10*$A$8/1000 -> 41.952 | AP10: 41.2832 | AQ10: 40.61155 | AR10: 39.9 | AS10: 37.24
B11: 59 | C11: 45.98 | D11: 45.98 | E11: =S11*$E$13 -> 44.08 | F11: 44.08 | G11: 43.13 | H11: 43.13 | I11: 42.18 | J11: 42.18 | K11: 41.04 | L11: 41.04 | M11: 39.9 | N11: 39.9 | O11: 37.24 | P11: 37.24 | R11: 0.968 | S11: 0.928 | T11: 0.908 | U11: 0.888 | V11: 0.864 | W11: 0.84 | X11: 0.784 | Y11: 1 | Z11: 1 | AA11: 1 | AB11: 1 | AC11: 1 | AD11: 1 | AE11: 1 | AF11: 0.2482051282 | AG11: 0.118974359 | AH11: 0.05948717949 | AI11: 0 | AJ11: 0 | AK11: 0 | AL11: 0 | AM11: 45.98 | AN11: =Z11*E11+($A$4-80)*AG11*$A$8/1000 -> 44.08 | AO11: =AA11*G11+($A$4-80)*AH11*$A$8/1000 -> 43.13 | AP11: =AB11*I11+($A$4-80)*AI11*$A$8/1000 -> 42.18 | AQ11: 41.04 | AR11: 39.9 | AS11: 37.24
A12: 800 | B12: 71 | C12: 52.06 | D12: 31.7566 | E12: =S12*$E$13 -> 49.4 | F12: 30.628 | G12: 48.26 | H12: 30.1625 | I12: 47.12 | J12: 29.6856 | K12: 45.6 | L12: 29.184 | M12: 44.08 | N12: 28.652 | O12: 41.04 | P12: 27.4968 | R12: 1.096 | S12: 1.04 | T12: 1.016 | U12: 0.992 | V12: 0.96 | W12: 0.928 | X12: 0.864 | Y12: 0.61 | Z12: 0.62 | AA12: 0.625 | AB12: 0.63 | AC12: 0.64 | AD12: 0.65 | AE12: 0.67 | AF12: 0.959 | AG12: 0.975 | AH12: 0.9525 | AI12: 0.93 | AJ12: 0.958 | AK12: 0.986 | AL12: 0.972 | AM12: =Y12*C12+($A$4-80)*AF12*$A$12/1000 -> 31.7566 | AN12: =Z12*E12+($A$4-80)*AG12*$A$12/1000 -> 30.628 | AO12: =AA12*G12+($A$4-80)*AH12*$A$12/1000 -> 30.1625 | AP12: =AB12*I12+($A$4-80)*AI12*$A$12/1000 -> 29.6856 | AQ12: =AC12*K12+($A$4-80)*AJ12*$A$12/1000 -> 29.184 | AR12: =AD12*M12+($A$4-80)*AK12*$A$12/1000 -> 28.652 | AS12: =AE12*O12+($A$4-80)*AL12*$A$12/1000 -> 27.4968
B13: 67 | C13: 49.78 | D13: 37.8328 | E13: 47.5 | F13: 37.05 | G13: 46.17 | H13: 36.4743 | I13: 44.84 | J13: 35.872 | K13: 43.51 | L13: 35.46065 | M13: 42.18 | N13: 35.0094 | O13: 39.14 | P13: 33.6604 | R13: 1.048 | S13: 1 | T13: 0.972 | U13: 0.944 | V13: 0.916 | W13: 0.888 | X13: 0.824 | Y13: 0.76 | Z13: 0.78 | AA13: 0.79 | AB13: 0.8 | AC13: 0.815 | AD13: 0.83 | AE13: 0.86 | AF13: 0.917 | AG13: 0.9375 | AH13: 0.94075 | AI13: 0.944 | AJ13: 0.94375 | AK13: 0.9435 | AL13: 0.927 | AM13: =Y13*C13+($A$4-80)*AF13*$A$12/1000 -> 37.8328 | AN13: =Z13*E13+($A$4-80)*AG13*$A$12/1000 -> 37.05 | AO13: =AA13*G13+($A$4-80)*AH13*$A$12/1000 -> 36.4743 | AP13: =AB13*I13+($A$4-80)*AI13*$A$12/1000 -> 35.872 | AQ13: =AC13*K13+($A$4-80)*AJ13*$A$12/1000 -> 35.46065 | AR13: =AD13*M13+($A$4-80)*AK13*$A$12/1000 -> 35.0094 | AS13: =AE13*O13+($A$4-80)*AL13*$A$12/1000 -> 33.6604
B14: 63 | C14: 47.5 | D14: 44.175 | E14: =S14*$E$13 -> 45.22 | F14: 43.4112 | G14: 43.89 | H14: 42.5733 | I14: 42.56 | J14: 41.7088 | K14: 41.42 | L14: 41.0058 | M14: 40.28 | N14: 40.28 | O14: 37.62 | P14: 37.62 | R14: 1 | S14: 0.952 | T14: 0.924 | U14: 0.896 | V14: 0.872 | W14: 0.848 | X14: 0.792 | Y14: 0.93 | Z14: 0.96 | AA14: 0.97 | AB14: 0.98 | AC14: 0.99 | AD14: 1 | AE14: 1 | AF14: 0.9375 | AG14: 0.952 | AH14: 0.924 | AI14: 0.896 | AJ14: 0.8455 | AK14: 0.795 | AL14: 0.594 | AM14: 44.175 | AN14: =Z14*E14+($A$4-80)*AG14*$A$12/1000 -> 43.4112 | AO14: =AA14*G14+($A$4-80)*AH14*$A$12/1000 -> 42.5733 | AP14: 41.7088 | AQ14: 41.0058 | AR14: 40.28 | AS14: 37.62
B15: 59 | C15: 46.36 | D15: 46.36 | E15: 44.46 | F15: 44.46 | G15: 43.51 | H15: 43.51 | I15: 42.56 | J15: 42.56 | K15: 41.42 | L15: 41.42 | M15: 40.28 | N15: 40.28 | O15: 37.62 | P15: 37.62 | R15: 0.976 | S15: 0.936 | T15: 0.916 | U15: 0.896 | V15: 0.872 | W15: 0.848 | X15: 0.792 | Y15: 1 | Z15: 1 | AA15: 1 | AB15: 1 | AC15: 1 | AD15: 1 | AE15: 1 | AF15: 0.183 | AG15: 0.0585 | AH15: 0.02925 | AI15: 0 | AJ15: 0 | AK15: 0 | AL15: 0 | AM15: 46.36 | AN15: =Z15*E15+($A$4-80)*AG15*$A$12/1000 -> 44.46 | AO15: =AA15*G15+($A$4-80)*AH15*$A$12/1000 -> 43.51 | AP15: 42.56 | AQ15: 41.42 | AR15: 40.28 | AS15: 37.62
A16: 925 | B16: 71 | C16: 53.58 | D16: 33.7554 | E16: 50.92 | F16: 32.5888 | G16: 49.59 | H16: 31.98555 | I16: 48.26 | J16: 31.369 | K16: 46.74 | L16: 30.8484 | M16: 45.22 | N16: 30.2974 | O16: 42.18 | P16: 29.526 | R16: 1.128 | S16: 1.072 | T16: 1.044 | U16: 1.016 | V16: 0.984 | W16: 0.952 | X16: 0.888 | Y16: 0.63 | Z16: 0.64 | AA16: 0.645 | AB16: 0.65 | AC16: 0.66 | AD16: 0.67 | AE16: 0.7 | AF16: 0.9145945946 | AG16: 0.9271351351 | AH16: 0.9029189189 | AI16: 0.8787027027 | AJ16: 0.8767567568 | AK16: 0.8748108108 | AL16: 0.912 | AM16: =Y16*C16+($A$4-80)*AF16*$A$16/1000 -> 33.7554 | AN16: =Z16*E16+($A$4-80)*AG16*$A$16/1000 -> 32.5888 | AO16: =AA16*G16+($A$4-80)*AH16*$A$16/1000 -> 31.98555 | AP16: =AB16*I16+($A$4-80)*AI16*$A$16/1000 -> 31.369 | AQ16: =AC16*K16+($A$4-80)*AJ16*$A$16/1000 -> 30.8484 | AR16: =AD16*M16+($A$4-80)*AK16*$A$16/1000 -> 30.2974 | AS16: =AE16*O16+($A$4-80)*AL16*$A$16/1000 -> 29.526
B17: 67 | C17: 51.3 | D17: 40.527 | E17: 48.64 | F17: 39.8848 | G17: 47.31 | H17: 39.2673 | I17: 45.98 | J17: 38.6232 | K17: 44.65 | L17: 38.17575 | M17: 43.32 | N17: 37.6884 | O17: 39.9 | P17: 36.309 | R17: 1.08 | S17: 1.024 | T17: 0.996 | U17: 0.968 | V17: 0.94 | W17: 0.912 | X17: 0.84 | Y17: 0.79 | Z17: 0.82 | AA17: 0.83 | AB17: 0.84 | AC17: 0.855 | AD17: 0.87 | AE17: 0.91 | AF17: 0.8756756757 | AG17: 0.940972973 | AH17: 0.9414054054 | AI17: 0.9418378378 | AJ17: 0.9392432432 | AK17: 0.9366486486 | AL17: 0.9081081081 | AM17: =Y17*C17+($A$4-80)*AF17*$A$16/1000 -> 40.527 | AN17: =Z17*E17+($A$4-80)*AG17*$A$16/1000 -> 39.8848 | AO17: =AA17*G17+($A$4-80)*AH17*$A$16/1000 -> 39.2673 | AP17: =AB17*I17+($A$4-80)*AI17*$A$16/1000 -> 38.6232 | AQ17: =AC17*K17+($A$4-80)*AJ17*$A$16/1000 -> 38.17575 | AR17: =AD17*M17+($A$4-80)*AK17*$A$16/1000 -> 37.6884 | AS17: =AE17*O17+($A$4-80)*AL17*$A$16/1000 -> 36.309
B18: 63 | C18: 48.64 | D18: 47.6672 | E18: 46.36 | F18: 46.36 | G18: 45.22 | H18: 45.22 | I18: 44.08 | J18: 44.08 | K18: 42.94 | L18: 42.94 | M18: 41.8 | N18: 41.8 | O18: 39.14 | P18: 39.14 | R18: 1.024 | S18: 0.976 | T18: 0.952 | U18: 0.928 | V18: 0.904 | W18: 0.88 | X18: 0.824 | Y18: 0.98 | Z18: 1 | AA18: 1 | AB18: 1 | AC18: 1 | AD18: 1 | AE18: 1 | AF18: 0.8856216216 | AG18: 0.8441081081 | AH18: 0.7731891892 | AI18: 0.7022702703 | AJ18: 0.6127567568 | AK18: 0.5232432432 | AL18: 0.3117837838 | AM18: 47.6672 | AN18: =Z18*E18+($A$4-80)*AG18*$A$16/1000 -> 46.36 | AO18: =AA18*G18+($A$4-80)*AH18*$A$16/1000 -> 45.22 | AP18: 44.08 | AQ18: 42.94 | AR18: 41.8 | AS18: 39.14
B19: 59 | C19: 48.26 | D19: 48.26 | E19: 46.36 | F19: 46.36 | G19: 45.22 | H19: 45.22 | I19: 44.08 | J19: 44.08 | K19: 42.94 | L19: 42.94 | M19: 41.8 | N19: 41.8 | O19: 39.14 | P19: 39.14 | R19: 1.016 | S19: 0.976 | T19: 0.952 | U19: 0.928 | V19: 0.904 | W19: 0.88 | X19: 0.824 | Y19: 1 | Z19: 1 | AA19: 1 | AB19: 1 | AC19: 1 | AD19: 1 | AE19: 1 | AF19: 0 | AG19: 0 | AH19: 0 | AI19: 0 | AJ19: 0 | AK19: 0 | AL19: 0 | AM19: 48.26 | AN19: =Z19*E19+($A$4-80)*AG19*$A$16/1000 -> 46.36 | AO19: =AA19*G19+($A$4-80)*AH19*$A$16/1000 -> 45.22 | AP19: 44.08 | AQ19: 42.94 | AR19: 41.8 | AS19: 39.14

Sheet XC16S_36 (hidden)
A2: XC16S_36
A3: Evaporator Air | C3: Condenser Entering Air Temperature ˚F
A4: 80 | B4: °F DB | C4: 85 | E4: 95 | G4: 100 | I4: 105 | K4: 110 | M4: 115 | O4: 125
A5: CFM | B5: EWB† ˚F | C5: Capacity Mbtuh | E5: Capacity Mbtuh | G5: Capacity Mbtuh | I5: Capacity Mbtuh | K5: Capacity Mbtuh | M5: Capacity Mbtuh | O5: Capacity Mbtuh
C6: Total | D6: Sens. | E6: Total | F6: Sens. | G6: Total | H6: Sens. | I6: Total | J6: Sens. | K6: Total | L6: Sens. | M6: Total | N6: Sens. | O6: Total | P6: Sens.
R7: Total Factors | Y7: Sens. % | AF7: IDB Adj | AM7: Sens Calc
A8: 1055 | B8: 71 | C8: =R8*$E$13 -> 50.53191489 | D8: =IF(AM8>C8,C8,AM8) -> 29.30851064 | E8: =S8*$E$13 -> 48.63696809 | F8: =IF(AN8>E8,E8,AN8) -> 28.69581117 | G8: =T8*$E$13 -> 47.31050532 | H8: =IF(AO8>G8,G8,AO8) -> 28.14975066 | I8: =U8*$E$13 -> 45.98404255 | J8: =IF(AP8>I8,I8,AP8) -> 27.59042553 | K8: =V8*$E$13 -> 44.59441489 | L8: =IF(AQ8>K8,K8,AQ8) -> 27.20259309 | M8: =W8*$E$13 -> 43.20478723 | N8: =IF(AR8>M8,M8,AR8) -> 26.78696809 | O8: =X8*$E$13 -> 39.92021277 | P8: =IF(AS8>O8,O8,AS8) -> 25.54893617 | R8: 1.063829787 | S8: 1.02393617 | T8: 0.9960106383 | U8: 0.9680851064 | V8: 0.9388297872 | W8: 0.9095744681 | X8: 0.8404255319 | Y8: 0.58 | Z8: 0.59 | AA8: 0.595 | AB8: 0.6 | AC8: 0.61 | AD8: 0.62 | AE8: 0.64 | AF8: 0.9099526066 | AG8: 0.9488151659 | AH8: 0.9229383886 | AI8: 0.8970616114 | AJ8: 0.9347867299 | AK8: 0.9725118483 | AL8: 0.9584834123 | AM8: =Y8*C8+($A$4-80)*AF8*$A$8/1000 -> 29.30851064 | AN8: =Z8*E8+($A$4-80)*AG8*$A$8/1000 -> 28.69581117 | AO8: =AA8*G8+($A$4-80)*AH8*$A$8/1000 -> 28.14975066 | AP8: =AB8*I8+($A$4-80)*AI8*$A$8/1000 -> 27.59042553 | AQ8: =AC8*K8+($A$4-80)*AJ8*$A$8/1000 -> 27.20259309 | AR8: =AD8*M8+($A$4-80)*AK8*$A$8/1000 -> 26.78696809 | AS8: =AE8*O8+($A$4-80)*AL8*$A$8/1000 -> 25.54893617
B9: 67 | C9: 48.00531915 | D9: 35.04388298 | E9: =S9*$E$13 -> 45.98404255 | F9: =IF(AN9>E9,E9,AN9) -> 34.02819149 | G9: 44.84707447 | H9: =IF(AO9>G9,G9,AO9) -> 33.63530585 | I9: 43.71010638 | J9: =IF(AP9>I9,I9,AP9) -> 33.21968085 | K9: 42.32047872 | L9: =IF(AQ9>K9,K9,AQ9) -> 32.79837101 | M9: 40.93085106 | N9: =IF(AR9>M9,M9,AR9) -> 32.33537234 | O9: 37.6462766 | P9: =IF(AS9>O9,O9,AS9) -> 30.49348404 | R9: 1.010638298 | S9: 0.9680851064 | T9: 0.9441489362 | U9: 0.920212766 | V9: 0.8909574468 | W9: 0.8617021277 | X9: 0.7925531915 | Y9: 0.73 | Z9: 0.74 | AA9: 0.75 | AB9: 0.76 | AC9: 0.775 | AD9: 0.79 | AE9: 0.81 | AF9: 1.008530806 | AG9: 0.9660663507 | AH9: 0.9421800948 | AI9: 0.9182938389 | AJ9: 0.950521327 | AK9: 0.9827488152 | AL9: 0.9038862559 | AM9: =Y9*C9+($A$4-80)*AF9*$A$8/1000 -> 35.04388298 | AN9: =Z9*E9+($A$4-80)*AG9*$A$8/1000 -> 34.02819149 | AO9: =AA9*G9+($A$4-80)*AH9*$A$8/1000 -> 33.63530585 | AP9: =AB9*I9+($A$4-80)*AI9*$A$8/1000 -> 33.21968085 | AQ9: =AC9*K9+($A$4-80)*AJ9*$A$8/1000 -> 32.79837101 | AR9: =AD9*M9+($A$4-80)*AK9*$A$8/1000 -> 32.33537234 | AS9: =AE9*O9+($A$4-80)*AL9*$A$8/1000 -> 30.49348404
B10: 63 | C10: 45.4787234 | D10: 40.47606383 | E10: =S10*$E$13 -> 43.45744681 | F10: 39.5462766 | G10: 42.32047872 | H10: 39.14644282 | I10: 41.18351064 | J10: 38.7125 | K10: 39.92021277 | L10: 38.12380319 | M10: 38.65691489 | N10: 37.49720745 | O10: 35.625 | P10: 35.625 | R10: 0.9574468085 | S10: 0.914893617 | T10: 0.8909574468 | U10: 0.8670212766 | V10: 0.8404255319 | W10: 0.8138297872 | X10: 0.75 | Y10: 0.89 | Z10: 0.91 | AA10: 0.925 | AB10: 0.94 | AC10: 0.955 | AD10: 0.97 | AE10: 1 | AF10: 0.955450237 | AG10: 0.912985782 | AH10: 0.92 | AI10: 0.927014218 | AJ10: 0.9275829384 | AK10: 0.9281516588 | AL10: 0.8553554502 | AM10: 40.47606383 | AN10: =Z10*E10+($A$4-80)*AG10*$A$8/1000 -> 39.5462766 | AO10: =AA10*G10+($A$4-80)*AH10*$A$8/1000 -> 39.14644282 | AP10: 38.7125 | AQ10: 38.12380319 | AR10: 37.49720745 | AS10: 35.625
B11: 59 | C11: 43.96276596 | D11: 43.96276596 | E11: =S11*$E$13 -> 42.19414894 | F11: 42.19414894 | G11: 41.18351064 | H11: 41.18351064 | I11: 40.17287234 | J11: 40.17287234 | K11: 39.16223404 | L11: 39.16223404 | M11: 38.15159574 | N11: 38.15159574 | O11: 35.625 | P11: 35.625 | R11: 0.9255319149 | S11: 0.8882978723 | T11: 0.8670212766 | U11: 0.8457446809 | V11: 0.8244680851 | W11: 0.8031914894 | X11: 0.75 | Y11: 1 | Z11: 1 | AA11: 1 | AB11: 1 | AC11: 1 | AD11: 1 | AE11: 1 | AF11: 0.5277725118 | AG11: 0.3165876777 | AH11: 0.2487203791 | AI11: 0.1808530806 | AJ11: 0.09042654028 | AK11: 0 | AL11: 0 | AM11: 43.96276596 | AN11: =Z11*E11+($A$4-80)*AG11*$A$8/1000 -> 42.19414894 | AO11: =AA11*G11+($A$4-80)*AH11*$A$8/1000 -> 41.18351064 | AP11: =AB11*I11+($A$4-80)*AI11*$A$8/1000 -> 40.17287234 | AQ11: 39.16223404 | AR11: 38.15159574 | AS11: 35.625
A12: 1250 | B12: 71 | C12: 52.4268617 | D12: 31.98038564 | E12: =S12*$E$13 -> 49.90026596 | F12: 30.93816489 | G12: 48.70013298 | H12: 30.68108378 | I12: 47.5 | J12: 30.4 | K12: 45.85771277 | L12: 29.57822473 | M12: 44.21542553 | N12: 28.7400266 | O12: 40.93085106 | P12: 27.83297872 | R12: 1.103723404 | S12: 1.050531915 | T12: 1.025265957 | U12: 1 | V12: 0.9654255319 | W12: 0.9308510638 | X12: 0.8617021277 | Y12: 0.61 | Z12: 0.62 | AA12: 0.63 | AB12: 0.64 | AC12: 0.645 | AD12: 0.65 | AE12: 0.68 | AF12: 0.9296 | AG12: 0.8848 | AH12: 0.92368 | AI12: 0.96256 | AJ12: 0.92928 | AK12: 0.896 | AL12: 0.93312 | AM12: =Y12*C12+($A$4-80)*AF12*$A$12/1000 -> 31.98038564 | AN12: =Z12*E12+($A$4-80)*AG12*$A$12/1000 -> 30.93816489 | AO12: =AA12*G12+($A$4-80)*AH12*$A$12/1000 -> 30.68108378 | AP12: =AB12*I12+($A$4-80)*AI12*$A$12/1000 -> 30.4 | AQ12: =AC12*K12+($A$4-80)*AJ12*$A$12/1000 -> 29.57822473 | AR12: =AD12*M12+($A$4-80)*AK12*$A$12/1000 -> 28.7400266 | AS12: =AE12*O12+($A$4-80)*AL12*$A$12/1000 -> 27.83297872
B13: 67 | C13: 49.90026596 | D13: 38.42320479 | E13: 47.5 | F13: 37.525 | G13: 46.23670213 | H13: 36.9893617 | I13: 44.97340426 | J13: 36.42845745 | K13: 43.45744681 | L13: 35.85239362 | M13: 41.94148936 | N13: 35.23085106 | O13: 38.90957447 | P13: 33.85132979 | R13: 1.050531915 | S13: 1 | T13: 0.9734042553 | U13: 0.9468085106 | V13: 0.914893617 | W13: 0.8829787234 | X13: 0.8191489362 | Y13: 0.77 | Z13: 0.79 | AA13: 0.8 | AB13: 0.81 | AC13: 0.825 | AD13: 0.84 | AE13: 0.87 | AF13: 0.8848 | AG13: 0.96256 | AH13: 0.93696 | AI13: 0.91136 | AJ13: 0.93376 | AK13: 0.95616 | AL13: 0.88704 | AM13: =Y13*C13+($A$4-80)*AF13*$A$12/1000 -> 38.42320479 | AN13: =Z13*E13+($A$4-80)*AG13*$A$12/1000 -> 37.525 | AO13: =AA13*G13+($A$4-80)*AH13*$A$12/1000 -> 36.9893617 | AP13: =AB13*I13+($A$4-80)*AI13*$A$12/1000 -> 36.42845745 | AQ13: =AC13*K13+($A$4-80)*AJ13*$A$12/1000 -> 35.85239362 | AR13: =AD13*M13+($A$4-80)*AK13*$A$12/1000 -> 35.23085106 | AS13: =AE13*O13+($A$4-80)*AL13*$A$12/1000 -> 33.85132979
B14: 63 | C14: 47.24734043 | D14: 44.4125 | E14: =S14*$E$13 -> 45.22606383 | F14: 43.86928191 | G14: 43.96276596 | H14: 43.08351064 | I14: 42.69946809 | J14: 42.2724734 | K14: 41.30984043 | L14: 41.10329122 | M14: 39.92021277 | N14: 39.92021277 | O14: 37.39361702 | P14: 37.39361702 | R14: 0.9946808511 | S14: 0.9521276596 | T14: 0.9255319149 | U14: 0.8989361702 | V14: 0.8696808511 | W14: 0.8404255319 | X14: 0.7872340426 | Y14: 0.94 | Z14: 0.97 | AA14: 0.98 | AB14: 0.99 | AC14: 0.995 | AD14: 1 | AE14: 1 | AF14: 0.8976 | AG14: 0.91648 | AH14: 0.89088 | AI14: 0.86528 | AJ14: 0.78656 | AK14: 0.70784 | AL14: 0.4736 | AM14: 44.4125 | AN14: =Z14*E14+($A$4-80)*AG14*$A$12/1000 -> 43.86928191 | AO14: =AA14*G14+($A$4-80)*AH14*$A$12/1000 -> 43.08351064 | AP14: 42.2724734 | AQ14: 41.10329122 | AR14: 39.92021277 | AS14: 37.39361702
B15: 59 | C15: 46.23670213 | D15: 46.23670213 | E15: 44.46808511 | F15: 44.46808511 | G15: 43.45744681 | H15: 43.45744681 | I15: 42.44680851 | J15: 42.44680851 | K15: 41.30984043 | L15: 41.30984043 | M15: 40.17287234 | N15: 40.17287234 | O15: 37.39361702 | P15: 37.39361702 | R15: 0.9734042553 | S15: 0.9361702128 | T15: 0.914893617 | U15: 0.8936170213 | V15: 0.8696808511 | W15: 0.8457446809 | X15: 0.7872340426 | Y15: 1 | Z15: 1 | AA15: 1 | AB15: 1 | AC15: 1 | AD15: 1 | AE15: 1 | AF15: 0.11712 | AG15: 0 | AH15: 0 | AI15: 0 | AJ15: 0 | AK15: 0 | AL15: 0 | AM15: 46.23670213 | AN15: =Z15*E15+($A$4-80)*AG15*$A$12/1000 -> 44.46808511 | AO15: =AA15*G15+($A$4-80)*AH15*$A$12/1000 -> 43.45744681 | AP15: 42.44680851 | AQ15: 41.30984043 | AR15: 40.17287234 | AS15: 37.39361702
A16: 1390 | B16: 71 | C16: 53.69015957 | D16: 33.82480053 | E16: 51.16356383 | F16: 32.74468085 | G16: 49.58444149 | H16: 31.98196476 | I16: 48.00531915 | J16: 31.20345745 | K16: 46.4893617 | L16: 30.68297872 | M16: 44.97340426 | N16: 30.13218085 | O16: 41.68882979 | P16: 29.18218085 | R16: 1.130319149 | S16: 1.07712766 | T16: 1.043882979 | U16: 1.010638298 | V16: 0.9787234043 | W16: 0.9468085106 | X16: 0.8776595745 | Y16: 0.63 | Z16: 0.64 | AA16: 0.645 | AB16: 0.65 | AC16: 0.66 | AD16: 0.67 | AE16: 0.7 | AF16: 0.9172661871 | AG16: 0.8741007194 | AH16: 0.8744604317 | AI16: 0.8748201439 | AJ16: 0.8728057554 | AK16: 0.8707913669 | AL16: 0.9021582734 | AM16: =Y16*C16+($A$4-80)*AF16*$A$16/1000 -> 33.82480053 | AN16: =Z16*E16+($A$4-80)*AG16*$A$16/1000 -> 32.74468085 | AO16: =AA16*G16+($A$4-80)*AH16*$A$16/1000 -> 31.98196476 | AP16: =AB16*I16+($A$4-80)*AI16*$A$16/1000 -> 31.20345745 | AQ16: =AC16*K16+($A$4-80)*AJ16*$A$16/1000 -> 30.68297872 | AR16: =AD16*M16+($A$4-80)*AK16*$A$16/1000 -> 30.13218085 | AS16: =AE16*O16+($A$4-80)*AL16*$A$16/1000 -> 29.18218085
B17: 67 | C17: 50.53191489 | D17: 39.92021277 | E17: 48.00531915 | F17: 38.88430851 | G17: 46.86835106 | H17: 38.66638963 | I17: 45.73138298 | J17: 38.4143617 | K17: 44.21542553 | L17: 37.80418883 | M17: 42.69946809 | N17: 37.14853723 | O17: 39.41489362 | P17: 35.86755319 | R17: 1.063829787 | S17: 1.010638298 | T17: 0.9867021277 | U17: 0.9627659574 | V17: 0.9308510638 | W17: 0.8989361702 | X17: 0.829787234 | Y17: 0.79 | Z17: 0.81 | AA17: 0.825 | AB17: 0.84 | AC17: 0.855 | AD17: 0.87 | AE17: 0.91 | AF17: 0.8633093525 | AG17: 0.8748201439 | AH17: 0.8801438849 | AI17: 0.8854676259 | AJ17: 0.9047482014 | AK17: 0.924028777 | AL17: 0.8978417266 | AM17: =Y17*C17+($A$4-80)*AF17*$A$16/1000 -> 39.92021277 | AN17: =Z17*E17+($A$4-80)*AG17*$A$16/1000 -> 38.88430851 | AO17: =AA17*G17+($A$4-80)*AH17*$A$16/1000 -> 38.66638963 | AP17: =AB17*I17+($A$4-80)*AI17*$A$16/1000 -> 38.4143617 | AQ17: =AC17*K17+($A$4-80)*AJ17*$A$16/1000 -> 37.80418883 | AR17: =AD17*M17+($A$4-80)*AK17*$A$16/1000 -> 37.14853723 | AS17: =AE17*O17+($A$4-80)*AL17*$A$16/1000 -> 35.86755319
B18: 63 | C18: 48.63696809 | D18: 47.66422872 | E18: 45.98404255 | F18: 45.98404255 | G18: 44.84707447 | H18: 44.84707447 | I18: 43.71010638 | J18: 43.71010638 | K18: 42.44680851 | L18: 42.44680851 | M18: 41.18351064 | N18: 41.18351064 | O18: 38.40425532 | P18: 38.40425532 | R18: 1.02393617 | S18: 0.9680851064 | T18: 0.9441489362 | U18: 0.920212766 | V18: 0.8936170213 | W18: 0.8670212766 | X18: 0.8085106383 | Y18: 0.98 | Z18: 1 | AA18: 1 | AB18: 1 | AC18: 1 | AD18: 1 | AE18: 1 | AF18: 0.8863309353 | AG18: 0.8379856115 | AH18: 0.7674820144 | AI18: 0.6969784173 | AJ18: 0.6064748201 | AK18: 0.515971223 | AL18: 0.3061870504 | AM18: 47.66422872 | AN18: =Z18*E18+($A$4-80)*AG18*$A$16/1000 -> 45.98404255 | AO18: =AA18*G18+($A$4-80)*AH18*$A$16/1000 -> 44.84707447 | AP18: 43.71010638 | AQ18: 42.44680851 | AR18: 41.18351064 | AS18: 38.40425532
B19: 59 | C19: 47.75265957 | D19: 47.75265957 | E19: 45.73138298 | F19: 45.73138298 | G19: 44.72074468 | H19: 44.72074468 | I19: 43.71010638 | J19: 43.71010638 | K19: 42.44680851 | L19: 42.44680851 | M19: 41.18351064 | N19: 41.18351064 | O19: 38.40425532 | P19: 38.40425532 | R19: 1.005319149 | S19: 0.9627659574 | T19: 0.9414893617 | U19: 0.920212766 | V19: 0.8936170213 | W19: 0.8670212766 | X19: 0.8085106383 | Y19: 1 | Z19: 1 | AA19: 1 | AB19: 1 | AC19: 1 | AD19: 1 | AE19: 1 | AF19: 0 | AG19: 0 | AH19: 0 | AI19: 0 | AJ19: 0 | AK19: 0 | AL19: 0 | AM19: 47.75265957 | AN19: =Z19*E19+($A$4-80)*AG19*$A$16/1000 -> 45.73138298 | AO19: =AA19*G19+($A$4-80)*AH19*$A$16/1000 -> 44.72074468 | AP19: 43.71010638 | AQ19: 42.44680851 | AR19: 41.18351064 | AS19: 38.40425532

Sheet XC16S_48 (hidden)
A2: XC16S_48
A3: Evaporator Air | C3: Condenser Entering Air Temperature ˚F
A4: 80 | B4: °F DB | C4: 85 | E4: 95 | G4: 100 | I4: 105 | K4: 110 | M4: 115 | O4: 125
A5: CFM | B5: EWB† ˚F | C5: Capacity Mbtuh | E5: Capacity Mbtuh | G5: Capacity Mbtuh | I5: Capacity Mbtuh | K5: Capacity Mbtuh | M5: Capacity Mbtuh | O5: Capacity Mbtuh
C6: Total | D6: Sens. | E6: Total | F6: Sens. | G6: Total | H6: Sens. | I6: Total | J6: Sens. | K6: Total | L6: Sens. | M6: Total | N6: Sens. | O6: Total | P6: Sens.
R7: Total Factors | Y7: Sens. % | AF7: IDB Adj | AM7: Sens Calc
A8: 1460 | B8: 71 | C8: =R8*$E$13 -> 51.37755102 | D8: =IF(AM8>C8,C8,AM8) -> 31.34030612 | E8: =S8*$E$13 -> 48.95408163 | F8: =IF(AN8>E8,E8,AN8) -> 30.35153061 | G8: =T8*$E$13 -> 47.5 | H8: =IF(AO8>G8,G8,AO8) -> 29.925 | I8: =U8*$E$13 -> 46.04591837 | J8: =IF(AP8>I8,I8,AP8) -> 29.46938776 | K8: =V8*$E$13 -> 44.59183673 | L8: =IF(AQ8>K8,K8,AQ8) -> 28.98469388 | M8: =W8*$E$13 -> 43.1377551 | N8: =IF(AR8>M8,M8,AR8) -> 28.47091837 | O8: =X8*$E$13 -> 39.74489796 | P8: =IF(AS8>O8,O8,AS8) -> 27.02653061 | R8: 1.081632653 | S8: 1.030612245 | T8: 1 | U8: 0.9693877551 | V8: 0.9387755102 | W8: 0.9081632653 | X8: 0.8367346939 | Y8: 0.61 | Z8: 0.62 | AA8: 0.63 | AB8: 0.64 | AC8: 0.65 | AD8: 0.66 | AE8: 0.68 | AF8: 1.016438356 | AG8: 0.9684931507 | AH8: 1.004794521 | AI8: 1.04109589 | AJ8: 1.03869863 | AK8: 1.03630137 | AL8: 1.010958904 | AM8: =Y8*C8+($A$4-80)*AF8*$A$8/1000 -> 31.34030612 | AN8: =Z8*E8+($A$4-80)*AG8*$A$8/1000 -> 30.35153061 | AO8: =AA8*G8+($A$4-80)*AH8*$A$8/1000 -> 29.925 | AP8: =AB8*I8+($A$4-80)*AI8*$A$8/1000 -> 29.46938776 | AQ8: =AC8*K8+($A$4-80)*AJ8*$A$8/1000 -> 28.98469388 | AR8: =AD8*M8+($A$4-80)*AK8*$A$8/1000 -> 28.47091837 | AS8: =AE8*O8+($A$4-80)*AL8*$A$8/1000 -> 27.02653061
B9: 67 | C9: 48.95408163 | D9: 37.20510204 | E9: =S9*$E$13 -> 46.53061224 | F9: =IF(AN9>E9,E9,AN9) -> 36.29387755 | G9: 45.07653061 | H9: =IF(AO9>G9,G9,AO9) -> 35.83584184 | I9: 43.62244898 | J9: =IF(AP9>I9,I9,AP9) -> 35.33418367 | K9: 42.16836735 | L9: =IF(AQ9>K9,K9,AQ9) -> 34.78890306 | M9: 40.71428571 | N9: =IF(AR9>M9,M9,AR9) -> 34.2 | O9: 37.80612245 | P9: =IF(AS9>O9,O9,AS9) -> 32.89132653 | R9: 1.030612245 | S9: 0.9795918367 | T9: 0.9489795918 | U9: 0.9183673469 | V9: 0.887755102 | W9: 0.8571428571 | X9: 0.7959183673 | Y9: 0.76 | Z9: 0.78 | AA9: 0.795 | AB9: 0.81 | AC9: 0.825 | AD9: 0.84 | AE9: 0.87 | AF9: 0.9684931507 | AG9: 0.9863013699 | AH9: 0.9863013699 | AI9: 0.9863013699 | AJ9: 0.9821917808 | AK9: 0.9780821918 | AL9: 0.9616438356 | AM9: =Y9*C9+($A$4-80)*AF9*$A$8/1000 -> 37.20510204 | AN9: =Z9*E9+($A$4-80)*AG9*$A$8/1000 -> 36.29387755 | AO9: =AA9*G9+($A$4-80)*AH9*$A$8/1000 -> 35.83584184 | AP9: =AB9*I9+($A$4-80)*AI9*$A$8/1000 -> 35.33418367 | AQ9: =AC9*K9+($A$4-80)*AJ9*$A$8/1000 -> 34.78890306 | AR9: =AD9*M9+($A$4-80)*AK9*$A$8/1000 -> 34.2 | AS9: =AE9*O9+($A$4-80)*AL9*$A$8/1000 -> 32.89132653
B10: 63 | C10: 46.53061224 | D10: 43.73877551 | E10: =S10*$E$13 -> 44.10714286 | F10: 42.34285714 | G10: 42.89540816 | H10: 41.82302296 | I10: 41.68367347 | J10: 41.26683673 | K10: 40.47193878 | L10: 40.26957908 | M10: 39.26020408 | N10: 39.26020408 | O10: 36.44897959 | P10: 36.44897959 | R10: 0.9795918367 | S10: 0.9285714286 | T10: 0.9030612245 | U10: 0.8775510204 | V10: 0.8520408163 | W10: 0.8265306122 | X10: 0.7673469388 | Y10: 0.94 | Z10: 0.96 | AA10: 0.975 | AB10: 0.99 | AC10: 0.995 | AD10: 1 | AE10: 1 | AF10: 0.9863013699 | AG10: 0.9349315068 | AH10: 0.9386986301 | AI10: 0.9424657534 | AJ10: 0.8595890411 | AK10: 0.7767123288 | AL10: 0.5150684932 | AM10: 43.73877551 | AN10: =Z10*E10+($A$4-80)*AG10*$A$8/1000 -> 42.34285714 | AO10: =AA10*G10+($A$4-80)*AH10*$A$8/1000 -> 41.82302296 | AP10: 41.26683673 | AQ10: 40.26957908 | AR10: 39.26020408 | AS10: 36.44897959
B11: 59 | C11: 45.56122449 | D11: 45.56122449 | E11: =S11*$E$13 -> 43.62244898 | F11: 43.62244898 | G11: 42.41071429 | H11: 42.41071429 | I11: 41.19897959 | J11: 41.19897959 | K11: 40.22959184 | L11: 40.22959184 | M11: 39.26020408 | N11: 39.26020408 | O11: 36.44897959 | P11: 36.44897959 | R11: 0.9591836735 | S11: 0.9183673469 | T11: 0.8928571429 | U11: 0.8673469388 | V11: 0.8469387755 | W11: 0.8265306122 | X11: 0.7673469388 | Y11: 1 | Z11: 1 | AA11: 1 | AB11: 1 | AC11: 1 | AD11: 1 | AE11: 1 | AF11: 0.1931506849 | AG11: 0.06164383562 | AH11: 0.03082191781 | AI11: 0 | AJ11: 0 | AK11: 0 | AL11: 0 | AM11: 45.56122449 | AN11: =Z11*E11+($A$4-80)*AG11*$A$8/1000 -> 43.62244898 | AO11: =AA11*G11+($A$4-80)*AH11*$A$8/1000 -> 42.41071429 | AP11: =AB11*I11+($A$4-80)*AI11*$A$8/1000 -> 41.19897959 | AQ11: 40.22959184 | AR11: 39.26020408 | AS11: 36.44897959
A12: 1595 | B12: 71 | C12: 52.34693878 | D12: 32.45510204 | E12: =S12*$E$13 -> 49.43877551 | F12: 31.64081633 | G12: 47.98469388 | H12: 30.95012755 | I12: 46.53061224 | J12: 30.24489796 | K12: 45.07653061 | L12: 29.7505102 | M12: 43.62244898 | N12: 29.22704082 | O12: 40.22959184 | P12: 28.16071429 | R12: 1.102040816 | S12: 1.040816327 | T12: 1.010204082 | U12: 0.9795918367 | V12: 0.9489795918 | W12: 0.9183673469 | X12: 0.8469387755 | Y12: 0.62 | Z12: 0.64 | AA12: 0.645 | AB12: 0.65 | AC12: 0.66 | AD12: 0.67 | AE12: 0.7 | AF12: 0.9479623824 | AG12: 1.023197492 | AH12: 0.9931034483 | AI12: 0.9630094044 | AJ12: 0.9611285266 | AK12: 0.9592476489 | AL12: 0.9887147335 | AM12: =Y12*C12+($A$4-80)*AF12*$A$12/1000 -> 32.45510204 | AN12: =Z12*E12+($A$4-80)*AG12*$A$12/1000 -> 31.64081633 | AO12: =AA12*G12+($A$4-80)*AH12*$A$12/1000 -> 30.95012755 | AP12: =AB12*I12+($A$4-80)*AI12*$A$12/1000 -> 30.24489796 | AQ12: =AC12*K12+($A$4-80)*AJ12*$A$12/1000 -> 29.7505102 | AR12: =AD12*M12+($A$4-80)*AK12*$A$12/1000 -> 29.22704082 | AS12: =AE12*O12+($A$4-80)*AL12*$A$12/1000 -> 28.16071429
B13: 67 | C13: 49.92346939 | D13: 39.43954082 | E13: 47.5 | F13: 38.475 | G13: 46.04591837 | H13: 37.75765306 | I13: 44.59183673 | J13: 37.01122449 | K13: 43.1377551 | L13: 36.66709184 | M13: 41.68367347 | N13: 36.26479592 | O13: 38.29081633 | P13: 34.46173469 | R13: 1.051020408 | S13: 1 | T13: 0.9693877551 | U13: 0.9387755102 | V13: 0.9081632653 | W13: 0.8775510204 | X13: 0.806122449 | Y13: 0.79 | Z13: 0.81 | AA13: 0.82 | AB13: 0.83 | AC13: 0.85 | AD13: 0.87 | AE13: 0.9 | AF13: 1.03322884 | AG13: 0.9830721003 | AH13: 0.9529780564 | AI13: 0.9228840125 | AJ13: 0.9467084639 | AK13: 0.9705329154 | AL13: 0.9410658307 | AM13: =Y13*C13+($A$4-80)*AF13*$A$12/1000 -> 39.43954082 | AN13: =Z13*E13+($A$4-80)*AG13*$A$12/1000 -> 38.475 | AO13: =AA13*G13+($A$4-80)*AH13*$A$12/1000 -> 37.75765306 | AP13: =AB13*I13+($A$4-80)*AI13*$A$12/1000 -> 37.01122449 | AQ13: =AC13*K13+($A$4-80)*AJ13*$A$12/1000 -> 36.66709184 | AR13: =AD13*M13+($A$4-80)*AK13*$A$12/1000 -> 36.26479592 | AS13: =AE13*O13+($A$4-80)*AL13*$A$12/1000 -> 34.46173469
B14: 63 | C14: 47.5 | D14: 46.075 | E14: =S14*$E$13 -> 45.07653061 | F14: 44.62576531 | G14: 43.86479592 | H14: 43.64547194 | I14: 42.65306122 | J14: 42.65306122 | K14: 41.19897959 | L14: 41.19897959 | M14: 39.74489796 | N14: 39.74489796 | O14: 37.32142857 | P14: 37.32142857 | R14: 1 | S14: 0.9489795918 | T14: 0.9234693878 | U14: 0.8979591837 | V14: 0.8673469388 | W14: 0.8367346939 | X14: 0.7857142857 | Y14: 0.97 | Z14: 0.99 | AA14: 0.995 | AB14: 1 | AC14: 1 | AD14: 1 | AE14: 1 | AF14: 0.9830721003 | AG14: 0.9329153605 | AH14: 0.8526645768 | AI14: 0.7724137931 | AJ14: 0.6689655172 | AK14: 0.5655172414 | AL14: 0.3379310345 | AM14: 46.075 | AN14: =Z14*E14+($A$4-80)*AG14*$A$12/1000 -> 44.62576531 | AO14: =AA14*G14+($A$4-80)*AH14*$A$12/1000 -> 43.64547194 | AP14: 42.65306122 | AQ14: 41.19897959 | AR14: 39.74489796 | AS14: 37.32142857
B15: 59 | C15: 47.01530612 | D15: 47.01530612 | E15: 44.59183673 | F15: 44.59183673 | G15: 43.62244898 | H15: 43.62244898 | I15: 42.65306122 | J15: 42.65306122 | K15: 41.44132653 | L15: 41.44132653 | M15: 40.22959184 | N15: 40.22959184 | O15: 37.32142857 | P15: 37.32142857 | R15: 0.9897959184 | S15: 0.9387755102 | T15: 0.9183673469 | U15: 0.8979591837 | V15: 0.8724489796 | W15: 0.8469387755 | X15: 0.7857142857 | Y15: 1 | Z15: 1 | AA15: 1 | AB15: 1 | AC15: 1 | AD15: 1 | AE15: 1 | AF15: 0 | AG15: 0 | AH15: 0 | AI15: 0 | AJ15: 0 | AK15: 0 | AL15: 0 | AM15: 47.01530612 | AN15: =Z15*E15+($A$4-80)*AG15*$A$12/1000 -> 44.59183673 | AO15: =AA15*G15+($A$4-80)*AH15*$A$12/1000 -> 43.62244898 | AP15: 42.65306122 | AQ15: 41.44132653 | AR15: 40.22959184 | AS15: 37.32142857
A16: 1815 | B16: 71 | C16: 53.80102041 | D16: 34.97066327 | E16: 50.89285714 | F16: 34.09821429 | G16: 49.19642857 | H16: 33.45357143 | I16: 47.5 | J16: 32.775 | K16: 46.04591837 | L16: 32.23214286 | M16: 44.59183673 | N16: 31.66020408 | O16: 41.19897959 | P16: 30.4872449 | R16: 1.132653061 | S16: 1.071428571 | T16: 1.035714286 | U16: 1 | V16: 0.9693877551 | W16: 0.9387755102 | X16: 0.8673469388 | Y16: 0.65 | Z16: 0.67 | AA16: 0.68 | AB16: 0.69 | AC16: 0.7 | AD16: 0.71 | AE16: 0.74 | AF16: 0.9785123967 | AG16: 0.9834710744 | AH16: 0.9776859504 | AI16: 0.9719008264 | AJ16: 0.9674931129 | AK16: 0.9630853994 | AL16: 0.9834710744 | AM16: =Y16*C16+($A$4-80)*AF16*$A$16/1000 -> 34.97066327 | AN16: =Z16*E16+($A$4-80)*AG16*$A$16/1000 -> 34.09821429 | AO16: =AA16*G16+($A$4-80)*AH16*$A$16/1000 -> 33.45357143 | AP16: =AB16*I16+($A$4-80)*AI16*$A$16/1000 -> 32.775 | AQ16: =AC16*K16+($A$4-80)*AJ16*$A$16/1000 -> 32.23214286 | AR16: =AD16*M16+($A$4-80)*AK16*$A$16/1000 -> 31.66020408 | AS16: =AE16*O16+($A$4-80)*AL16*$A$16/1000 -> 30.4872449
B17: 67 | C17: 51.37755102 | D17: 42.64336735 | E17: 48.46938776 | F17: 41.19897959 | G17: 47.01530612 | H17: 40.6682398 | I17: 45.56122449 | J17: 40.09387755 | K17: 44.10714286 | L17: 39.47589286 | M17: 42.65306122 | N17: 38.81428571 | O17: 39.26020408 | P17: 37.68979592 | R17: 1.081632653 | S17: 1.020408163 | T17: 0.9897959184 | U17: 0.9591836735 | V17: 0.9285714286 | W17: 0.8979591837 | X17: 0.8265306122 | Y17: 0.83 | Z17: 0.85 | AA17: 0.865 | AB17: 0.88 | AC17: 0.895 | AD17: 0.91 | AE17: 0.96 | AF17: 0.9344352617 | AG17: 0.9366391185 | AH17: 0.9344352617 | AI17: 0.932231405 | AJ17: 0.9267217631 | AK17: 0.9212121212 | AL17: 0.9371900826 | AM17: =Y17*C17+($A$4-80)*AF17*$A$16/1000 -> 42.64336735 | AN17: =Z17*E17+($A$4-80)*AG17*$A$16/1000 -> 41.19897959 | AO17: =AA17*G17+($A$4-80)*AH17*$A$16/1000 -> 40.6682398 | AP17: =AB17*I17+($A$4-80)*AI17*$A$16/1000 -> 40.09387755 | AQ17: =AC17*K17+($A$4-80)*AJ17*$A$16/1000 -> 39.47589286 | AR17: =AD17*M17+($A$4-80)*AK17*$A$16/1000 -> 38.81428571 | AS17: =AE17*O17+($A$4-80)*AL17*$A$16/1000 -> 37.68979592
B18: 63 | C18: 48.95408163 | D18: 48.95408163 | E18: 46.53061224 | F18: 46.53061224 | G18: 45.31887755 | H18: 45.31887755 | I18: 44.10714286 | J18: 44.10714286 | K18: 42.65306122 | L18: 42.65306122 | M18: 41.19897959 | N18: 41.19897959 | O18: 38.7755102 | P18: 38.7755102 | R18: 1.030612245 | S18: 0.9795918367 | T18: 0.9540816327 | U18: 0.9285714286 | V18: 0.8979591837 | W18: 0.8673469388 | X18: 0.8163265306 | Y18: 1 | Z18: 1 | AA18: 1 | AB18: 1 | AC18: 1 | AD18: 1 | AE18: 1 | AF18: 0.8347107438 | AG18: 0.6876033058 | AH18: 0.5944903581 | AI18: 0.5013774105 | AJ18: 0.391184573 | AK18: 0.2809917355 | AL18: 0.08815426997 | AM18: 48.95408163 | AN18: =Z18*E18+($A$4-80)*AG18*$A$16/1000 -> 46.53061224 | AO18: =AA18*G18+($A$4-80)*AH18*$A$16/1000 -> 45.31887755 | AP18: 44.10714286 | AQ18: 42.65306122 | AR18: 41.19897959 | AS18: 38.7755102
B19: 59 | C19: 48.95408163 | D19: 48.95408163 | E19: 46.53061224 | F19: 46.53061224 | G19: 45.31887755 | H19: 45.31887755 | I19: 44.10714286 | J19: 44.10714286 | K19: 42.65306122 | L19: 42.65306122 | M19: 41.19897959 | N19: 41.19897959 | O19: 38.7755102 | P19: 38.7755102 | R19: 1.030612245 | S19: 0.9795918367 | T19: 0.9540816327 | U19: 0.9285714286 | V19: 0.8979591837 | W19: 0.8673469388 | X19: 0.8163265306 | Y19: 1 | Z19: 1 | AA19: 1 | AB19: 1 | AC19: 1 | AD19: 1 | AE19: 1 | AF19: 0 | AG19: 0 | AH19: 0 | AI19: 0 | AJ19: 0 | AK19: 0 | AL19: 0 | AM19: 48.95408163 | AN19: =Z19*E19+($A$4-80)*AG19*$A$16/1000 -> 46.53061224 | AO19: =AA19*G19+($A$4-80)*AH19*$A$16/1000 -> 45.31887755 | AP19: 44.10714286 | AQ19: 42.65306122 | AR19: 41.19897959 | AS19: 38.7755102

Sheet XC16S_60 (hidden)
A2: XC16S_60
A3: Evaporator Air | C3: Condenser Entering Air Temperature ˚F
A4: 80 | B4: °F DB | C4: 85 | E4: 95 | G4: 100 | I4: 105 | K4: 110 | M4: 115 | O4: 125
A5: CFM | B5: EWB† ˚F | C5: Capacity Mbtuh | E5: Capacity Mbtuh | G5: Capacity Mbtuh | I5: Capacity Mbtuh | K5: Capacity Mbtuh | M5: Capacity Mbtuh | O5: Capacity Mbtuh
C6: Total | D6: Sens. | E6: Total | F6: Sens. | G6: Total | H6: Sens. | I6: Total | J6: Sens. | K6: Total | L6: Sens. | M6: Total | N6: Sens. | O6: Total | P6: Sens.
R7: Total Factors | Y7: Sens. % | AF7: IDB Adj | AM7: Sens Calc
A8: 1575 | B8: 71 | C8: =R8*$E$13 -> 51.09243697 | D8: =IF(AM8>C8,C8,AM8) -> 29.63361345 | E8: =S8*$E$13 -> 48.69747899 | F8: =IF(AN8>E8,E8,AN8) -> 28.73151261 | G8: =T8*$E$13 -> 47.5 | H8: =IF(AO8>G8,G8,AO8) -> 28.2625 | I8: =U8*$E$13 -> 46.30252101 | J8: =IF(AP8>I8,I8,AP8) -> 27.78151261 | K8: =V8*$E$13 -> 45.10504202 | L8: =IF(AQ8>K8,K8,AQ8) -> 27.28855042 | M8: =W8*$E$13 -> 43.90756303 | N8: =IF(AR8>M8,M8,AR8) -> 26.78361345 | O8: =X8*$E$13 -> 40.71428571 | P8: =IF(AS8>O8,O8,AS8) -> 25.65 | R8: 1.075630252 | S8: 1.025210084 | T8: 1 | U8: 0.974789916 | V8: 0.9495798319 | W8: 0.9243697479 | X8: 0.8571428571 | Y8: 0.58 | Z8: 0.59 | AA8: 0.595 | AB8: 0.6 | AC8: 0.605 | AD8: 0.61 | AE8: 0.63 | AF8: 0.9752380952 | AG8: 1.006984127 | AH8: 0.9822222222 | AI8: 0.9574603175 | AJ8: 0.9676190476 | AK8: 0.9777777778 | AL8: 0.9714285714 | AM8: =Y8*C8+($A$4-80)*AF8*$A$8/1000 -> 29.63361345 | AN8: =Z8*E8+($A$4-80)*AG8*$A$8/1000 -> 28.73151261 | AO8: =AA8*G8+($A$4-80)*AH8*$A$8/1000 -> 28.2625 | AP8: =AB8*I8+($A$4-80)*AI8*$A$8/1000 -> 27.78151261 | AQ8: =AC8*K8+($A$4-80)*AJ8*$A$8/1000 -> 27.28855042 | AR8: =AD8*M8+($A$4-80)*AK8*$A$8/1000 -> 26.78361345 | AS8: =AE8*O8+($A$4-80)*AL8*$A$8/1000 -> 25.65
B9: 67 | C9: 48.29831933 | D9: 34.77478992 | E9: =S9*$E$13 -> 46.30252101 | F9: =IF(AN9>E9,E9,AN9) -> 33.80084034 | G9: 45.10504202 | H9: =IF(AO9>G9,G9,AO9) -> 33.37773109 | I9: 43.90756303 | J9: =IF(AP9>I9,I9,AP9) -> 32.93067227 | K9: 42.71008403 | L9: =IF(AQ9>K9,K9,AQ9) -> 32.45966387 | M9: 41.51260504 | N9: =IF(AR9>M9,M9,AR9) -> 31.96470588 | O9: 38.71848739 | P9: =IF(AS9>O9,O9,AS9) -> 30.97478992 | R9: 1.016806723 | S9: 0.974789916 | T9: 0.9495798319 | U9: 0.9243697479 | V9: 0.8991596639 | W9: 0.8739495798 | X9: 0.8151260504 | Y9: 0.72 | Z9: 0.73 | AA9: 0.74 | AB9: 0.75 | AC9: 0.76 | AD9: 0.77 | AE9: 0.8 | AF9: 0.9219047619 | AG9: 0.9574603175 | AH9: 0.9676190476 | AI9: 0.9777777778 | AJ9: 0.9841269841 | AK9: 0.9904761905 | AL9: 0.9853968254 | AM9: =Y9*C9+($A$4-80)*AF9*$A$8/1000 -> 34.77478992 | AN9: =Z9*E9+($A$4-80)*AG9*$A$8/1000 -> 33.80084034 | AO9: =AA9*G9+($A$4-80)*AH9*$A$8/1000 -> 33.37773109 | AP9: =AB9*I9+($A$4-80)*AI9*$A$8/1000 -> 32.93067227 | AQ9: =AC9*K9+($A$4-80)*AJ9*$A$8/1000 -> 32.45966387 | AR9: =AD9*M9+($A$4-80)*AK9*$A$8/1000 -> 31.96470588 | AS9: =AE9*O9+($A$4-80)*AL9*$A$8/1000 -> 30.97478992
B10: 63 | C10: 45.50420168 | D10: 39.58865546 | E10: =S10*$E$13 -> 43.50840336 | F10: 39.15756303 | G10: 42.5105042 | H10: 38.68455882 | I10: 41.51260504 | J10: 38.19159664 | K10: 40.31512605 | L10: 37.69464286 | M10: 39.11764706 | N10: 37.16176471 | O10: 36.32352941 | P10: 35.59705882 | R10: 0.9579831933 | S10: 0.9159663866 | T10: 0.8949579832 | U10: 0.8739495798 | V10: 0.8487394958 | W10: 0.8235294118 | X10: 0.7647058824 | Y10: 0.87 | Z10: 0.9 | AA10: 0.91 | AB10: 0.92 | AC10: 0.935 | AD10: 0.95 | AE10: 0.98 | AF10: 0.940952381 | AG10: 0.9688888889 | AH10: 0.9796825397 | AI10: 0.9904761905 | AJ10: 0.993015873 | AK10: 0.9955555556 | AL10: 0.9244444444 | AM10: 39.58865546 | AN10: =Z10*E10+($A$4-80)*AG10*$A$8/1000 -> 39.15756303 | AO10: =AA10*G10+($A$4-80)*AH10*$A$8/1000 -> 38.68455882 | AP10: 38.19159664 | AQ10: 37.69464286 | AR10: 37.16176471 | AS10: 35.59705882
B11: 59 | C11: 43.50840336 | D11: 43.50840336 | E11: =S11*$E$13 -> 41.91176471 | F11: 41.91176471 | G11: 41.11344538 | H11: 41.11344538 | I11: 40.31512605 | J11: 40.31512605 | K11: 39.31722689 | L11: 39.31722689 | M11: 38.31932773 | N11: 38.31932773 | O11: 35.92436975 | P11: 35.92436975 | R11: 0.9159663866 | S11: 0.8823529412 | T11: 0.8655462185 | U11: 0.8487394958 | V11: 0.8277310924 | W11: 0.8067226891 | X11: 0.756302521 | Y11: 1 | Z11: 1 | AA11: 1 | AB11: 1 | AC11: 1 | AD11: 1 | AE11: 1 | AF11: 0.6228571429 | AG11: 0.4666666667 | AH11: 0.3936507937 | AI11: 0.3206349206 | AJ11: 0.2212698413 | AK11: 0.1219047619 | AL11: 0 | AM11: 43.50840336 | AN11: =Z11*E11+($A$4-80)*AG11*$A$8/1000 -> 41.91176471 | AO11: =AA11*G11+($A$4-80)*AH11*$A$8/1000 -> 41.11344538 | AP11: =AB11*I11+($A$4-80)*AI11*$A$8/1000 -> 40.31512605 | AQ11: 39.31722689 | AR11: 38.31932773 | AS11: 35.92436975
A12: 1800 | B12: 71 | C12: 52.68907563 | D12: 31.61344538 | E12: =S12*$E$13 -> 50.29411765 | F12: 30.67941176 | G12: 49.09663866 | H12: 30.19443277 | I12: 47.89915966 | J12: 29.69747899 | K12: 46.50210084 | L12: 29.29632353 | M12: 45.10504202 | N12: 28.86722689 | O12: 41.91176471 | P12: 27.66176471 | R12: 1.109243697 | S12: 1.058823529 | T12: 1.033613445 | U12: 1.008403361 | V12: 0.9789915966 | W12: 0.9495798319 | X12: 0.8823529412 | Y12: 0.6 | Z12: 0.61 | AA12: 0.615 | AB12: 0.62 | AC12: 0.63 | AD12: 0.64 | AE12: 0.66 | AF12: 0.9533333333 | AG12: 0.98 | AH12: 0.9566666667 | AI12: 0.9333333333 | AJ12: 0.9375 | AK12: 0.9416666667 | AL12: 0.9916666667 | AM12: =Y12*C12+($A$4-80)*AF12*$A$12/1000 -> 31.61344538 | AN12: =Z12*E12+($A$4-80)*AG12*$A$12/1000 -> 30.67941176 | AO12: =AA12*G12+($A$4-80)*AH12*$A$12/1000 -> 30.19443277 | AP12: =AB12*I12+($A$4-80)*AI12*$A$12/1000 -> 29.69747899 | AQ12: =AC12*K12+($A$4-80)*AJ12*$A$12/1000 -> 29.29632353 | AR12: =AD12*M12+($A$4-80)*AK12*$A$12/1000 -> 28.86722689 | AS12: =AE12*O12+($A$4-80)*AL12*$A$12/1000 -> 27.66176471
B13: 67 | C13: 49.89495798 | D13: 37.42121849 | E13: 47.5 | F13: 36.1 | G13: 46.30252101 | H13: 35.65294118 | I13: 45.10504202 | J13: 35.18193277 | K13: 43.90756303 | L13: 34.90651261 | M13: 42.71008403 | N13: 34.59516807 | O13: 39.51680672 | P13: 33.19411765 | R13: 1.050420168 | S13: 1 | T13: 0.974789916 | U13: 0.9495798319 | V13: 0.9243697479 | W13: 0.8991596639 | X13: 0.8319327731 | Y13: 0.75 | Z13: 0.76 | AA13: 0.77 | AB13: 0.78 | AC13: 0.795 | AD13: 0.81 | AE13: 0.84 | AF13: 0.9722222222 | AG13: 0.9255555556 | AH13: 0.9336111111 | AI13: 0.9416666667 | AJ13: 0.9463888889 | AK13: 0.9511111111 | AL13: 0.935 | AM13: =Y13*C13+($A$4-80)*AF13*$A$12/1000 -> 37.42121849 | AN13: =Z13*E13+($A$4-80)*AG13*$A$12/1000 -> 36.1 | AO13: =AA13*G13+($A$4-80)*AH13*$A$12/1000 -> 35.65294118 | AP13: =AB13*I13+($A$4-80)*AI13*$A$12/1000 -> 35.18193277 | AQ13: =AC13*K13+($A$4-80)*AJ13*$A$12/1000 -> 34.90651261 | AR13: =AD13*M13+($A$4-80)*AK13*$A$12/1000 -> 34.59516807 | AS13: =AE13*O13+($A$4-80)*AL13*$A$12/1000 -> 33.19411765
B14: 63 | C14: 47.10084034 | D14: 43.33277311 | E14: =S14*$E$13 -> 45.10504202 | F14: 42.3987395 | G14: 43.90756303 | H14: 41.71218487 | I14: 42.71008403 | J14: 41.00168067 | K14: 41.51260504 | L14: 40.47478992 | M14: 40.31512605 | N14: 39.91197479 | O14: 37.5210084 | P14: 37.5210084 | R14: 0.9915966387 | S14: 0.9495798319 | T14: 0.9243697479 | U14: 0.8991596639 | V14: 0.8739495798 | W14: 0.8487394958 | X14: 0.7899159664 | Y14: 0.92 | Z14: 0.94 | AA14: 0.95 | AB14: 0.96 | AC14: 0.975 | AD14: 0.99 | AE14: 1 | AF14: 0.9177777778 | AG14: 0.9416666667 | AH14: 0.9166666667 | AI14: 0.8916666667 | AJ14: 0.8947222222 | AK14: 0.8977777778 | AL14: 0.7311111111 | AM14: 43.33277311 | AN14: =Z14*E14+($A$4-80)*AG14*$A$12/1000 -> 42.3987395 | AO14: =AA14*G14+($A$4-80)*AH14*$A$12/1000 -> 41.71218487 | AP14: 41.00168067 | AQ14: 40.47478992 | AR14: 39.91197479 | AS14: 37.5210084
B15: 59 | C15: 45.50420168 | D15: 45.50420168 | E15: 43.90756303 | F15: 43.90756303 | G15: 43.1092437 | H15: 43.1092437 | I15: 42.31092437 | J15: 42.31092437 | K15: 41.11344538 | L15: 41.11344538 | M15: 39.91596639 | N15: 39.91596639 | O15: 37.5210084 | P15: 37.5210084 | R15: 0.9579831933 | S15: 0.9243697479 | T15: 0.9075630252 | U15: 0.8907563025 | V15: 0.8655462185 | W15: 0.8403361345 | X15: 0.7899159664 | Y15: 1 | Z15: 1 | AA15: 1 | AB15: 1 | AC15: 1 | AD15: 1 | AE15: 1 | AF15: 0.3166666667 | AG15: 0.1833333333 | AH15: 0.09166666667 | AI15: 0 | AJ15: 0 | AK15: 0 | AL15: 0 | AM15: 45.50420168 | AN15: =Z15*E15+($A$4-80)*AG15*$A$12/1000 -> 43.90756303 | AO15: =AA15*G15+($A$4-80)*AH15*$A$12/1000 -> 43.1092437 | AP15: 42.31092437 | AQ15: 41.11344538 | AR15: 39.91596639 | AS15: 37.5210084
A16: 2000 | B16: 71 | C16: 53.88655462 | D16: 33.40966387 | E16: 51.49159664 | F16: 32.43970588 | G16: 50.29411765 | H16: 31.93676471 | I16: 49.09663866 | J16: 31.42184874 | K16: 47.5 | L16: 30.875 | M16: 45.90336134 | N16: 30.29621849 | O16: 43.1092437 | P16: 29.31428571 | R16: 1.134453782 | S16: 1.084033613 | T16: 1.058823529 | U16: 1.033613445 | V16: 1 | W16: 0.9663865546 | X16: 0.9075630252 | Y16: 0.62 | Z16: 0.63 | AA16: 0.635 | AB16: 0.64 | AC16: 0.65 | AD16: 0.66 | AE16: 0.68 | AF16: 0.945 | AG16: 0.9675 | AH16: 0.945 | AI16: 0.9225 | AJ16: 0.92125 | AK16: 0.92 | AL16: 0.918 | AM16: =Y16*C16+($A$4-80)*AF16*$A$16/1000 -> 33.40966387 | AN16: =Z16*E16+($A$4-80)*AG16*$A$16/1000 -> 32.43970588 | AO16: =AA16*G16+($A$4-80)*AH16*$A$16/1000 -> 31.93676471 | AP16: =AB16*I16+($A$4-80)*AI16*$A$16/1000 -> 31.42184874 | AQ16: =AC16*K16+($A$4-80)*AJ16*$A$16/1000 -> 30.875 | AR16: =AD16*M16+($A$4-80)*AK16*$A$16/1000 -> 30.29621849 | AS16: =AE16*O16+($A$4-80)*AL16*$A$16/1000 -> 29.31428571
B17: 67 | C17: 51.09243697 | D17: 39.85210084 | E17: 48.69747899 | F17: 38.95798319 | G17: 47.5 | H17: 38.475 | I17: 46.30252101 | J17: 37.96806723 | K17: 44.90546218 | L17: 37.27153361 | M17: 43.50840336 | N17: 36.54705882 | O17: 40.31512605 | P17: 35.47731092 | R17: 1.075630252 | S17: 1.025210084 | T17: 1 | U17: 0.974789916 | V17: 0.9453781513 | W17: 0.9159663866 | X17: 0.8487394958 | Y17: 0.78 | Z17: 0.8 | AA17: 0.81 | AB17: 0.82 | AC17: 0.83 | AD17: 0.84 | AE17: 0.88 | AF17: 0.96 | AG17: 0.976 | AH17: 0.952 | AI17: 0.928 | AJ17: 0.92725 | AK17: 0.9265 | AL17: 0.9595 | AM17: =Y17*C17+($A$4-80)*AF17*$A$16/1000 -> 39.85210084 | AN17: =Z17*E17+($A$4-80)*AG17*$A$16/1000 -> 38.95798319 | AO17: =AA17*G17+($A$4-80)*AH17*$A$16/1000 -> 38.475 | AP17: =AB17*I17+($A$4-80)*AI17*$A$16/1000 -> 37.96806723 | AQ17: =AC17*K17+($A$4-80)*AJ17*$A$16/1000 -> 37.27153361 | AR17: =AD17*M17+($A$4-80)*AK17*$A$16/1000 -> 36.54705882 | AS17: =AE17*O17+($A$4-80)*AL17*$A$16/1000 -> 35.47731092
B18: 63 | C18: 48.29831933 | D18: 45.88340336 | E18: 45.90336134 | F18: 44.98529412 | G18: 44.90546218 | H18: 44.45640756 | I18: 43.90756303 | J18: 43.90756303 | K18: 42.71008403 | L18: 42.71008403 | M18: 41.51260504 | N18: 41.51260504 | O18: 38.71848739 | P18: 38.71848739 | R18: 1.016806723 | S18: 0.9663865546 | T18: 0.9453781513 | U18: 0.9243697479 | V18: 0.8991596639 | W18: 0.8739495798 | X18: 0.8151260504 | Y18: 0.95 | Z18: 0.98 | AA18: 0.99 | AB18: 1 | AC18: 1 | AD18: 1 | AE18: 1 | AF18: 0.9075 | AG18: 0.92 | AH18: 0.9 | AI18: 0.88 | AJ18: 0.778 | AK18: 0.676 | AL18: 0.485 | AM18: 45.88340336 | AN18: =Z18*E18+($A$4-80)*AG18*$A$16/1000 -> 44.98529412 | AO18: =AA18*G18+($A$4-80)*AH18*$A$16/1000 -> 44.45640756 | AP18: 43.90756303 | AQ18: 42.71008403 | AR18: 41.51260504 | AS18: 38.71848739
B19: 59 | C19: 47.5 | D19: 47.5 | E19: 45.50420168 | F19: 45.50420168 | G19: 44.50630252 | H19: 44.50630252 | I19: 43.50840336 | J19: 43.50840336 | K19: 42.5105042 | L19: 42.5105042 | M19: 41.51260504 | N19: 41.51260504 | O19: 39.11764706 | P19: 39.11764706 | R19: 1 | S19: 0.9579831933 | T19: 0.9369747899 | U19: 0.9159663866 | V19: 0.8949579832 | W19: 0.8739495798 | X19: 0.8235294118 | Y19: 1 | Z19: 1 | AA19: 1 | AB19: 1 | AC19: 1 | AD19: 1 | AE19: 1 | AF19: 0.0595 | AG19: 0 | AH19: 0 | AI19: 0 | AJ19: 0 | AK19: 0 | AL19: 0 | AM19: 47.5 | AN19: =Z19*E19+($A$4-80)*AG19*$A$16/1000 -> 45.50420168 | AO19: =AA19*G19+($A$4-80)*AH19*$A$16/1000 -> 44.50630252 | AP19: 43.50840336 | AQ19: 42.5105042 | AR19: 41.51260504 | AS19: 39.11764706

Sheet XC20_24 (hidden)
A2: XC20_24
A3: Evaporator Air | C3: Condenser Entering Air Temperature ˚F
A4: 80 | B4: °F DB | C4: 85 | E4: 95 | G4: 100 | I4: 105 | K4: 110 | M4: 115 | O4: 125
A5: CFM | B5: EWB† ˚F | C5: Capacity Mbtuh | E5: Capacity Mbtuh | G5: Capacity Mbtuh | I5: Capacity Mbtuh | K5: Capacity Mbtuh | M5: Capacity Mbtuh | O5: Capacity Mbtuh
C6: Total | D6: Sens. | E6: Total | F6: Sens. | G6: Total | H6: Sens. | I6: Total | J6: Sens. | K6: Total | L6: Sens. | M6: Total | N6: Sens. | O6: Total | P6: Sens.
R7: Total Factors | Y7: Sens. % | AF7: IDB Adj | AM7: Sens Calc
A8: 425 | B8: 71 | C8: =R8*$E$13 -> 45.16393443 | D8: =IF(AM8>C8,C8,AM8) -> 23.93688525 | E8: =S8*$E$13 -> 43.21721311 | F8: =IF(AN8>E8,E8,AN8) -> 23.33729508 | G8: =T8*$E$13 -> 42.24385246 | H8: =IF(AO8>G8,G8,AO8) -> 22.81168033 | I8: =U8*$E$13 -> 41.2704918 | J8: =IF(AP8>I8,I8,AP8) -> 22.28606557 | K8: =V8*$E$13 -> 40.00512295 | L8: =IF(AQ8>K8,K8,AQ8) -> 21.80279201 | M8: =W8*$E$13 -> 38.7397541 | N8: =IF(AR8>M8,M8,AR8) -> 21.30686475 | O8: =X8*$E$13 -> 36.01434426 | P8: =IF(AS8>O8,O8,AS8) -> 20.16803279 | R8: 0.9508196721 | S8: 0.9098360656 | T8: 0.8893442623 | U8: 0.868852459 | V8: 0.8422131148 | W8: 0.8155737705 | X8: 0.7581967213 | Y8: 0.53 | Z8: 0.54 | AA8: 0.54 | AB8: 0.54 | AC8: 0.545 | AD8: 0.55 | AE8: 0.56 | AF8: 1.091764706 | AG8: 1.149176471 | AH8: 1.123294118 | AI8: 1.097411765 | AJ8: 1.063764706 | AK8: 1.030117647 | AL8: 1.044705882 | AM8: =Y8*C8+($A$4-80)*AF8*$A$8/1000 -> 23.93688525 | AN8: =Z8*E8+($A$4-80)*AG8*$A$8/1000 -> 23.33729508 | AO8: =AA8*G8+($A$4-80)*AH8*$A$8/1000 -> 22.81168033 | AP8: =AB8*I8+($A$4-80)*AI8*$A$8/1000 -> 22.28606557 | AQ8: =AC8*K8+($A$4-80)*AJ8*$A$8/1000 -> 21.80279201 | AR8: =AD8*M8+($A$4-80)*AK8*$A$8/1000 -> 21.30686475 | AS8: =AE8*O8+($A$4-80)*AL8*$A$8/1000 -> 20.16803279
B9: 67 | C9: 42.82786885 | D9: 27.83811475 | E9: =S9*$E$13 -> 40.88114754 | F9: =IF(AN9>E9,E9,AN9) -> 26.98155738 | G9: 39.90778689 | H9: =IF(AO9>G9,G9,AO9) -> 26.53867828 | I9: 38.93442623 | J9: =IF(AP9>I9,I9,AP9) -> 26.08606557 | K9: 37.86372951 | L9: =IF(AQ9>K9,K9,AQ9) -> 25.55801742 | M9: 36.79303279 | N9: =IF(AR9>M9,M9,AR9) -> 25.0192623 | O9: 34.06762295 | P9: =IF(AS9>O9,O9,AS9) -> 23.84733607 | R9: 0.9016393443 | S9: 0.8606557377 | T9: 0.8401639344 | U9: 0.8196721311 | V9: 0.7971311475 | W9: 0.7745901639 | X9: 0.7172131148 | Y9: 0.65 | Z9: 0.66 | AA9: 0.665 | AB9: 0.67 | AC9: 0.675 | AD9: 0.68 | AE9: 0.7 | AF9: 1.035294118 | AG9: 1.087058824 | AH9: 1.061176471 | AI9: 1.035294118 | AJ9: 1.006823529 | AK9: 0.9783529412 | AL9: 0.9882352941 | AM9: =Y9*C9+($A$4-80)*AF9*$A$8/1000 -> 27.83811475 | AN9: =Z9*E9+($A$4-80)*AG9*$A$8/1000 -> 26.98155738 | AO9: =AA9*G9+($A$4-80)*AH9*$A$8/1000 -> 26.53867828 | AP9: =AB9*I9+($A$4-80)*AI9*$A$8/1000 -> 26.08606557 | AQ9: =AC9*K9+($A$4-80)*AJ9*$A$8/1000 -> 25.55801742 | AR9: =AD9*M9+($A$4-80)*AK9*$A$8/1000 -> 25.0192623 | AS9: =AE9*O9+($A$4-80)*AL9*$A$8/1000 -> 23.84733607
B10: 63 | C10: 40.49180328 | D10: 31.58360656 | E10: =S10*$E$13 -> 38.54508197 | F10: 30.83606557 | G10: 37.66905738 | H10: 30.32359119 | I10: 36.79303279 | J10: 29.80235656 | K10: 35.72233607 | L10: 29.29231557 | M10: 34.65163934 | N10: 28.76086066 | O10: 32.12090164 | P10: 27.62397541 | R10: 0.8524590164 | S10: 0.8114754098 | T10: 0.7930327869 | U10: 0.7745901639 | V10: 0.7520491803 | W10: 0.7295081967 | X10: 0.6762295082 | Y10: 0.78 | Z10: 0.8 | AA10: 0.805 | AB10: 0.81 | AC10: 0.82 | AD10: 0.83 | AE10: 0.86 | AF10: 0.9788235294 | AG10: 1.024941176 | AH10: 1.001647059 | AI10: 0.9783529412 | AJ10: 0.9917647059 | AK10: 1.005176471 | AL10: 1.009411765 | AM10: 31.58360656 | AN10: =Z10*E10+($A$4-80)*AG10*$A$8/1000 -> 30.83606557 | AO10: =AA10*G10+($A$4-80)*AH10*$A$8/1000 -> 30.32359119 | AP10: 29.80235656 | AQ10: 29.29231557 | AR10: 28.76086066 | AS10: 27.62397541
B11: 59 | C11: 37.96106557 | D11: 35.30379098 | E11: =S11*$E$13 -> 36.20901639 | F11: 34.39856557 | G11: 35.43032787 | H11: 34.01311475 | I11: 34.65163934 | J11: 33.61209016 | K11: 33.67827869 | L11: 33.00471311 | M11: 32.70491803 | N11: 32.37786885 | O11: 30.56352459 | P11: 30.56352459 | R11: 0.7991803279 | S11: 0.762295082 | T11: 0.7459016393 | U11: 0.7295081967 | V11: 0.7090163934 | W11: 0.6885245902 | X11: 0.643442623 | Y11: 0.93 | Z11: 0.95 | AA11: 0.96 | AB11: 0.97 | AC11: 0.98 | AD11: 0.99 | AE11: 1 | AF11: 1.009411765 | AG11: 1.050352941 | AH11: 1.027764706 | AI11: 1.005176471 | AJ11: 0.9769411765 | AK11: 0.9487058824 | AL11: 0.7388235294 | AM11: 35.30379098 | AN11: =Z11*E11+($A$4-80)*AG11*$A$8/1000 -> 34.39856557 | AO11: =AA11*G11+($A$4-80)*AH11*$A$8/1000 -> 34.01311475 | AP11: =AB11*I11+($A$4-80)*AI11*$A$8/1000 -> 33.61209016 | AQ11: 33.00471311 | AR11: 32.37786885 | AS11: 30.56352459
A12: 800 | B12: 71 | C12: 52.95081967 | D12: 32.3 | E12: =S12*$E$13 -> 50.22540984 | F12: 31.1397541 | G12: 48.86270492 | H12: 30.53919057 | I12: 47.5 | J12: 29.925 | K12: 45.94262295 | L12: 29.40327869 | M12: 44.3852459 | N12: 28.85040984 | O12: 40.88114754 | P12: 27.79918033 | R12: 1.114754098 | S12: 1.057377049 | T12: 1.028688525 | U12: 1 | V12: 0.9672131148 | W12: 0.9344262295 | X12: 0.8606557377 | Y12: 0.61 | Z12: 0.62 | AA12: 0.625 | AB12: 0.63 | AC12: 0.64 | AD12: 0.65 | AE12: 0.68 | AF12: 1.02 | AG12: 0.9675 | AH12: 0.97175 | AI12: 0.976 | AJ12: 0.9725 | AK12: 0.969 | AL12: 0.9975 | AM12: =Y12*C12+($A$4-80)*AF12*$A$12/1000 -> 32.3 | AN12: =Z12*E12+($A$4-80)*AG12*$A$12/1000 -> 31.1397541 | AO12: =AA12*G12+($A$4-80)*AH12*$A$12/1000 -> 30.53919057 | AP12: =AB12*I12+($A$4-80)*AI12*$A$12/1000 -> 29.925 | AQ12: =AC12*K12+($A$4-80)*AJ12*$A$12/1000 -> 29.40327869 | AR12: =AD12*M12+($A$4-80)*AK12*$A$12/1000 -> 28.85040984 | AS12: =AE12*O12+($A$4-80)*AL12*$A$12/1000 -> 27.79918033
B13: 67 | C13: 50.22540984 | D13: 38.67356557 | E13: 47.5 | F13: 37.525 | G13: 46.33196721 | H13: 37.06557377 | I13: 45.16393443 | J13: 36.58278689 | K13: 43.60655738 | L13: 35.97540984 | M13: 42.04918033 | N13: 35.32131148 | O13: 38.54508197 | P13: 33.91967213 | R13: 1.057377049 | S13: 1 | T13: 0.9754098361 | U13: 0.9508196721 | V13: 0.9180327869 | W13: 0.8852459016 | X13: 0.8114754098 | Y13: 0.77 | Z13: 0.79 | AA13: 0.8 | AB13: 0.81 | AC13: 0.825 | AD13: 0.84 | AE13: 0.88 | AF13: 0.9675 | AG13: 0.976 | AH13: 0.981 | AI13: 0.986 | AJ13: 0.979 | AK13: 0.972 | AL13: 0.9405 | AM13: =Y13*C13+($A$4-80)*AF13*$A$12/1000 -> 38.67356557 | AN13: =Z13*E13+($A$4-80)*AG13*$A$12/1000 -> 37.525 | AO13: =AA13*G13+($A$4-80)*AH13*$A$12/1000 -> 37.06557377 | AP13: =AB13*I13+($A$4-80)*AI13*$A$12/1000 -> 36.58278689 | AQ13: =AC13*K13+($A$4-80)*AJ13*$A$12/1000 -> 35.97540984 | AR13: =AD13*M13+($A$4-80)*AK13*$A$12/1000 -> 35.32131148 | AS13: =AE13*O13+($A$4-80)*AL13*$A$12/1000 -> 33.91967213
B14: 63 | C14: 47.11065574 | D14: 44.75512295 | E14: =S14*$E$13 -> 45.16393443 | F14: 44.26065574 | G14: 43.80122951 | H14: 43.36321721 | I14: 42.43852459 | J14: 42.43852459 | K14: 41.2704918 | L14: 41.2704918 | M14: 40.10245902 | N14: 40.10245902 | O14: 37.37704918 | P14: 37.37704918 | R14: 0.9918032787 | S14: 0.9508196721 | T14: 0.9221311475 | U14: 0.893442623 | V14: 0.868852459 | W14: 0.8442622951 | X14: 0.7868852459 | Y14: 0.95 | Z14: 0.98 | AA14: 0.99 | AB14: 1 | AC14: 1 | AD14: 1 | AE14: 1 | AF14: 0.9075 | AG14: 0.986 | AH14: 0.929 | AI14: 0.872 | AJ14: 0.7965 | AK14: 0.721 | AL14: 0.432 | AM14: 44.75512295 | AN14: =Z14*E14+($A$4-80)*AG14*$A$12/1000 -> 44.26065574 | AO14: =AA14*G14+($A$4-80)*AH14*$A$12/1000 -> 43.36321721 | AP14: 42.43852459 | AQ14: 41.2704918 | AR14: 40.10245902 | AS14: 37.37704918
B15: 59 | C15: 46.33196721 | D15: 46.33196721 | E15: 44.77459016 | F15: 44.77459016 | G15: 43.60655738 | H15: 43.60655738 | I15: 42.43852459 | J15: 42.43852459 | K15: 41.2704918 | L15: 41.2704918 | M15: 40.10245902 | N15: 40.10245902 | O15: 37.18237705 | P15: 37.18237705 | R15: 0.9754098361 | S15: 0.9426229508 | T15: 0.9180327869 | U15: 0.893442623 | V15: 0.868852459 | W15: 0.8442622951 | X15: 0.7827868852 | Y15: 1 | Z15: 1 | AA15: 1 | AB15: 1 | AC15: 1 | AD15: 1 | AE15: 1 | AF15: 0.119 | AG15: 0 | AH15: 0 | AI15: 0 | AJ15: 0 | AK15: 0 | AL15: 0 | AM15: 46.33196721 | AN15: =Z15*E15+($A$4-80)*AG15*$A$12/1000 -> 44.77459016 | AO15: =AA15*G15+($A$4-80)*AH15*$A$12/1000 -> 43.60655738 | AP15: 42.43852459 | AQ15: 41.2704918 | AR15: 40.10245902 | AS15: 37.18237705
A16: 900 | B16: 71 | C16: 53.7295082 | D16: 33.84959016 | E16: 51.39344262 | F16: 32.89180328 | G16: 49.83606557 | H16: 32.1442623 | I16: 48.27868852 | J16: 31.38114754 | K16: 46.72131148 | L16: 31.06967213 | M16: 45.16393443 | N16: 30.71147541 | O16: 41.65983607 | P16: 29.57848361 | R16: 1.131147541 | S16: 1.081967213 | T16: 1.049180328 | U16: 1.016393443 | V16: 0.9836065574 | W16: 0.9508196721 | X16: 0.8770491803 | Y16: 0.63 | Z16: 0.64 | AA16: 0.645 | AB16: 0.65 | AC16: 0.665 | AD16: 0.68 | AE16: 0.71 | AF16: 0.9813333333 | AG16: 0.9973333333 | AH16: 0.9671111111 | AI16: 0.9368888889 | AJ16: 0.9582222222 | AK16: 0.9795555556 | AL16: 0.9986666667 | AM16: =Y16*C16+($A$4-80)*AF16*$A$16/1000 -> 33.84959016 | AN16: =Z16*E16+($A$4-80)*AG16*$A$16/1000 -> 32.89180328 | AO16: =AA16*G16+($A$4-80)*AH16*$A$16/1000 -> 32.1442623 | AP16: =AB16*I16+($A$4-80)*AI16*$A$16/1000 -> 31.38114754 | AQ16: =AC16*K16+($A$4-80)*AJ16*$A$16/1000 -> 31.06967213 | AR16: =AD16*M16+($A$4-80)*AK16*$A$16/1000 -> 30.71147541 | AS16: =AE16*O16+($A$4-80)*AL16*$A$16/1000 -> 29.57848361
B17: 67 | C17: 51.00409836 | D17: 40.80327869 | E17: 48.66803279 | F17: 39.90778689 | G17: 47.30532787 | H17: 39.49994877 | I17: 45.94262295 | J17: 39.05122951 | K17: 44.3852459 | L17: 38.3932377 | M17: 42.82786885 | N17: 37.68852459 | O17: 39.32377049 | P17: 36.57110656 | R17: 1.073770492 | S17: 1.024590164 | T17: 0.9959016393 | U17: 0.9672131148 | V17: 0.9344262295 | W17: 0.9016393443 | X17: 0.8278688525 | Y17: 0.8 | Z17: 0.82 | AA17: 0.835 | AB17: 0.85 | AC17: 0.865 | AD17: 0.88 | AE17: 0.93 | AF17: 0.9315555556 | AG17: 0.9444444444 | AH17: 0.9704444444 | AI17: 0.9964444444 | AJ17: 0.9626666667 | AK17: 0.9288888889 | AL17: 0.9875555556 | AM17: =Y17*C17+($A$4-80)*AF17*$A$16/1000 -> 40.80327869 | AN17: =Z17*E17+($A$4-80)*AG17*$A$16/1000 -> 39.90778689 | AO17: =AA17*G17+($A$4-80)*AH17*$A$16/1000 -> 39.49994877 | AP17: =AB17*I17+($A$4-80)*AI17*$A$16/1000 -> 39.05122951 | AQ17: =AC17*K17+($A$4-80)*AJ17*$A$16/1000 -> 38.3932377 | AR17: =AD17*M17+($A$4-80)*AK17*$A$16/1000 -> 37.68852459 | AS17: =AE17*O17+($A$4-80)*AL17*$A$16/1000 -> 36.57110656
B18: 63 | C18: 48.27868852 | D18: 47.79590164 | E18: 46.33196721 | F18: 46.33196721 | G18: 45.16393443 | H18: 45.16393443 | I18: 43.99590164 | J18: 43.99590164 | K18: 42.82786885 | L18: 42.82786885 | M18: 41.65983607 | N18: 41.65983607 | O18: 38.54508197 | P18: 38.54508197 | R18: 1.016393443 | S18: 0.9754098361 | T18: 0.9508196721 | U18: 0.9262295082 | V18: 0.9016393443 | W18: 0.8770491803 | X18: 0.8114754098 | Y18: 0.99 | Z18: 1 | AA18: 1 | AB18: 1 | AC18: 1 | AD18: 1 | AE18: 1 | AF18: 0.8817777778 | AG18: 0.8462222222 | AH18: 0.7495555556 | AI18: 0.6528888889 | AJ18: 0.5404444444 | AK18: 0.428 | AL18: 0.22 | AM18: 47.79590164 | AN18: =Z18*E18+($A$4-80)*AG18*$A$16/1000 -> 46.33196721 | AO18: =AA18*G18+($A$4-80)*AH18*$A$16/1000 -> 45.16393443 | AP18: 43.99590164 | AQ18: 42.82786885 | AR18: 41.65983607 | AS18: 38.54508197
B19: 59 | C19: 48.27868852 | D19: 48.27868852 | E19: 45.94262295 | F19: 45.94262295 | G19: 44.9692623 | H19: 44.9692623 | I19: 43.99590164 | J19: 43.99590164 | K19: 42.63319672 | L19: 42.63319672 | M19: 41.2704918 | N19: 41.2704918 | O19: 38.54508197 | P19: 38.54508197 | R19: 1.016393443 | S19: 0.9672131148 | T19: 0.9467213115 | U19: 0.9262295082 | V19: 0.8975409836 | W19: 0.868852459 | X19: 0.8114754098 | Y19: 1 | Z19: 1 | AA19: 1 | AB19: 1 | AC19: 1 | AD19: 1 | AE19: 1 | AF19: 0 | AG19: 0 | AH19: 0 | AI19: 0 | AJ19: 0 | AK19: 0 | AL19: 0 | AM19: 48.27868852 | AN19: =Z19*E19+($A$4-80)*AG19*$A$16/1000 -> 45.94262295 | AO19: =AA19*G19+($A$4-80)*AH19*$A$16/1000 -> 44.9692623 | AP19: 43.99590164 | AQ19: 42.63319672 | AR19: 41.2704918 | AS19: 38.54508197

Sheet XC20_36 (hidden)
A2: XC20_36
A3: Evaporator Air | C3: Condenser Entering Air Temperature ˚F
A4: 80 | B4: °F DB | C4: 85 | E4: 95 | G4: 100 | I4: 105 | K4: 110 | M4: 115 | O4: 125
A5: CFM | B5: EWB† ˚F | C5: Capacity Mbtuh | E5: Capacity Mbtuh | G5: Capacity Mbtuh | I5: Capacity Mbtuh | K5: Capacity Mbtuh | M5: Capacity Mbtuh | O5: Capacity Mbtuh
C6: Total | D6: Sens. | E6: Total | F6: Sens. | G6: Total | H6: Sens. | I6: Total | J6: Sens. | K6: Total | L6: Sens. | M6: Total | N6: Sens. | O6: Total | P6: Sens.
R7: Total Factors | Y7: Sens. % | AF7: IDB Adj | AM7: Sens Calc
A8: 640 | B8: 71 | C8: =R8*$E$13 -> 45.08474576 | D8: =IF(AM8>C8,C8,AM8) -> 24.34576271 | E8: =S8*$E$13 -> 43.20621469 | F8: =IF(AN8>E8,E8,AN8) -> 23.33135593 | G8: =T8*$E$13 -> 42.13276836 | H8: =IF(AO8>G8,G8,AO8) -> 22.96235876 | I8: =U8*$E$13 -> 41.05932203 | J8: =IF(AP8>I8,I8,AP8) -> 22.58262712 | K8: =V8*$E$13 -> 39.71751412 | L8: =IF(AQ8>K8,K8,AQ8) -> 22.04322034 | M8: =W8*$E$13 -> 38.37570621 | N8: =IF(AR8>M8,M8,AR8) -> 21.49039548 | O8: =X8*$E$13 -> 34.88700565 | P8: =IF(AS8>O8,O8,AS8) -> 20.23446328 | R8: 0.9491525424 | S8: 0.9096045198 | T8: 0.8870056497 | U8: 0.8644067797 | V8: 0.8361581921 | W8: 0.8079096045 | X8: 0.7344632768 | Y8: 0.54 | Z8: 0.54 | AA8: 0.545 | AB8: 0.55 | AC8: 0.555 | AD8: 0.56 | AE8: 0.58 | AF8: 1.155 | AG8: 1.00625 | AH8: 1.0290625 | AI8: 1.051875 | AJ8: 1.0621875 | AK8: 1.0725 | AL8: 1.05625 | AM8: =Y8*C8+($A$4-80)*AF8*$A$8/1000 -> 24.34576271 | AN8: =Z8*E8+($A$4-80)*AG8*$A$8/1000 -> 23.33135593 | AO8: =AA8*G8+($A$4-80)*AH8*$A$8/1000 -> 22.96235876 | AP8: =AB8*I8+($A$4-80)*AI8*$A$8/1000 -> 22.58262712 | AQ8: =AC8*K8+($A$4-80)*AJ8*$A$8/1000 -> 22.04322034 | AR8: =AD8*M8+($A$4-80)*AK8*$A$8/1000 -> 21.49039548 | AS8: =AE8*O8+($A$4-80)*AL8*$A$8/1000 -> 20.23446328
B9: 67 | C9: 42.93785311 | D9: 28.33898305 | E9: =S9*$E$13 -> 40.79096045 | F9: =IF(AN9>E9,E9,AN9) -> 27.3299435 | G9: 39.71751412 | H9: =IF(AO9>G9,G9,AO9) -> 26.80932203 | I9: 38.6440678 | J9: =IF(AP9>I9,I9,AP9) -> 26.2779661 | K9: 37.30225989 | L9: =IF(AQ9>K9,K9,AQ9) -> 25.73855932 | M9: 35.96045198 | N9: =IF(AR9>M9,M9,AR9) -> 25.17231638 | O9: 32.74011299 | P9: =IF(AS9>O9,O9,AS9) -> 23.90028249 | R9: 0.9039548023 | S9: 0.8587570621 | T9: 0.8361581921 | U9: 0.813559322 | V9: 0.7853107345 | W9: 0.7570621469 | X9: 0.6892655367 | Y9: 0.66 | Z9: 0.67 | AA9: 0.675 | AB9: 0.68 | AC9: 0.69 | AD9: 0.7 | AE9: 0.73 | AF9: 1 | AG9: 1.045 | AH9: 1.0175 | AI9: 0.99 | AJ9: 0.9975 | AK9: 1.005 | AL9: 1.0675 | AM9: =Y9*C9+($A$4-80)*AF9*$A$8/1000 -> 28.33898305 | AN9: =Z9*E9+($A$4-80)*AG9*$A$8/1000 -> 27.3299435 | AO9: =AA9*G9+($A$4-80)*AH9*$A$8/1000 -> 26.80932203 | AP9: =AB9*I9+($A$4-80)*AI9*$A$8/1000 -> 26.2779661 | AQ9: =AC9*K9+($A$4-80)*AJ9*$A$8/1000 -> 25.73855932 | AR9: =AD9*M9+($A$4-80)*AK9*$A$8/1000 -> 25.17231638 | AS9: =AE9*O9+($A$4-80)*AL9*$A$8/1000 -> 23.90028249
B10: 63 | C10: 40.25423729 | D10: 32.20338983 | E10: =S10*$E$13 -> 38.37570621 | F10: 31.08432203 | G10: 37.30225989 | H10: 30.77436441 | I10: 36.22881356 | J10: 30.43220339 | K10: 34.88700565 | L10: 29.6539548 | M10: 33.54519774 | N10: 28.84887006 | O10: 30.32485876 | P10: 27.59562147 | R10: 0.8474576271 | S10: 0.8079096045 | T10: 0.7853107345 | U10: 0.7627118644 | V10: 0.7344632768 | W10: 0.7062146893 | X10: 0.6384180791 | Y10: 0.8 | Z10: 0.81 | AA10: 0.825 | AB10: 0.84 | AC10: 0.85 | AD10: 0.86 | AE10: 0.91 | AF10: 1.03125 | AG10: 0.983125 | AH10: 1.04 | AI10: 1.096875 | AJ10: 1.05625 | AK10: 1.015625 | AL10: 1.059375 | AM10: 32.20338983 | AN10: =Z10*E10+($A$4-80)*AG10*$A$8/1000 -> 31.08432203 | AO10: =AA10*G10+($A$4-80)*AH10*$A$8/1000 -> 30.77436441 | AP10: 30.43220339 | AQ10: 29.6539548 | AR10: 28.84887006 | AS10: 27.59562147
B11: 59 | C11: 37.83898305 | D11: 35.9470339 | E11: =S11*$E$13 -> 35.96045198 | F11: 34.88163842 | G11: 34.88700565 | H11: 34.36370056 | I11: 33.81355932 | J11: 33.81355932 | K11: 32.87429379 | L11: 32.87429379 | M11: 31.93502825 | N11: 31.93502825 | O11: 29.25141243 | P11: 29.25141243 | R11: 0.7966101695 | S11: 0.7570621469 | T11: 0.7344632768 | U11: 0.7118644068 | V11: 0.6920903955 | W11: 0.6723163842 | X11: 0.615819209 | Y11: 0.95 | Z11: 0.97 | AA11: 0.985 | AB11: 1 | AC11: 1 | AD11: 1 | AE11: 1 | AF11: 1.0575 | AG11: 1.005 | AH11: 1.014375 | AI11: 1.02375 | AJ11: 0.88375 | AK11: 0.74375 | AL11: 0.340625 | AM11: 35.9470339 | AN11: =Z11*E11+($A$4-80)*AG11*$A$8/1000 -> 34.88163842 | AO11: =AA11*G11+($A$4-80)*AH11*$A$8/1000 -> 34.36370056 | AP11: =AB11*I11+($A$4-80)*AI11*$A$8/1000 -> 33.81355932 | AQ11: 32.87429379 | AR11: 31.93502825 | AS11: 29.25141243
A12: 1250 | B12: 71 | C12: 52.33050847 | D12: 31.92161017 | E12: =S12*$E$13 -> 50.18361582 | F12: 31.61567797 | G12: 48.84180791 | H12: 31.25875706 | I12: 47.5 | J12: 30.875 | K12: 45.88983051 | L12: 30.28728814 | M12: 44.27966102 | N12: 29.66737288 | O12: 40.25423729 | P12: 28.58050847 | R12: 1.101694915 | S12: 1.056497175 | T12: 1.028248588 | U12: 1 | V12: 0.9661016949 | W12: 0.9322033898 | X12: 0.8474576271 | Y12: 0.61 | Z12: 0.63 | AA12: 0.64 | AB12: 0.65 | AC12: 0.66 | AD12: 0.67 | AE12: 0.71 | AF12: 0.8736 | AG12: 0.95744 | AH12: 0.96016 | AI12: 0.96288 | AJ12: 0.95664 | AK12: 0.9504 | AL12: 1.008 | AM12: =Y12*C12+($A$4-80)*AF12*$A$12/1000 -> 31.92161017 | AN12: =Z12*E12+($A$4-80)*AG12*$A$12/1000 -> 31.61567797 | AO12: =AA12*G12+($A$4-80)*AH12*$A$12/1000 -> 31.25875706 | AP12: =AB12*I12+($A$4-80)*AI12*$A$12/1000 -> 30.875 | AQ12: =AC12*K12+($A$4-80)*AJ12*$A$12/1000 -> 30.28728814 | AR12: =AD12*M12+($A$4-80)*AK12*$A$12/1000 -> 29.66737288 | AS12: =AE12*O12+($A$4-80)*AL12*$A$12/1000 -> 28.58050847
B13: 67 | C13: 49.91525424 | D13: 39.43305085 | E13: 47.5 | F13: 38.475 | G13: 46.15819209 | H13: 38.08050847 | I13: 44.81638418 | J13: 37.64576271 | K13: 43.20621469 | L13: 37.15734463 | M13: 41.5960452 | N13: 36.60451977 | O13: 37.57062147 | P13: 34.94067797 | R13: 1.050847458 | S13: 1 | T13: 0.9717514124 | U13: 0.9435028249 | V13: 0.9096045198 | W13: 0.8757062147 | X13: 0.790960452 | Y13: 0.79 | Z13: 0.81 | AA13: 0.825 | AB13: 0.84 | AC13: 0.86 | AD13: 0.88 | AE13: 0.93 | AF13: 0.95232 | AG13: 0.90624 | AH13: 0.93408 | AI13: 0.96192 | AJ13: 0.97696 | AK13: 0.992 | AL13: 0.9408 | AM13: =Y13*C13+($A$4-80)*AF13*$A$12/1000 -> 39.43305085 | AN13: =Z13*E13+($A$4-80)*AG13*$A$12/1000 -> 38.475 | AO13: =AA13*G13+($A$4-80)*AH13*$A$12/1000 -> 38.08050847 | AP13: =AB13*I13+($A$4-80)*AI13*$A$12/1000 -> 37.64576271 | AQ13: =AC13*K13+($A$4-80)*AJ13*$A$12/1000 -> 37.15734463 | AR13: =AD13*M13+($A$4-80)*AK13*$A$12/1000 -> 36.60451977 | AS13: =AE13*O13+($A$4-80)*AL13*$A$12/1000 -> 34.94067797
B14: 63 | C14: 47.5 | D14: 46.075 | E14: =S14*$E$13 -> 45.08474576 | F14: 44.63389831 | G14: 43.87711864 | H14: 43.65773305 | I14: 42.66949153 | J14: 42.66949153 | K14: 41.32768362 | L14: 41.32768362 | M14: 39.98587571 | N14: 39.98587571 | O14: 36.76553672 | P14: 36.76553672 | R14: 1 | S14: 0.9491525424 | T14: 0.9237288136 | U14: 0.8983050847 | V14: 0.8700564972 | W14: 0.8418079096 | X14: 0.7740112994 | Y14: 0.97 | Z14: 0.99 | AA14: 0.995 | AB14: 1 | AC14: 1 | AD14: 1 | AE14: 1 | AF14: 0.8496 | AG14: 0.8064 | AH14: 0.73392 | AI14: 0.66144 | AJ14: 0.54528 | AK14: 0.42912 | AL14: 0.17536 | AM14: 46.075 | AN14: =Z14*E14+($A$4-80)*AG14*$A$12/1000 -> 44.63389831 | AO14: =AA14*G14+($A$4-80)*AH14*$A$12/1000 -> 43.65773305 | AP14: 42.66949153 | AQ14: 41.32768362 | AR14: 39.98587571 | AS14: 36.76553672
B15: 59 | C15: 46.96327684 | D15: 46.96327684 | E15: 44.81638418 | F15: 44.81638418 | G15: 43.74293785 | H15: 43.74293785 | I15: 42.66949153 | J15: 42.66949153 | K15: 41.32768362 | L15: 41.32768362 | M15: 39.98587571 | N15: 39.98587571 | O15: 36.76553672 | P15: 36.76553672 | R15: 0.988700565 | S15: 0.9435028249 | T15: 0.9209039548 | U15: 0.8983050847 | V15: 0.8700564972 | W15: 0.8418079096 | X15: 0.7740112994 | Y15: 1 | Z15: 1 | AA15: 1 | AB15: 1 | AC15: 1 | AD15: 1 | AE15: 1 | AF15: 0 | AG15: 0 | AH15: 0 | AI15: 0 | AJ15: 0 | AK15: 0 | AL15: 0 | AM15: 46.96327684 | AN15: =Z15*E15+($A$4-80)*AG15*$A$12/1000 -> 44.81638418 | AO15: =AA15*G15+($A$4-80)*AH15*$A$12/1000 -> 43.74293785 | AP15: 42.66949153 | AQ15: 41.32768362 | AR15: 39.98587571 | AS15: 36.76553672
A16: 1300 | B16: 71 | C16: 52.33050847 | D16: 32.96822034 | E16: 50.4519774 | F16: 32.28926554 | G16: 49.11016949 | H16: 31.92161017 | I16: 47.76836158 | J16: 31.52711864 | K16: 46.15819209 | L16: 30.9259887 | M16: 44.5480226 | N16: 30.29265537 | O16: 40.25423729 | P16: 28.58050847 | R16: 1.101694915 | S16: 1.062146893 | T16: 1.033898305 | U16: 1.005649718 | V16: 0.9717514124 | W16: 0.9378531073 | X16: 0.8474576271 | Y16: 0.63 | Z16: 0.64 | AA16: 0.65 | AB16: 0.66 | AC16: 0.67 | AD16: 0.68 | AE16: 0.71 | AF16: 0.96 | AG16: 0.9255384615 | AH16: 0.9556923077 | AI16: 0.9858461538 | AJ16: 0.9781538462 | AK16: 0.9704615385 | AL16: 0.9230769231 | AM16: =Y16*C16+($A$4-80)*AF16*$A$16/1000 -> 32.96822034 | AN16: =Z16*E16+($A$4-80)*AG16*$A$16/1000 -> 32.28926554 | AO16: =AA16*G16+($A$4-80)*AH16*$A$16/1000 -> 31.92161017 | AP16: =AB16*I16+($A$4-80)*AI16*$A$16/1000 -> 31.52711864 | AQ16: =AC16*K16+($A$4-80)*AJ16*$A$16/1000 -> 30.9259887 | AR16: =AD16*M16+($A$4-80)*AK16*$A$16/1000 -> 30.29265537 | AS16: =AE16*O16+($A$4-80)*AL16*$A$16/1000 -> 28.58050847
B17: 67 | C17: 50.4519774 | D17: 40.36158192 | E17: 47.76836158 | F17: 39.64774011 | G17: 46.42655367 | H17: 38.99830508 | I17: 45.08474576 | J17: 38.3220339 | K17: 43.47457627 | L17: 37.82288136 | M17: 41.86440678 | N17: 37.25932203 | O17: 37.83898305 | P17: 35.9470339 | R17: 1.062146893 | S17: 1.005649718 | T17: 0.9774011299 | U17: 0.9491525424 | V17: 0.9152542373 | W17: 0.8813559322 | X17: 0.7966101695 | Y17: 0.8 | Z17: 0.83 | AA17: 0.84 | AB17: 0.85 | AC17: 0.87 | AD17: 0.89 | AE17: 0.95 | AF17: 0.9255384615 | AG17: 0.9858461538 | AH17: 0.9581538462 | AI17: 0.9304615385 | AJ17: 0.9452307692 | AK17: 0.96 | AL17: 0.9544615385 | AM17: =Y17*C17+($A$4-80)*AF17*$A$16/1000 -> 40.36158192 | AN17: =Z17*E17+($A$4-80)*AG17*$A$16/1000 -> 39.64774011 | AO17: =AA17*G17+($A$4-80)*AH17*$A$16/1000 -> 38.99830508 | AP17: =AB17*I17+($A$4-80)*AI17*$A$16/1000 -> 38.3220339 | AQ17: =AC17*K17+($A$4-80)*AJ17*$A$16/1000 -> 37.82288136 | AR17: =AD17*M17+($A$4-80)*AK17*$A$16/1000 -> 37.25932203 | AS17: =AE17*O17+($A$4-80)*AL17*$A$16/1000 -> 35.9470339
B18: 63 | C18: 47.76836158 | D18: 46.81299435 | E18: 45.62146893 | F18: 45.62146893 | G18: 44.41384181 | H18: 44.41384181 | I18: 43.20621469 | J18: 43.20621469 | K18: 41.86440678 | L18: 41.86440678 | M18: 40.52259887 | N18: 40.52259887 | O18: 37.03389831 | P18: 37.03389831 | R18: 1.005649718 | S18: 0.9604519774 | T18: 0.9350282486 | U18: 0.9096045198 | V18: 0.8813559322 | W18: 0.8531073446 | X18: 0.7796610169 | Y18: 0.98 | Z18: 1 | AA18: 1 | AB18: 1 | AC18: 1 | AD18: 1 | AE18: 1 | AF18: 0.8215384615 | AG18: 0.7846153846 | AH18: 0.6895384615 | AI18: 0.5944615385 | AJ18: 0.4830769231 | AK18: 0.3716923077 | AL18: 0.1273846154 | AM18: 46.81299435 | AN18: =Z18*E18+($A$4-80)*AG18*$A$16/1000 -> 45.62146893 | AO18: =AA18*G18+($A$4-80)*AH18*$A$16/1000 -> 44.41384181 | AP18: 43.20621469 | AQ18: 41.86440678 | AR18: 40.52259887 | AS18: 37.03389831
B19: 59 | C19: 47.5 | D19: 47.5 | E19: 45.35310734 | F19: 45.35310734 | G19: 44.27966102 | H19: 44.27966102 | I19: 43.20621469 | J19: 43.20621469 | K19: 41.86440678 | L19: 41.86440678 | M19: 40.52259887 | N19: 40.52259887 | O19: 37.03389831 | P19: 37.03389831 | R19: 1 | S19: 0.9548022599 | T19: 0.9322033898 | U19: 0.9096045198 | V19: 0.8813559322 | W19: 0.8531073446 | X19: 0.7796610169 | Y19: 1 | Z19: 1 | AA19: 1 | AB19: 1 | AC19: 1 | AD19: 1 | AE19: 1 | AF19: 0 | AG19: 0 | AH19: 0 | AI19: 0 | AJ19: 0 | AK19: 0 | AL19: 0 | AM19: 47.5 | AN19: =Z19*E19+($A$4-80)*AG19*$A$16/1000 -> 45.35310734 | AO19: =AA19*G19+($A$4-80)*AH19*$A$16/1000 -> 44.27966102 | AP19: 43.20621469 | AQ19: 41.86440678 | AR19: 40.52259887 | AS19: 37.03389831

Sheet XC20_48 (hidden)
A2: XC20_48
A3: Evaporator Air | C3: Condenser Entering Air Temperature ˚F
A4: 80 | B4: °F DB | C4: 85 | E4: 95 | G4: 100 | I4: 105 | K4: 110 | M4: 115 | O4: 125
A5: CFM | B5: EWB† ˚F | C5: Capacity Mbtuh | E5: Capacity Mbtuh | G5: Capacity Mbtuh | I5: Capacity Mbtuh | K5: Capacity Mbtuh | M5: Capacity Mbtuh | O5: Capacity Mbtuh
C6: Total | D6: Sens. | E6: Total | F6: Sens. | G6: Total | H6: Sens. | I6: Total | J6: Sens. | K6: Total | L6: Sens. | M6: Total | N6: Sens. | O6: Total | P6: Sens.
R7: Total Factors | Y7: Sens. % | AF7: IDB Adj | AM7: Sens Calc
A8: 900 | B8: 71 | C8: =R8*$E$13 -> 46 | D8: =IF(AM8>C8,C8,AM8) -> 24.84 | E8: =S8*$E$13 -> 44.5 | F8: =IF(AN8>E8,E8,AN8) -> 24.475 | G8: =T8*$E$13 -> 43.25 | H8: =IF(AO8>G8,G8,AO8) -> 23.7875 | I8: =U8*$E$13 -> 42 | J8: =IF(AP8>I8,I8,AP8) -> 23.1 | K8: =V8*$E$13 -> 40.75 | L8: =IF(AQ8>K8,K8,AQ8) -> 22.61625 | M8: =W8*$E$13 -> 39.5 | N8: =IF(AR8>M8,M8,AR8) -> 22.12 | O8: =X8*$E$13 -> 35.6 | P8: =IF(AS8>O8,O8,AS8) -> 20.648 | R8: 0.9684210526 | S8: 0.9368421053 | T8: 0.9105263158 | U8: 0.8842105263 | V8: 0.8578947368 | W8: 0.8315789474 | X8: 0.7494736842 | Y8: 0.54 | Z8: 0.55 | AA8: 0.55 | AB8: 0.55 | AC8: 0.555 | AD8: 0.56 | AE8: 0.58 | AF8: 1.124444444 | AG8: 1.087777778 | AH8: 1.103888889 | AI8: 1.12 | AJ8: 1.086666667 | AK8: 1.053333333 | AL8: 1.028444444 | AM8: =Y8*C8+($A$4-80)*AF8*$A$8/1000 -> 24.84 | AN8: =Z8*E8+($A$4-80)*AG8*$A$8/1000 -> 24.475 | AO8: =AA8*G8+($A$4-80)*AH8*$A$8/1000 -> 23.7875 | AP8: =AB8*I8+($A$4-80)*AI8*$A$8/1000 -> 23.1 | AQ8: =AC8*K8+($A$4-80)*AJ8*$A$8/1000 -> 22.61625 | AR8: =AD8*M8+($A$4-80)*AK8*$A$8/1000 -> 22.12 | AS8: =AE8*O8+($A$4-80)*AL8*$A$8/1000 -> 20.648
B9: 67 | C9: 44 | D9: 29.48 | E9: =S9*$E$13 -> 42 | F9: =IF(AN9>E9,E9,AN9) -> 28.56 | G9: 41 | H9: =IF(AO9>G9,G9,AO9) -> 28.085 | I9: 40 | J9: =IF(AP9>I9,I9,AP9) -> 27.6 | K9: 38.7 | L9: =IF(AQ9>K9,K9,AQ9) -> 26.8965 | M9: 37.4 | N9: =IF(AR9>M9,M9,AR9) -> 26.18 | O9: 33.8 | P9: =IF(AS9>O9,O9,AS9) -> 24.674 | R9: 0.9263157895 | S9: 0.8842105263 | T9: 0.8631578947 | U9: 0.8421052632 | V9: 0.8147368421 | W9: 0.7873684211 | X9: 0.7115789474 | Y9: 0.67 | Z9: 0.68 | AA9: 0.685 | AB9: 0.69 | AC9: 0.695 | AD9: 0.7 | AE9: 0.73 | AF9: 1.075555556 | AG9: 1.12 | AH9: 1.093333333 | AI9: 1.066666667 | AJ9: 1.032 | AK9: 0.9973333333 | AL9: 0.9764444444 | AM9: =Y9*C9+($A$4-80)*AF9*$A$8/1000 -> 29.48 | AN9: =Z9*E9+($A$4-80)*AG9*$A$8/1000 -> 28.56 | AO9: =AA9*G9+($A$4-80)*AH9*$A$8/1000 -> 28.085 | AP9: =AB9*I9+($A$4-80)*AI9*$A$8/1000 -> 27.6 | AQ9: =AC9*K9+($A$4-80)*AJ9*$A$8/1000 -> 26.8965 | AR9: =AD9*M9+($A$4-80)*AK9*$A$8/1000 -> 26.18 | AS9: =AE9*O9+($A$4-80)*AL9*$A$8/1000 -> 24.674
B10: 63 | C10: 41.5 | D10: 33.2 | E10: =S10*$E$13 -> 40 | F10: 32.8 | G10: 39 | H10: 32.175 | I10: 38 | J10: 31.54 | K10: 36.6 | L10: 30.927 | M10: 35.2 | N10: 30.272 | O10: 31.8 | P10: 28.62 | R10: 0.8736842105 | S10: 0.8421052632 | T10: 0.8210526316 | U10: 0.8 | V10: 0.7705263158 | W10: 0.7410526316 | X10: 0.6694736842 | Y10: 0.8 | Z10: 0.82 | AA10: 0.825 | AB10: 0.83 | AC10: 0.845 | AD10: 0.86 | AE10: 0.9 | AF10: 1.014444444 | AG10: 1.066666667 | AH10: 1.04 | AI10: 1.013333333 | AJ10: 1.015111111 | AK10: 1.016888889 | AL10: 0.9893333333 | AM10: 33.2 | AN10: =Z10*E10+($A$4-80)*AG10*$A$8/1000 -> 32.8 | AO10: =AA10*G10+($A$4-80)*AH10*$A$8/1000 -> 32.175 | AP10: 31.54 | AQ10: 30.927 | AR10: 30.272 | AS10: 28.62
B11: 59 | C11: 39 | D11: 37.05 | E11: =S11*$E$13 -> 37.6 | F11: 36.472 | G11: 36.7 | H11: 35.966 | I11: 35.8 | J11: 35.442 | K11: 34.7 | L11: 34.5265 | M11: 33.6 | N11: 33.6 | O11: 31 | P11: 31 | R11: 0.8210526316 | S11: 0.7915789474 | T11: 0.7726315789 | U11: 0.7536842105 | V11: 0.7305263158 | W11: 0.7073684211 | X11: 0.6526315789 | Y11: 0.95 | Z11: 0.97 | AA11: 0.98 | AB11: 0.99 | AC11: 0.995 | AD11: 1 | AE11: 1 | AF11: 0.9533333333 | AG11: 1.002666667 | AH11: 0.9786666667 | AI11: 0.9546666667 | AJ11: 0.8506666667 | AK11: 0.7466666667 | AL11: 0.4133333333 | AM11: 37.05 | AN11: =Z11*E11+($A$4-80)*AG11*$A$8/1000 -> 36.472 | AO11: =AA11*G11+($A$4-80)*AH11*$A$8/1000 -> 35.966 | AP11: =AB11*I11+($A$4-80)*AI11*$A$8/1000 -> 35.442 | AQ11: 34.5265 | AR11: 33.6 | AS11: 31
A12: 1580 | B12: 71 | C12: 52 | D12: 31.72 | E12: =S12*$E$13 -> 50 | F12: 31 | G12: 48.5 | H12: 30.555 | I12: 47 | J12: 30.08 | K12: 45.25 | L12: 29.4125 | M12: 43.5 | N12: 28.71 | O12: 39 | P12: 26.91 | R12: 1.094736842 | S12: 1.052631579 | T12: 1.021052632 | U12: 0.9894736842 | V12: 0.9526315789 | W12: 0.9157894737 | X12: 0.8210526316 | Y12: 0.61 | Z12: 0.62 | AA12: 0.63 | AB12: 0.64 | AC12: 0.65 | AD12: 0.66 | AE12: 0.69 | AF12: 0.9873417722 | AG12: 0.9493670886 | AH12: 0.9803797468 | AI12: 1.011392405 | AJ12: 1.001265823 | AK12: 0.9911392405 | AL12: 0.9379746835 | AM12: =Y12*C12+($A$4-80)*AF12*$A$12/1000 -> 31.72 | AN12: =Z12*E12+($A$4-80)*AG12*$A$12/1000 -> 31 | AO12: =AA12*G12+($A$4-80)*AH12*$A$12/1000 -> 30.555 | AP12: =AB12*I12+($A$4-80)*AI12*$A$12/1000 -> 30.08 | AQ12: =AC12*K12+($A$4-80)*AJ12*$A$12/1000 -> 29.4125 | AR12: =AD12*M12+($A$4-80)*AK12*$A$12/1000 -> 28.71 | AS12: =AE12*O12+($A$4-80)*AL12*$A$12/1000 -> 26.91
B13: 67 | C13: 49.5 | D13: 38.61 | E13: 47.5 | F13: 38 | G13: 46.25 | H13: 37.4625 | I13: 45 | J13: 36.9 | K13: 43.25 | L13: 36.11375 | M13: 41.5 | N13: 35.275 | O13: 37.2 | P13: 33.48 | R13: 1.042105263 | S13: 1 | T13: 0.9736842105 | U13: 0.9473684211 | V13: 0.9105263158 | W13: 0.8736842105 | X13: 0.7831578947 | Y13: 0.78 | Z13: 0.8 | AA13: 0.81 | AB13: 0.82 | AC13: 0.835 | AD13: 0.85 | AE13: 0.9 | AF13: 1.002531646 | AG13: 1.022151899 | AH13: 0.9952531646 | AI13: 0.9683544304 | AJ13: 0.9569620253 | AK13: 0.9455696203 | AL13: 0.9417721519 | AM13: =Y13*C13+($A$4-80)*AF13*$A$12/1000 -> 38.61 | AN13: =Z13*E13+($A$4-80)*AG13*$A$12/1000 -> 38 | AO13: =AA13*G13+($A$4-80)*AH13*$A$12/1000 -> 37.4625 | AP13: =AB13*I13+($A$4-80)*AI13*$A$12/1000 -> 36.9 | AQ13: =AC13*K13+($A$4-80)*AJ13*$A$12/1000 -> 36.11375 | AR13: =AD13*M13+($A$4-80)*AK13*$A$12/1000 -> 35.275 | AS13: =AE13*O13+($A$4-80)*AL13*$A$12/1000 -> 33.48
B14: 63 | C14: 47 | D14: 45.12 | E14: =S14*$E$13 -> 45 | F14: 44.1 | G14: 44 | H14: 43.56 | I14: 43 | J14: 43 | K14: 41.5 | L14: 41.5 | M14: 40 | N14: 40 | O14: 36.4 | P14: 36.4 | R14: 0.9894736842 | S14: 0.9473684211 | T14: 0.9263157895 | U14: 0.9052631579 | V14: 0.8736842105 | W14: 0.8421052632 | X14: 0.7663157895 | Y14: 0.96 | Z14: 0.98 | AA14: 0.99 | AB14: 1 | AC14: 1 | AD14: 1 | AE14: 1 | AF14: 0.9518987342 | AG14: 0.9113924051 | AH14: 0.8911392405 | AI14: 0.8708860759 | AJ14: 0.764556962 | AK14: 0.6582278481 | AL14: 0.3686075949 | AM14: 45.12 | AN14: =Z14*E14+($A$4-80)*AG14*$A$12/1000 -> 44.1 | AO14: =AA14*G14+($A$4-80)*AH14*$A$12/1000 -> 43.56 | AP14: 43 | AQ14: 41.5 | AR14: 40 | AS14: 36.4
B15: 59 | C15: 46.5 | D15: 46.5 | E15: 44.5 | F15: 44.5 | G15: 43.5 | H15: 43.5 | I15: 42.5 | J15: 42.5 | K15: 41.25 | L15: 41.25 | M15: 40 | N15: 40 | O15: 36.4 | P15: 36.4 | R15: 0.9789473684 | S15: 0.9368421053 | T15: 0.9157894737 | U15: 0.8947368421 | V15: 0.8684210526 | W15: 0.8421052632 | X15: 0.7663157895 | Y15: 1 | Z15: 1 | AA15: 1 | AB15: 1 | AC15: 1 | AD15: 1 | AE15: 1 | AF15: 0.05886075949 | AG15: 0 | AH15: 0 | AI15: 0 | AJ15: 0 | AK15: 0 | AL15: 0 | AM15: 46.5 | AN15: =Z15*E15+($A$4-80)*AG15*$A$12/1000 -> 44.5 | AO15: =AA15*G15+($A$4-80)*AH15*$A$12/1000 -> 43.5 | AP15: 42.5 | AQ15: 41.25 | AR15: 40 | AS15: 36.4
A16: 1725 | B16: 71 | C16: 53 | D16: 33.39 | E16: 50.5 | F16: 32.32 | G16: 49.25 | H16: 32.0125 | I16: 48 | J16: 31.68 | K16: 46 | L16: 30.82 | M16: 44 | N16: 29.92 | O16: 39.5 | P16: 28.045 | R16: 1.115789474 | S16: 1.063157895 | T16: 1.036842105 | U16: 1.010526316 | V16: 0.9684210526 | W16: 0.9263157895 | X16: 0.8315789474 | Y16: 0.63 | Z16: 0.64 | AA16: 0.65 | AB16: 0.66 | AC16: 0.67 | AD16: 0.68 | AE16: 0.71 | AF16: 0.9831884058 | AG16: 0.9953623188 | AH16: 0.9985507246 | AI16: 1.00173913 | AJ16: 0.9855072464 | AK16: 0.9692753623 | AL16: 0.915942029 | AM16: =Y16*C16+($A$4-80)*AF16*$A$16/1000 -> 33.39 | AN16: =Z16*E16+($A$4-80)*AG16*$A$16/1000 -> 32.32 | AO16: =AA16*G16+($A$4-80)*AH16*$A$16/1000 -> 32.0125 | AP16: =AB16*I16+($A$4-80)*AI16*$A$16/1000 -> 31.68 | AQ16: =AC16*K16+($A$4-80)*AJ16*$A$16/1000 -> 30.82 | AR16: =AD16*M16+($A$4-80)*AK16*$A$16/1000 -> 29.92 | AS16: =AE16*O16+($A$4-80)*AL16*$A$16/1000 -> 28.045
B17: 67 | C17: 50.5 | D17: 40.4 | E17: 48 | F17: 39.36 | G17: 46.75 | H17: 39.03625 | I17: 45.5 | J17: 38.675 | K17: 43.75 | L17: 37.84375 | M17: 42 | N17: 36.96 | O17: 37.8 | P17: 35.532 | R17: 1.063157895 | S17: 1.010526316 | T17: 0.9842105263 | U17: 0.9578947368 | V17: 0.9210526316 | W17: 0.8842105263 | X17: 0.7957894737 | Y17: 0.8 | Z17: 0.82 | AA17: 0.835 | AB17: 0.85 | AC17: 0.865 | AD17: 0.88 | AE17: 0.94 | AF17: 0.9368115942 | AG17: 0.9460869565 | AH17: 0.9742028986 | AI17: 1.002318841 | AJ17: 0.9637681159 | AK17: 0.9252173913 | AL17: 0.964173913 | AM17: =Y17*C17+($A$4-80)*AF17*$A$16/1000 -> 40.4 | AN17: =Z17*E17+($A$4-80)*AG17*$A$16/1000 -> 39.36 | AO17: =AA17*G17+($A$4-80)*AH17*$A$16/1000 -> 39.03625 | AP17: =AB17*I17+($A$4-80)*AI17*$A$16/1000 -> 38.675 | AQ17: =AC17*K17+($A$4-80)*AJ17*$A$16/1000 -> 37.84375 | AR17: =AD17*M17+($A$4-80)*AK17*$A$16/1000 -> 36.96 | AS17: =AE17*O17+($A$4-80)*AL17*$A$16/1000 -> 35.532
B18: 63 | C18: 48 | D18: 47.04 | E18: 46 | F18: 46 | G18: 44.75 | H18: 44.75 | I18: 43.5 | J18: 43.5 | K18: 42.25 | L18: 42.25 | M18: 41 | N18: 41 | O18: 37.2 | P18: 37.2 | R18: 1.010526316 | S18: 0.9684210526 | T18: 0.9421052632 | U18: 0.9157894737 | V18: 0.8894736842 | W18: 0.8631578947 | X18: 0.7831578947 | Y18: 0.98 | Z18: 1 | AA18: 1 | AB18: 1 | AC18: 1 | AD18: 1 | AE18: 1 | AF18: 0.8904347826 | AG18: 0.8533333333 | AH18: 0.7544927536 | AI18: 0.6556521739 | AJ18: 0.5655072464 | AK18: 0.4753623188 | AL18: 0.1725217391 | AM18: 47.04 | AN18: =Z18*E18+($A$4-80)*AG18*$A$16/1000 -> 46 | AO18: =AA18*G18+($A$4-80)*AH18*$A$16/1000 -> 44.75 | AP18: 43.5 | AQ18: 42.25 | AR18: 41 | AS18: 37.2
B19: 59 | C19: 47.5 | D19: 47.5 | E19: 45.5 | F19: 45.5 | G19: 44.5 | H19: 44.5 | I19: 43.5 | J19: 43.5 | K19: 42 | L19: 42 | M19: 40.5 | N19: 40.5 | O19: 37.2 | P19: 37.2 | R19: 1 | S19: 0.9578947368 | T19: 0.9368421053 | U19: 0.9157894737 | V19: 0.8842105263 | W19: 0.8526315789 | X19: 0.7831578947 | Y19: 1 | Z19: 1 | AA19: 1 | AB19: 1 | AC19: 1 | AD19: 1 | AE19: 1 | AF19: 0 | AG19: 0 | AH19: 0 | AI19: 0 | AJ19: 0 | AK19: 0 | AL19: 0 | AM19: 47.5 | AN19: =Z19*E19+($A$4-80)*AG19*$A$16/1000 -> 45.5 | AO19: =AA19*G19+($A$4-80)*AH19*$A$16/1000 -> 44.5 | AP19: 43.5 | AQ19: 42 | AR19: 40.5 | AS19: 37.2

Sheet XC20_60 (hidden)
A2: XC20_60
A3: Evaporator Air | C3: Condenser Entering Air Temperature ˚F
A4: 80 | B4: °F DB | C4: 85 | E4: 95 | G4: 100 | I4: 105 | K4: 110 | M4: 115 | O4: 125
A5: CFM | B5: EWB† ˚F | C5: Capacity Mbtuh | E5: Capacity Mbtuh | G5: Capacity Mbtuh | I5: Capacity Mbtuh | K5: Capacity Mbtuh | M5: Capacity Mbtuh | O5: Capacity Mbtuh
C6: Total | D6: Sens. | E6: Total | F6: Sens. | G6: Total | H6: Sens. | I6: Total | J6: Sens. | K6: Total | L6: Sens. | M6: Total | N6: Sens. | O6: Total | P6: Sens.
R7: Total Factors | Y7: Sens. % | AF7: IDB Adj | AM7: Sens Calc
A8: 1070 | B8: 71 | C8: =R8*$E$13 -> 45.87606838 | D8: =IF(AM8>C8,C8,AM8) -> 24.31431624 | E8: =S8*$E$13 -> 44.25213675 | F8: =IF(AN8>E8,E8,AN8) -> 23.89615385 | G8: =T8*$E$13 -> 43.44017094 | H8: =IF(AO8>G8,G8,AO8) -> 23.45769231 | I8: =U8*$E$13 -> 42.62820513 | J8: =IF(AP8>I8,I8,AP8) -> 23.01923077 | K8: =V8*$E$13 -> 41.61324786 | L8: =IF(AQ8>K8,K8,AQ8) -> 22.67922009 | M8: =W8*$E$13 -> 40.5982906 | N8: =IF(AR8>M8,M8,AR8) -> 22.32905983 | O8: =X8*$E$13 -> 19.64957265 | P8: =IF(AS8>O8,O8,AS8) -> 14.34418803 | R8: 0.9658119658 | S8: 0.9316239316 | T8: 0.9145299145 | U8: 0.8974358974 | V8: 0.8760683761 | W8: 0.8547008547 | X8: 0.4136752137 | Y8: 0.53 | Z8: 0.54 | AA8: 0.54 | AB8: 0.54 | AC8: 0.545 | AD8: 0.55 | AE8: 0.73 | AF8: 0.9504672897 | AG8: 1.120560748 | AH8: 1.050934579 | AI8: 0.9813084112 | AJ8: 1.004672897 | AK8: 1.028037383 | AL8: 0.9499065421 | AM8: =Y8*C8+($A$4-80)*AF8*$A$8/1000 -> 24.31431624 | AN8: =Z8*E8+($A$4-80)*AG8*$A$8/1000 -> 23.89615385 | AO8: =AA8*G8+($A$4-80)*AH8*$A$8/1000 -> 23.45769231 | AP8: =AB8*I8+($A$4-80)*AI8*$A$8/1000 -> 23.01923077 | AQ8: =AC8*K8+($A$4-80)*AJ8*$A$8/1000 -> 22.67922009 | AR8: =AD8*M8+($A$4-80)*AK8*$A$8/1000 -> 22.32905983 | AS8: =AE8*O8+($A$4-80)*AL8*$A$8/1000 -> 14.34418803
B9: 67 | C9: 43.84615385 | D9: 28.5 | E9: =S9*$E$13 -> 42.22222222 | F9: =IF(AN9>E9,E9,AN9) -> 27.86666667 | G9: 41.41025641 | H9: =IF(AO9>G9,G9,AO9) -> 27.53782051 | I9: 40.5982906 | J9: =IF(AP9>I9,I9,AP9) -> 27.2008547 | K9: 39.58333333 | L9: =IF(AQ9>K9,K9,AQ9) -> 26.71875 | M9: 38.56837607 | N9: =IF(AR9>M9,M9,AR9) -> 26.22649573 | O9: 18.51282051 | P9: =IF(AS9>O9,O9,AS9) -> 17.9574359 | R9: 0.9230769231 | S9: 0.8888888889 | T9: 0.8717948718 | U9: 0.8547008547 | V9: 0.8333333333 | W9: 0.811965812 | X9: 0.3897435897 | Y9: 0.65 | Z9: 0.66 | AA9: 0.665 | AB9: 0.67 | AC9: 0.675 | AD9: 0.68 | AE9: 0.97 | AF9: 1.009345794 | AG9: 0.9719626168 | AH9: 1 | AI9: 1.028037383 | AJ9: 1.002336449 | AK9: 0.976635514 | AL9: 0.9801869159 | AM9: =Y9*C9+($A$4-80)*AF9*$A$8/1000 -> 28.5 | AN9: =Z9*E9+($A$4-80)*AG9*$A$8/1000 -> 27.86666667 | AO9: =AA9*G9+($A$4-80)*AH9*$A$8/1000 -> 27.53782051 | AP9: =AB9*I9+($A$4-80)*AI9*$A$8/1000 -> 27.2008547 | AQ9: =AC9*K9+($A$4-80)*AJ9*$A$8/1000 -> 26.71875 | AR9: =AD9*M9+($A$4-80)*AK9*$A$8/1000 -> 26.22649573 | AS9: =AE9*O9+($A$4-80)*AL9*$A$8/1000 -> 17.9574359
B10: 63 | C10: 41.41025641 | D10: 32.3 | E10: =S10*$E$13 -> 39.78632479 | F10: 31.82905983 | G10: 38.97435897 | H10: 31.37435897 | I10: 38.16239316 | J10: 30.91153846 | K10: 37.35042735 | L10: 30.62735043 | M10: 36.53846154 | N10: 30.32692308 | O10: 18.35042735 | P10: 18.35042735 | R10: 0.8717948718 | S10: 0.8376068376 | T10: 0.8205128205 | U10: 0.8034188034 | V10: 0.7863247863 | W10: 0.7692307692 | X10: 0.3863247863 | Y10: 0.78 | Z10: 0.8 | AA10: 0.805 | AB10: 0.81 | AC10: 0.82 | AD10: 0.83 | AE10: 1 | AF10: 0.953271028 | AG10: 1.007476636 | AH10: 0.9869158879 | AI10: 0.9663551402 | AJ10: 0.9878504673 | AK10: 1.009345794 | AL10: 0.04224299065 | AM10: 32.3 | AN10: =Z10*E10+($A$4-80)*AG10*$A$8/1000 -> 31.82905983 | AO10: =AA10*G10+($A$4-80)*AH10*$A$8/1000 -> 31.37435897 | AP10: 30.91153846 | AQ10: 30.62735043 | AR10: 30.32692308 | AS10: 18.35042735
B11: 59 | C11: 38.97435897 | D11: 36.24615385 | E11: =S11*$E$13 -> 37.75641026 | F11: 35.49102564 | G11: 36.94444444 | H11: 35.09722222 | I11: 36.13247863 | J11: 34.68717949 | K11: 35.32051282 | L11: 34.26089744 | M11: 34.50854701 | N11: 33.81837607 | O11: 18.35042735 | P11: 18.35042735 | R11: 0.8205128205 | S11: 0.7948717949 | T11: 0.7777777778 | U11: 0.7606837607 | V11: 0.7435897436 | W11: 0.7264957265 | X11: 0.3863247863 | Y11: 0.93 | Z11: 0.94 | AA11: 0.95 | AB11: 0.96 | AC11: 0.97 | AD11: 0.98 | AE11: 1 | AF11: 0.9869158879 | AG11: 0.9560747664 | AH11: 0.9771028037 | AI11: 0.9981308411 | AJ11: 0.9757009346 | AK11: 0.953271028 | AL11: 0 | AM11: 36.24615385 | AN11: =Z11*E11+($A$4-80)*AG11*$A$8/1000 -> 35.49102564 | AO11: =AA11*G11+($A$4-80)*AH11*$A$8/1000 -> 35.09722222 | AP11: =AB11*I11+($A$4-80)*AI11*$A$8/1000 -> 34.68717949 | AQ11: 34.26089744 | AR11: 33.81837607 | AS11: 18.35042735
A12: 1825 | B12: 71 | C12: 52.37179487 | D12: 30.89935897 | E12: =S12*$E$13 -> 50.34188034 | F12: 30.20512821 | G12: 49.12393162 | H12: 29.71997863 | I12: 47.90598291 | J12: 29.22264957 | K12: 46.89102564 | L12: 28.83798077 | M12: 45.87606838 | N12: 28.44316239 | O12: 21.11111111 | P12: 19 | R12: 1.102564103 | S12: 1.05982906 | T12: 1.034188034 | U12: 1.008547009 | V12: 0.9871794872 | W12: 0.9658119658 | X12: 0.4444444444 | Y12: 0.59 | Z12: 0.6 | AA12: 0.605 | AB12: 0.61 | AC12: 0.615 | AD12: 0.62 | AE12: 0.9 | AF12: 0.9189041096 | AG12: 0.9512328767 | AH12: 0.9605479452 | AI12: 0.9698630137 | AJ12: 0.9493150685 | AK12: 0.9287671233 | AL12: 0.9117808219 | AM12: =Y12*C12+($A$4-80)*AF12*$A$12/1000 -> 30.89935897 | AN12: =Z12*E12+($A$4-80)*AG12*$A$12/1000 -> 30.20512821 | AO12: =AA12*G12+($A$4-80)*AH12*$A$12/1000 -> 29.71997863 | AP12: =AB12*I12+($A$4-80)*AI12*$A$12/1000 -> 29.22264957 | AQ12: =AC12*K12+($A$4-80)*AJ12*$A$12/1000 -> 28.83798077 | AR12: =AD12*M12+($A$4-80)*AK12*$A$12/1000 -> 28.44316239 | AS12: =AE12*O12+($A$4-80)*AL12*$A$12/1000 -> 19
B13: 67 | C13: 49.52991453 | D13: 36.65213675 | E13: 47.5 | F13: 36.1 | G13: 46.48504274 | H13: 35.56105769 | I13: 45.47008547 | J13: 35.01196581 | K13: 44.45512821 | L13: 34.675 | M13: 43.44017094 | N13: 34.31773504 | O13: 20.78632479 | P13: 20.78632479 | R13: 1.042735043 | S13: 1 | T13: 0.9786324786 | U13: 0.9572649573 | V13: 0.9358974359 | W13: 0.9145299145 | X13: 0.4376068376 | Y13: 0.74 | Z13: 0.76 | AA13: 0.765 | AB13: 0.77 | AC13: 0.78 | AD13: 0.79 | AE13: 1 | AF13: 0.8690410959 | AG13: 0.9616438356 | AH13: 0.9410958904 | AI13: 0.9205479452 | AJ13: 0.9293150685 | AK13: 0.9380821918 | AL13: 0.2524931507 | AM13: =Y13*C13+($A$4-80)*AF13*$A$12/1000 -> 36.65213675 | AN13: =Z13*E13+($A$4-80)*AG13*$A$12/1000 -> 36.1 | AO13: =AA13*G13+($A$4-80)*AH13*$A$12/1000 -> 35.56105769 | AP13: =AB13*I13+($A$4-80)*AI13*$A$12/1000 -> 35.01196581 | AQ13: =AC13*K13+($A$4-80)*AJ13*$A$12/1000 -> 34.675 | AR13: =AD13*M13+($A$4-80)*AK13*$A$12/1000 -> 34.31773504 | AS13: =AE13*O13+($A$4-80)*AL13*$A$12/1000 -> 20.78632479
B14: 63 | C14: 47.09401709 | D14: 42.85555556 | E14: =S14*$E$13 -> 45.47008547 | F14: 42.28717949 | G14: 44.45512821 | H14: 41.78782051 | I14: 43.44017094 | J14: 41.26816239 | K14: 42.42521368 | L14: 40.72820513 | M14: 41.41025641 | N14: 40.16794872 | O14: 20.62393162 | P14: 20.62393162 | R14: 0.9914529915 | S14: 0.9572649573 | T14: 0.9358974359 | U14: 0.9145299145 | V14: 0.8931623932 | W14: 0.8717948718 | X14: 0.4341880342 | Y14: 0.91 | Z14: 0.93 | AA14: 0.94 | AB14: 0.95 | AC14: 0.96 | AD14: 0.97 | AE14: 1 | AF14: 0.8898630137 | AG14: 0.9205479452 | AH14: 0.9 | AI14: 0.8794520548 | AJ14: 0.8868493151 | AK14: 0.8942465753 | AL14: 0 | AM14: 42.85555556 | AN14: =Z14*E14+($A$4-80)*AG14*$A$12/1000 -> 42.28717949 | AO14: =AA14*G14+($A$4-80)*AH14*$A$12/1000 -> 41.78782051 | AP14: 41.26816239 | AQ14: 40.72820513 | AR14: 40.16794872 | AS14: 20.62393162
B15: 59 | C15: 45.87606838 | D15: 45.87606838 | E15: 44.25213675 | F15: 44.25213675 | G15: 43.44017094 | H15: 43.44017094 | I15: 42.62820513 | J15: 42.62820513 | K15: 41.61324786 | L15: 41.61324786 | M15: 40.5982906 | N15: 40.5982906 | O15: 20.62393162 | P15: 20.62393162 | R15: 0.9658119658 | S15: 0.9316239316 | T15: 0.9145299145 | U15: 0.8974358974 | V15: 0.8760683761 | W15: 0.8547008547 | X15: 0.4341880342 | Y15: 1 | Z15: 1 | AA15: 1 | AB15: 1 | AC15: 1 | AD15: 1 | AE15: 1 | AF15: 0.3715068493 | AG15: 0.2389041096 | AH15: 0.1769863014 | AI15: 0.1150684932 | AJ15: 0.05753424658 | AK15: 0 | AL15: 0 | AM15: 45.87606838 | AN15: =Z15*E15+($A$4-80)*AG15*$A$12/1000 -> 44.25213675 | AO15: =AA15*G15+($A$4-80)*AH15*$A$12/1000 -> 43.44017094 | AP15: 42.62820513 | AQ15: 41.61324786 | AR15: 40.5982906 | AS15: 20.62393162
A16: 1900 | B16: 71 | C16: 52.77777778 | D16: 31.66666667 | E16: 50.34188034 | F16: 30.20512821 | G16: 49.32692308 | H16: 30.08942308 | I16: 48.31196581 | J16: 29.9534188 | K16: 47.29700855 | L16: 29.56063034 | M16: 46.28205128 | N16: 29.15769231 | O16: 21.27350427 | P16: 19.57162393 | R16: 1.111111111 | S16: 1.05982906 | T16: 1.038461538 | U16: 1.017094017 | V16: 0.9957264957 | W16: 0.9743589744 | X16: 0.4478632479 | Y16: 0.6 | Z16: 0.6 | AA16: 0.61 | AB16: 0.62 | AC16: 0.625 | AD16: 0.63 | AE16: 0.92 | AF16: 0.9578947368 | AG16: 0.9136842105 | AH16: 0.9578947368 | AI16: 1.002105263 | AJ16: 0.9810526316 | AK16: 0.96 | AL16: 0.9101052632 | AM16: =Y16*C16+($A$4-80)*AF16*$A$16/1000 -> 31.66666667 | AN16: =Z16*E16+($A$4-80)*AG16*$A$16/1000 -> 30.20512821 | AO16: =AA16*G16+($A$4-80)*AH16*$A$16/1000 -> 30.08942308 | AP16: =AB16*I16+($A$4-80)*AI16*$A$16/1000 -> 29.9534188 | AQ16: =AC16*K16+($A$4-80)*AJ16*$A$16/1000 -> 29.56063034 | AR16: =AD16*M16+($A$4-80)*AK16*$A$16/1000 -> 29.15769231 | AS16: =AE16*O16+($A$4-80)*AL16*$A$16/1000 -> 19.57162393
B17: 67 | C17: 49.93589744 | D17: 37.45192308 | E17: 47.90598291 | F17: 36.88760684 | G17: 47.09401709 | H17: 36.49786325 | I17: 46.28205128 | J17: 36.1 | K17: 45.06410256 | L17: 35.60064103 | M17: 43.84615385 | N17: 35.07692308 | O17: 20.78632479 | P17: 20.78632479 | R17: 1.051282051 | S17: 1.008547009 | T17: 0.9914529915 | U17: 0.9743589744 | V17: 0.9487179487 | W17: 0.9230769231 | X17: 0.4376068376 | Y17: 0.75 | Z17: 0.77 | AA17: 0.775 | AB17: 0.78 | AC17: 0.79 | AD17: 0.8 | AE17: 1 | AF17: 0.9063157895 | AG17: 0.9315789474 | AH17: 0.9157894737 | AI17: 0.9 | AJ17: 0.9047368421 | AK17: 0.9094736842 | AL17: 0.2155789474 | AM17: =Y17*C17+($A$4-80)*AF17*$A$16/1000 -> 37.45192308 | AN17: =Z17*E17+($A$4-80)*AG17*$A$16/1000 -> 36.88760684 | AO17: =AA17*G17+($A$4-80)*AH17*$A$16/1000 -> 36.49786325 | AP17: =AB17*I17+($A$4-80)*AI17*$A$16/1000 -> 36.1 | AQ17: =AC17*K17+($A$4-80)*AJ17*$A$16/1000 -> 35.60064103 | AR17: =AD17*M17+($A$4-80)*AK17*$A$16/1000 -> 35.07692308 | AS17: =AE17*O17+($A$4-80)*AL17*$A$16/1000 -> 20.78632479
B18: 63 | C18: 47.5 | D18: 43.7 | E18: 45.87606838 | F18: 43.12350427 | G18: 44.86111111 | H18: 42.61805556 | I18: 43.84615385 | J18: 42.09230769 | K18: 42.83119658 | L18: 41.54626068 | M18: 41.81623932 | N18: 40.97991453 | O18: 20.78632479 | P18: 20.78632479 | R18: 1 | S18: 0.9658119658 | T18: 0.9444444444 | U18: 0.9230769231 | V18: 0.9017094017 | W18: 0.8803418803 | X18: 0.4376068376 | Y18: 0.92 | Z18: 0.94 | AA18: 0.95 | AB18: 0.96 | AC18: 0.97 | AD18: 0.98 | AE18: 1 | AF18: 0.8621052632 | AG18: 0.8921052632 | AH18: 0.8723684211 | AI18: 0.8526315789 | AJ18: 0.8328947368 | AK18: 0.8131578947 | AL18: 0 | AM18: 43.7 | AN18: =Z18*E18+($A$4-80)*AG18*$A$16/1000 -> 43.12350427 | AO18: =AA18*G18+($A$4-80)*AH18*$A$16/1000 -> 42.61805556 | AP18: 42.09230769 | AQ18: 41.54626068 | AR18: 40.97991453 | AS18: 20.78632479
B19: 59 | C19: 46.28205128 | D19: 46.28205128 | E19: 44.65811966 | F19: 44.65811966 | G19: 43.84615385 | H19: 43.84615385 | I19: 43.03418803 | J19: 43.03418803 | K19: 42.22222222 | L19: 42.22222222 | M19: 41.41025641 | N19: 41.41025641 | O19: 20.78632479 | P19: 20.78632479 | R19: 0.9743589744 | S19: 0.9401709402 | T19: 0.9230769231 | U19: 0.905982906 | V19: 0.8888888889 | W19: 0.8717948718 | X19: 0.4376068376 | Y19: 1 | Z19: 1 | AA19: 1 | AB19: 1 | AC19: 1 | AD19: 1 | AE19: 1 | AF19: 0.3 | AG19: 0.1736842105 | AH19: 0.1147368421 | AI19: 0.05578947368 | AJ19: 0.02789473684 | AK19: 0 | AL19: 0 | AM19: 46.28205128 | AN19: =Z19*E19+($A$4-80)*AG19*$A$16/1000 -> 44.65811966 | AO19: =AA19*G19+($A$4-80)*AH19*$A$16/1000 -> 43.84615385 | AP19: 43.03418803 | AQ19: 42.22222222 | AR19: 41.41025641 | AS19: 20.78632479

Sheet SL18XC_24 (hidden)
A2: SL18XC_24
A3: Evaporator Air | C3: Condenser Entering Air Temperature ˚F
A4: 80 | B4: °F DB | C4: 85 | E4: 95 | G4: 100 | I4: 105 | K4: 110 | M4: 115 | O4: 125
A5: CFM | B5: EWB† ˚F | C5: Capacity Mbtuh | E5: Capacity Mbtuh | G5: Capacity Mbtuh | I5: Capacity Mbtuh | K5: Capacity Mbtuh | M5: Capacity Mbtuh | O5: Capacity Mbtuh
C6: Total | D6: Sens. | E6: Total | F6: Sens. | G6: Total | H6: Sens. | I6: Total | J6: Sens. | K6: Total | L6: Sens. | M6: Total | N6: Sens. | O6: Total | P6: Sens.
R7: Total Factors | Y7: Sens. % | AF7: IDB Adj | AM7: Sens Calc
A8: 700 | B8: 71 | C8: =R8*$E$13 -> 50.72033898 | D8: =IF(AM8>C8,C8,AM8) -> 29.925 | E8: =S8*$E$13 -> 48.30508475 | F8: =IF(AN8>E8,E8,AN8) -> 28.98305085 | G8: =T8*$E$13 -> 47.29872881 | H8: =IF(AO8>G8,G8,AO8) -> 28.61573093 | I8: =U8*$E$13 -> 46.29237288 | J8: =IF(AP8>I8,I8,AP8) -> 28.23834746 | K8: =V8*$E$13 -> 44.88347458 | L8: =IF(AQ8>K8,K8,AQ8) -> 27.82775424 | M8: =W8*$E$13 -> 43.47457627 | N8: =IF(AR8>M8,M8,AR8) -> 27.38898305 | O8: =X8*$E$13 -> 40.65677966 | P8: =IF(AS8>O8,O8,AS8) -> 26.02033898 | R8: 1.06779661 | S8: 1.016949153 | T8: 0.9957627119 | U8: 0.9745762712 | V8: 0.9449152542 | W8: 0.9152542373 | X8: 0.8559322034 | Y8: 0.59 | Z8: 0.6 | AA8: 0.605 | AB8: 0.61 | AC8: 0.62 | AD8: 0.63 | AE8: 0.64 | AF8: 0.864 | AG8: 0.8914285714 | AH8: 0.8728571429 | AI8: 0.8542857143 | AJ8: 0.8591428571 | AK8: 0.864 | AL8: 0.808 | AM8: =Y8*C8+($A$4-80)*AF8*$A$8/1000 -> 29.925 | AN8: =Z8*E8+($A$4-80)*AG8*$A$8/1000 -> 28.98305085 | AO8: =AA8*G8+($A$4-80)*AH8*$A$8/1000 -> 28.61573093 | AP8: =AB8*I8+($A$4-80)*AI8*$A$8/1000 -> 28.23834746 | AQ8: =AC8*K8+($A$4-80)*AJ8*$A$8/1000 -> 27.82775424 | AR8: =AD8*M8+($A$4-80)*AK8*$A$8/1000 -> 27.38898305 | AS8: =AE8*O8+($A$4-80)*AL8*$A$8/1000 -> 26.02033898
B9: 67 | C9: 48.30508475 | D9: 35.26271186 | E9: =S9*$E$13 -> 46.29237288 | F9: =IF(AN9>E9,E9,AN9) -> 34.25635593 | G9: 45.08474576 | H9: =IF(AO9>G9,G9,AO9) -> 33.81355932 | I9: 43.87711864 | J9: =IF(AP9>I9,I9,AP9) -> 33.34661017 | K9: 42.66949153 | L9: =IF(AQ9>K9,K9,AQ9) -> 32.85550847 | M9: 41.46186441 | N9: =IF(AR9>M9,M9,AR9) -> 32.34025424 | O9: 38.44279661 | P9: =IF(AS9>O9,O9,AS9) -> 30.75423729 | R9: 1.016949153 | S9: 0.9745762712 | T9: 0.9491525424 | U9: 0.9237288136 | V9: 0.8983050847 | W9: 0.8728813559 | X9: 0.8093220339 | Y9: 0.73 | Z9: 0.74 | AA9: 0.75 | AB9: 0.76 | AC9: 0.77 | AD9: 0.78 | AE9: 0.8 | AF9: 0.8228571429 | AG9: 0.7885714286 | AH9: 0.8302857143 | AI9: 0.872 | AJ9: 0.848 | AK9: 0.824 | AL9: 0.764 | AM9: =Y9*C9+($A$4-80)*AF9*$A$8/1000 -> 35.26271186 | AN9: =Z9*E9+($A$4-80)*AG9*$A$8/1000 -> 34.25635593 | AO9: =AA9*G9+($A$4-80)*AH9*$A$8/1000 -> 33.81355932 | AP9: =AB9*I9+($A$4-80)*AI9*$A$8/1000 -> 33.34661017 | AQ9: =AC9*K9+($A$4-80)*AJ9*$A$8/1000 -> 32.85550847 | AR9: =AD9*M9+($A$4-80)*AK9*$A$8/1000 -> 32.34025424 | AS9: =AE9*O9+($A$4-80)*AL9*$A$8/1000 -> 30.75423729
B10: 63 | C10: 45.48728814 | D10: 39.57394068 | E10: =S10*$E$13 -> 43.47457627 | F10: 38.69237288 | G10: 42.46822034 | H10: 38.43373941 | I10: 41.46186441 | J10: 38.14491525 | K10: 40.25423729 | L10: 37.63771186 | M10: 39.04661017 | N10: 37.09427966 | O10: 36.43008475 | P10: 35.70148305 | R10: 0.9576271186 | S10: 0.9152542373 | T10: 0.8940677966 | U10: 0.8728813559 | V10: 0.8474576271 | W10: 0.8220338983 | X10: 0.7669491525 | Y10: 0.87 | Z10: 0.89 | AA10: 0.905 | AB10: 0.92 | AC10: 0.935 | AD10: 0.95 | AE10: 0.98 | AF10: 0.7748571429 | AG10: 0.8022857143 | AH10: 0.8131428571 | AI10: 0.824 | AJ10: 0.8277142857 | AK10: 0.8314285714 | AL10: 0.7757142857 | AM10: 39.57394068 | AN10: =Z10*E10+($A$4-80)*AG10*$A$8/1000 -> 38.69237288 | AO10: =AA10*G10+($A$4-80)*AH10*$A$8/1000 -> 38.43373941 | AP10: 38.14491525 | AQ10: 37.63771186 | AR10: 37.09427966 | AS10: 35.70148305
B11: 59 | C11: 43.87711864 | D11: 43.87711864 | E11: =S11*$E$13 -> 42.26694915 | F11: 42.26694915 | G11: 41.46186441 | H11: 41.46186441 | I11: 40.65677966 | J11: 40.65677966 | K11: 39.65042373 | L11: 39.65042373 | M11: 38.6440678 | N11: 38.6440678 | O11: 36.43008475 | P11: 36.43008475 | R11: 0.9237288136 | S11: 0.8898305085 | T11: 0.8728813559 | U11: 0.8559322034 | V11: 0.8347457627 | W11: 0.813559322 | X11: 0.7669491525 | Y11: 1 | Z11: 1 | AA11: 1 | AB11: 1 | AC11: 1 | AD11: 1 | AE11: 1 | AF11: 0.5605714286 | AG11: 0.42 | AH11: 0.3542857143 | AI11: 0.2885714286 | AJ11: 0.1991428571 | AK11: 0.1097142857 | AL11: 0 | AM11: 43.87711864 | AN11: =Z11*E11+($A$4-80)*AG11*$A$8/1000 -> 42.26694915 | AO11: =AA11*G11+($A$4-80)*AH11*$A$8/1000 -> 41.46186441 | AP11: =AB11*I11+($A$4-80)*AI11*$A$8/1000 -> 40.65677966 | AQ11: 39.65042373 | AR11: 38.6440678 | AS11: 36.43008475
A12: 800 | B12: 71 | C12: 51.9279661 | D12: 31.67605932 | E12: =S12*$E$13 -> 49.91525424 | F12: 30.94745763 | G12: 48.70762712 | H12: 30.44226695 | I12: 47.5 | J12: 29.925 | K12: 46.09110169 | L12: 29.26784958 | M12: 44.68220339 | N12: 28.59661017 | O12: 41.46186441 | P12: 27.36483051 | R12: 1.093220339 | S12: 1.050847458 | T12: 1.025423729 | U12: 1 | V12: 0.9703389831 | W12: 0.9406779661 | X12: 0.8728813559 | Y12: 0.61 | Z12: 0.62 | AA12: 0.625 | AB12: 0.63 | AC12: 0.635 | AD12: 0.64 | AE12: 0.66 | AF12: 0.8385 | AG12: 0.806 | AH12: 0.816 | AI12: 0.826 | AJ12: 0.8015 | AK12: 0.777 | AL12: 0.7725 | AM12: =Y12*C12+($A$4-80)*AF12*$A$12/1000 -> 31.67605932 | AN12: =Z12*E12+($A$4-80)*AG12*$A$12/1000 -> 30.94745763 | AO12: =AA12*G12+($A$4-80)*AH12*$A$12/1000 -> 30.44226695 | AP12: =AB12*I12+($A$4-80)*AI12*$A$12/1000 -> 29.925 | AQ12: =AC12*K12+($A$4-80)*AJ12*$A$12/1000 -> 29.26784958 | AR12: =AD12*M12+($A$4-80)*AK12*$A$12/1000 -> 28.59661017 | AS12: =AE12*O12+($A$4-80)*AL12*$A$12/1000 -> 27.36483051
B13: 67 | C13: 49.51271186 | D13: 37.1345339 | E13: 47.5 | F13: 36.1 | G13: 46.29237288 | H13: 35.64512712 | I13: 45.08474576 | J13: 35.16610169 | K13: 43.67584746 | L13: 34.50391949 | M13: 42.26694915 | N13: 33.81355932 | O13: 39.44915254 | P13: 32.74279661 | R13: 1.042372881 | S13: 1 | T13: 0.9745762712 | U13: 0.9491525424 | V13: 0.9194915254 | W13: 0.8898305085 | X13: 0.8305084746 | Y13: 0.75 | Z13: 0.76 | AA13: 0.77 | AB13: 0.78 | AC13: 0.79 | AD13: 0.8 | AE13: 0.83 | AF13: 0.7995 | AG13: 0.767 | AH13: 0.7755 | AI13: 0.784 | AJ13: 0.7595 | AK13: 0.735 | AL13: 0.784 | AM13: =Y13*C13+($A$4-80)*AF13*$A$12/1000 -> 37.1345339 | AN13: =Z13*E13+($A$4-80)*AG13*$A$12/1000 -> 36.1 | AO13: =AA13*G13+($A$4-80)*AH13*$A$12/1000 -> 35.64512712 | AP13: =AB13*I13+($A$4-80)*AI13*$A$12/1000 -> 35.16610169 | AQ13: =AC13*K13+($A$4-80)*AJ13*$A$12/1000 -> 34.50391949 | AR13: =AD13*M13+($A$4-80)*AK13*$A$12/1000 -> 33.81355932 | AS13: =AE13*O13+($A$4-80)*AL13*$A$12/1000 -> 32.74279661
B14: 63 | C14: 47.09745763 | D14: 42.85868644 | E14: =S14*$E$13 -> 44.68220339 | F14: 41.55444915 | G14: 43.67584746 | H14: 41.05529661 | I14: 42.66949153 | J14: 40.53601695 | K14: 41.46186441 | L14: 40.01069915 | M14: 40.25423729 | N14: 39.44915254 | O14: 37.83898305 | P14: 37.83898305 | R14: 0.9915254237 | S14: 0.9406779661 | T14: 0.9194915254 | U14: 0.8983050847 | V14: 0.8728813559 | W14: 0.8474576271 | X14: 0.7966101695 | Y14: 0.91 | Z14: 0.93 | AA14: 0.94 | AB14: 0.95 | AC14: 0.965 | AD14: 0.98 | AE14: 1 | AF14: 0.819 | AG14: 0.777 | AH14: 0.7595 | AI14: 0.742 | AJ14: 0.746 | AK14: 0.75 | AL14: 0.658 | AM14: 42.85868644 | AN14: =Z14*E14+($A$4-80)*AG14*$A$12/1000 -> 41.55444915 | AO14: =AA14*G14+($A$4-80)*AH14*$A$12/1000 -> 41.05529661 | AP14: 40.53601695 | AQ14: 40.01069915 | AR14: 39.44915254 | AS14: 37.83898305
B15: 59 | C15: 45.88983051 | D15: 45.88983051 | E15: 44.27966102 | F15: 44.27966102 | G15: 43.27330508 | H15: 43.27330508 | I15: 42.26694915 | J15: 42.26694915 | K15: 41.26059322 | L15: 41.26059322 | M15: 40.25423729 | N15: 40.25423729 | O15: 37.63771186 | P15: 37.63771186 | R15: 0.9661016949 | S15: 0.9322033898 | T15: 0.9110169492 | U15: 0.8898305085 | V15: 0.8686440678 | W15: 0.8474576271 | X15: 0.7923728814 | Y15: 1 | Z15: 1 | AA15: 1 | AB15: 1 | AC15: 1 | AD15: 1 | AE15: 1 | AF15: 0.342 | AG15: 0.22 | AH15: 0.1625 | AI15: 0.105 | AJ15: 0.0525 | AK15: 0 | AL15: 0 | AM15: 45.88983051 | AN15: =Z15*E15+($A$4-80)*AG15*$A$12/1000 -> 44.27966102 | AO15: =AA15*G15+($A$4-80)*AH15*$A$12/1000 -> 43.27330508 | AP15: 42.26694915 | AQ15: 41.26059322 | AR15: 40.25423729 | AS15: 37.63771186
A16: 900 | B16: 71 | C16: 53.13559322 | D16: 32.9440678 | E16: 51.12288136 | F16: 32.20741525 | G16: 49.71398305 | H16: 31.56837924 | I16: 48.30508475 | J16: 30.91525424 | K16: 46.89618644 | L16: 30.48252119 | M16: 45.48728814 | N16: 30.02161017 | O16: 42.26694915 | P16: 28.74152542 | R16: 1.118644068 | S16: 1.076271186 | T16: 1.046610169 | U16: 1.016949153 | V16: 0.9872881356 | W16: 0.9576271186 | X16: 0.8898305085 | Y16: 0.62 | Z16: 0.63 | AA16: 0.635 | AB16: 0.64 | AC16: 0.65 | AD16: 0.66 | AE16: 0.68 | AF16: 0.7626666667 | AG16: 0.7337777778 | AH16: 0.7402222222 | AI16: 0.7466666667 | AJ16: 0.75 | AK16: 0.7533333333 | AL16: 0.7466666667 | AM16: =Y16*C16+($A$4-80)*AF16*$A$16/1000 -> 32.9440678 | AN16: =Z16*E16+($A$4-80)*AG16*$A$16/1000 -> 32.20741525 | AO16: =AA16*G16+($A$4-80)*AH16*$A$16/1000 -> 31.56837924 | AP16: =AB16*I16+($A$4-80)*AI16*$A$16/1000 -> 30.91525424 | AQ16: =AC16*K16+($A$4-80)*AJ16*$A$16/1000 -> 30.48252119 | AR16: =AD16*M16+($A$4-80)*AK16*$A$16/1000 -> 30.02161017 | AS16: =AE16*O16+($A$4-80)*AL16*$A$16/1000 -> 28.74152542
B17: 67 | C17: 50.72033898 | D17: 39.05466102 | E17: 48.30508475 | F17: 38.16101695 | G17: 47.09745763 | H17: 37.6779661 | I17: 45.88983051 | J17: 37.17076271 | K17: 44.4809322 | L17: 36.47436441 | M17: 43.0720339 | N17: 35.74978814 | O17: 40.0529661 | P17: 34.84608051 | R17: 1.06779661 | S17: 1.016949153 | T17: 0.9915254237 | U17: 0.9661016949 | V17: 0.936440678 | W17: 0.906779661 | X17: 0.843220339 | Y17: 0.77 | Z17: 0.79 | AA17: 0.8 | AB17: 0.81 | AC17: 0.82 | AD17: 0.83 | AE17: 0.87 | AF17: 0.784 | AG17: 0.8 | AH17: 0.78 | AI17: 0.76 | AJ17: 0.7604444444 | AK17: 0.7608888889 | AL17: 0.796 | AM17: =Y17*C17+($A$4-80)*AF17*$A$16/1000 -> 39.05466102 | AN17: =Z17*E17+($A$4-80)*AG17*$A$16/1000 -> 38.16101695 | AO17: =AA17*G17+($A$4-80)*AH17*$A$16/1000 -> 37.6779661 | AP17: =AB17*I17+($A$4-80)*AI17*$A$16/1000 -> 37.17076271 | AQ17: =AC17*K17+($A$4-80)*AJ17*$A$16/1000 -> 36.47436441 | AR17: =AD17*M17+($A$4-80)*AK17*$A$16/1000 -> 35.74978814 | AS17: =AE17*O17+($A$4-80)*AL17*$A$16/1000 -> 34.84608051
B18: 63 | C18: 47.90254237 | D18: 45.02838983 | E18: 45.88983051 | F18: 44.05423729 | G18: 44.88347458 | H18: 43.53697034 | I18: 43.87711864 | J18: 42.99957627 | K18: 42.66949153 | L18: 42.24279661 | M18: 41.46186441 | N18: 41.46186441 | O18: 39.04661017 | P18: 39.04661017 | R18: 1.008474576 | S18: 0.9661016949 | T18: 0.9449152542 | U18: 0.9237288136 | V18: 0.8983050847 | W18: 0.8728813559 | X18: 0.8220338983 | Y18: 0.94 | Z18: 0.96 | AA18: 0.97 | AB18: 0.98 | AC18: 0.99 | AD18: 1 | AE18: 1 | AF18: 0.7933333333 | AG18: 0.76 | AH18: 0.7433333333 | AI18: 0.7266666667 | AJ18: 0.6837777778 | AK18: 0.6408888889 | AL18: 0.4742222222 | AM18: 45.02838983 | AN18: =Z18*E18+($A$4-80)*AG18*$A$16/1000 -> 44.05423729 | AO18: =AA18*G18+($A$4-80)*AH18*$A$16/1000 -> 43.53697034 | AP18: 42.99957627 | AQ18: 42.24279661 | AR18: 41.46186441 | AS18: 39.04661017
B19: 59 | C19: 47.5 | D19: 47.5 | E19: 45.48728814 | F19: 45.48728814 | G19: 44.68220339 | H19: 44.68220339 | I19: 43.87711864 | J19: 43.87711864 | K19: 42.66949153 | L19: 42.66949153 | M19: 41.46186441 | N19: 41.46186441 | O19: 38.84533898 | P19: 38.84533898 | R19: 1 | S19: 0.9576271186 | T19: 0.9406779661 | U19: 0.9237288136 | V19: 0.8983050847 | W19: 0.8728813559 | X19: 0.8177966102 | Y19: 1 | Z19: 1 | AA19: 1 | AB19: 1 | AC19: 1 | AD19: 1 | AE19: 1 | AF19: 0.1573333333 | AG19: 0.05022222222 | AH19: 0.02511111111 | AI19: 0 | AJ19: 0 | AK19: 0 | AL19: 0 | AM19: 47.5 | AN19: =Z19*E19+($A$4-80)*AG19*$A$16/1000 -> 45.48728814 | AO19: =AA19*G19+($A$4-80)*AH19*$A$16/1000 -> 44.68220339 | AP19: 43.87711864 | AQ19: 42.66949153 | AR19: 41.46186441 | AS19: 38.84533898

Sheet SL18XC_30 (hidden)
A2: SL18XC_30
A3: Evaporator Air | C3: Condenser Entering Air Temperature ˚F
A4: 80 | B4: °F DB | C4: 85 | E4: 95 | G4: 100 | I4: 105 | K4: 110 | M4: 115 | O4: 125
A5: CFM | B5: EWB† ˚F | C5: Capacity Mbtuh | E5: Capacity Mbtuh | G5: Capacity Mbtuh | I5: Capacity Mbtuh | K5: Capacity Mbtuh | M5: Capacity Mbtuh | O5: Capacity Mbtuh
C6: Total | D6: Sens. | E6: Total | F6: Sens. | G6: Total | H6: Sens. | I6: Total | J6: Sens. | K6: Total | L6: Sens. | M6: Total | N6: Sens. | O6: Total | P6: Sens.
R7: Total Factors | Y7: Sens. % | AF7: IDB Adj | AM7: Sens Calc
A8: 875 | B8: 71 | C8: =R8*$E$13 -> 34.05714286 | D8: =IF(AM8>C8,C8,AM8) -> 20.43428571 | E8: =S8*$E$13 -> 32.68571429 | F8: =IF(AN8>E8,E8,AN8) -> 19.93828571 | G8: =T8*$E$13 -> 31.88571429 | H8: =IF(AO8>G8,G8,AO8) -> 19.60971429 | I8: =U8*$E$13 -> 31.08571429 | J8: =IF(AP8>I8,I8,AP8) -> 19.27314286 | K8: =V8*$E$13 -> 30.17142857 | L8: =IF(AQ8>K8,K8,AQ8) -> 19.008 | M8: =W8*$E$13 -> 29.25714286 | N8: =IF(AR8>M8,M8,AR8) -> 18.72457143 | O8: =X8*$E$13 -> 27.42857143 | P8: =IF(AS8>O8,O8,AS8) -> 18.10285714 | R8: 1.064285714 | S8: 1.021428571 | T8: 0.9964285714 | U8: 0.9714285714 | V8: 0.9428571429 | W8: 0.9142857143 | X8: 0.8571428571 | Y8: 0.6 | Z8: 0.61 | AA8: 0.615 | AB8: 0.62 | AC8: 0.63 | AD8: 0.64 | AE8: 0.66 | AF8: 0.8173714286 | AG8: 0.8498285714 | AH8: 0.8290285714 | AI8: 0.8082285714 | AJ8: 0.8137142857 | AK8: 0.8192 | AL8: 0.8228571429 | AM8: =Y8*C8+($A$4-80)*AF8*$A$8/1000 -> 20.43428571 | AN8: =Z8*E8+($A$4-80)*AG8*$A$8/1000 -> 19.93828571 | AO8: =AA8*G8+($A$4-80)*AH8*$A$8/1000 -> 19.60971429 | AP8: =AB8*I8+($A$4-80)*AI8*$A$8/1000 -> 19.27314286 | AQ8: =AC8*K8+($A$4-80)*AJ8*$A$8/1000 -> 19.008 | AR8: =AD8*M8+($A$4-80)*AK8*$A$8/1000 -> 18.72457143 | AS8: =AE8*O8+($A$4-80)*AL8*$A$8/1000 -> 18.10285714
B9: 67 | C9: 32.68571429 | D9: 24.18742857 | E9: =S9*$E$13 -> 31.08571429 | F9: =IF(AN9>E9,E9,AN9) -> 23.62514286 | G9: 30.4 | H9: =IF(AO9>G9,G9,AO9) -> 23.256 | I9: 29.71428571 | J9: =IF(AP9>I9,I9,AP9) -> 22.88 | K9: 28.91428571 | L9: =IF(AQ9>K9,K9,AQ9) -> 22.69771429 | M9: 28.11428571 | N9: =IF(AR9>M9,M9,AR9) -> 22.49142857 | O9: 26.05714286 | P9: =IF(AS9>O9,O9,AS9) -> 21.36685714 | R9: 1.021428571 | S9: 0.9714285714 | T9: 0.95 | U9: 0.9285714286 | V9: 0.9035714286 | W9: 0.8785714286 | X9: 0.8142857143 | Y9: 0.74 | Z9: 0.76 | AA9: 0.765 | AB9: 0.77 | AC9: 0.785 | AD9: 0.8 | AE9: 0.82 | AF9: 0.7844571429 | AG9: 0.8082285714 | AH9: 0.7904 | AI9: 0.7725714286 | AJ9: 0.808 | AK9: 0.8434285714 | AL9: 0.7817142857 | AM9: =Y9*C9+($A$4-80)*AF9*$A$8/1000 -> 24.18742857 | AN9: =Z9*E9+($A$4-80)*AG9*$A$8/1000 -> 23.62514286 | AO9: =AA9*G9+($A$4-80)*AH9*$A$8/1000 -> 23.256 | AP9: =AB9*I9+($A$4-80)*AI9*$A$8/1000 -> 22.88 | AQ9: =AC9*K9+($A$4-80)*AJ9*$A$8/1000 -> 22.69771429 | AR9: =AD9*M9+($A$4-80)*AK9*$A$8/1000 -> 22.49142857 | AS9: =AE9*O9+($A$4-80)*AL9*$A$8/1000 -> 21.36685714
B10: 63 | C10: 30.85714286 | D10: 27.46285714 | E10: =S10*$E$13 -> 29.48571429 | F10: 27.12685714 | G10: 28.8 | H10: 26.784 | I10: 28.11428571 | J10: 26.42742857 | K10: 27.31428571 | L10: 26.08514286 | M10: 26.51428571 | N10: 25.71885714 | O10: 24.91428571 | P10: 24.66514286 | R10: 0.9642857143 | S10: 0.9214285714 | T10: 0.9 | U10: 0.8785714286 | V10: 0.8535714286 | W10: 0.8285714286 | X10: 0.7785714286 | Y10: 0.89 | Z10: 0.92 | AA10: 0.93 | AB10: 0.94 | AC10: 0.955 | AD10: 0.97 | AE10: 0.99 | AF10: 0.8022857143 | AG10: 0.8256 | AH10: 0.8064 | AI10: 0.7872 | AJ10: 0.7913142857 | AK10: 0.7954285714 | AL10: 0.7474285714 | AM10: 27.46285714 | AN10: =Z10*E10+($A$4-80)*AG10*$A$8/1000 -> 27.12685714 | AO10: =AA10*G10+($A$4-80)*AH10*$A$8/1000 -> 26.784 | AP10: 26.42742857 | AQ10: 26.08514286 | AR10: 25.71885714 | AS10: 24.66514286
B11: 59 | C11: 29.94285714 | D11: 29.94285714 | E11: =S11*$E$13 -> 29.02857143 | F11: 29.02857143 | G11: 28.34285714 | H11: 28.34285714 | I11: 27.65714286 | J11: 27.65714286 | K11: 27.08571429 | L11: 27.08571429 | M11: 26.51428571 | N11: 26.51428571 | O11: 24.91428571 | P11: 24.91428571 | R11: 0.9357142857 | S11: 0.9071428571 | T11: 0.8857142857 | U11: 0.8642857143 | V11: 0.8464285714 | W11: 0.8285714286 | X11: 0.7785714286 | Y11: 1 | Z11: 1 | AA11: 1 | AB11: 1 | AC11: 1 | AD11: 1 | AE11: 1 | AF11: 0.4192 | AG11: 0.2902857143 | AH11: 0.2281142857 | AI11: 0.1659428571 | AJ11: 0.1094857143 | AK11: 0.05302857143 | AL11: 0 | AM11: 29.94285714 | AN11: =Z11*E11+($A$4-80)*AG11*$A$8/1000 -> 29.02857143 | AO11: =AA11*G11+($A$4-80)*AH11*$A$8/1000 -> 28.34285714 | AP11: =AB11*I11+($A$4-80)*AI11*$A$8/1000 -> 27.65714286 | AQ11: 27.08571429 | AR11: 26.51428571 | AS11: 24.91428571
A12: 1000 | B12: 71 | C12: 34.97142857 | D12: 21.68228571 | E12: =S12*$E$13 -> 33.6 | F12: 21.168 | G12: 32.8 | H12: 20.828 | I12: 32 | J12: 20.48 | K12: 31.08571429 | L12: 20.20571429 | M12: 30.17142857 | N12: 19.91314286 | O12: 28.11428571 | P12: 19.11771429 | R12: 1.092857143 | S12: 1.05 | T12: 1.025 | U12: 1 | V12: 0.9714285714 | W12: 0.9428571429 | X12: 0.8785714286 | Y12: 0.62 | Z12: 0.63 | AA12: 0.635 | AB12: 0.64 | AC12: 0.65 | AD12: 0.66 | AE12: 0.68 | AF12: 0.7956 | AG12: 0.8232 | AH12: 0.8036 | AI12: 0.784 | AJ12: 0.788 | AK12: 0.792 | AL12: 0.7872 | AM12: =Y12*C12+($A$4-80)*AF12*$A$12/1000 -> 21.68228571 | AN12: =Z12*E12+($A$4-80)*AG12*$A$12/1000 -> 21.168 | AO12: =AA12*G12+($A$4-80)*AH12*$A$12/1000 -> 20.828 | AP12: =AB12*I12+($A$4-80)*AI12*$A$12/1000 -> 20.48 | AQ12: =AC12*K12+($A$4-80)*AJ12*$A$12/1000 -> 20.20571429 | AR12: =AD12*M12+($A$4-80)*AK12*$A$12/1000 -> 19.91314286 | AS12: =AE12*O12+($A$4-80)*AL12*$A$12/1000 -> 19.11771429
B13: 67 | C13: 33.37142857 | D13: 25.696 | E13: 32 | F13: 24.96 | G13: 31.2 | H13: 24.648 | I13: 30.4 | J13: 24.32 | K13: 29.48571429 | L13: 24.03085714 | M13: 28.57142857 | N13: 23.71428571 | O13: 26.74285714 | P13: 22.99885714 | R13: 1.042857143 | S13: 1 | T13: 0.975 | U13: 0.95 | V13: 0.9214285714 | W13: 0.8928571429 | X13: 0.8357142857 | Y13: 0.77 | Z13: 0.78 | AA13: 0.79 | AB13: 0.8 | AC13: 0.815 | AD13: 0.83 | AE13: 0.86 | AF13: 0.8176 | AG13: 0.784 | AH13: 0.7644 | AI13: 0.7448 | AJ13: 0.7724 | AK13: 0.8 | AL13: 0.7956 | AM13: =Y13*C13+($A$4-80)*AF13*$A$12/1000 -> 25.696 | AN13: =Z13*E13+($A$4-80)*AG13*$A$12/1000 -> 24.96 | AO13: =AA13*G13+($A$4-80)*AH13*$A$12/1000 -> 24.648 | AP13: =AB13*I13+($A$4-80)*AI13*$A$12/1000 -> 24.32 | AQ13: =AC13*K13+($A$4-80)*AJ13*$A$12/1000 -> 24.03085714 | AR13: =AD13*M13+($A$4-80)*AK13*$A$12/1000 -> 23.71428571 | AS13: =AE13*O13+($A$4-80)*AL13*$A$12/1000 -> 22.99885714
B14: 63 | C14: 31.77142857 | D14: 29.54742857 | E14: =S14*$E$13 -> 30.4 | F14: 29.184 | G14: 29.6 | H14: 28.712 | I14: 28.8 | J14: 28.224 | K14: 28.11428571 | L14: 27.83314286 | M14: 27.42857143 | N14: 27.42857143 | O14: 25.82857143 | P14: 25.82857143 | R14: 0.9928571429 | S14: 0.95 | T14: 0.925 | U14: 0.9 | V14: 0.8785714286 | W14: 0.8571428571 | X14: 0.8071428571 | Y14: 0.93 | Z14: 0.96 | AA14: 0.97 | AB14: 0.98 | AC14: 0.99 | AD14: 1 | AE14: 1 | AF14: 0.7784 | AG14: 0.798 | AH14: 0.8022 | AI14: 0.8064 | AJ14: 0.7632 | AK14: 0.72 | AL14: 0.5424 | AM14: 29.54742857 | AN14: =Z14*E14+($A$4-80)*AG14*$A$12/1000 -> 29.184 | AO14: =AA14*G14+($A$4-80)*AH14*$A$12/1000 -> 28.712 | AP14: 28.224 | AQ14: 27.83314286 | AR14: 27.42857143 | AS14: 25.82857143
B15: 59 | C15: 31.31428571 | D15: 31.31428571 | E15: 29.94285714 | F15: 29.94285714 | G15: 29.37142857 | H15: 29.37142857 | I15: 28.8 | J15: 28.8 | K15: 28.11428571 | L15: 28.11428571 | M15: 27.42857143 | N15: 27.42857143 | O15: 25.82857143 | P15: 25.82857143 | R15: 0.9785714286 | S15: 0.9357142857 | T15: 0.9178571429 | U15: 0.9 | V15: 0.8785714286 | W15: 0.8571428571 | X15: 0.8071428571 | Y15: 1 | Z15: 1 | AA15: 1 | AB15: 1 | AC15: 1 | AD15: 1 | AE15: 1 | AF15: 0.2192 | AG15: 0.1048 | AH15: 0.0524 | AI15: 0 | AJ15: 0 | AK15: 0 | AL15: 0 | AM15: 31.31428571 | AN15: =Z15*E15+($A$4-80)*AG15*$A$12/1000 -> 29.94285714 | AO15: =AA15*G15+($A$4-80)*AH15*$A$12/1000 -> 29.37142857 | AP15: 28.8 | AQ15: 28.11428571 | AR15: 27.42857143 | AS15: 25.82857143
A16: 1125 | B16: 71 | C16: 35.88571429 | D16: 22.96685714 | E16: 34.28571429 | F16: 22.28571429 | G16: 33.37142857 | H16: 21.85828571 | I16: 32.45714286 | J16: 21.42171429 | K16: 31.54285714 | L16: 21.13371429 | M16: 30.62857143 | N16: 20.82742857 | O16: 28.57142857 | P16: 20 | R16: 1.121428571 | S16: 1.071428571 | T16: 1.042857143 | U16: 1.014285714 | V16: 0.9857142857 | W16: 0.9571428571 | X16: 0.8928571429 | Y16: 0.64 | Z16: 0.65 | AA16: 0.655 | AB16: 0.66 | AC16: 0.67 | AD16: 0.68 | AE16: 0.7 | AF16: 0.8373333333 | AG16: 0.8 | AH16: 0.7786666667 | AI16: 0.7573333333 | AJ16: 0.7598222222 | AK16: 0.7623111111 | AL16: 0.7555555556 | AM16: =Y16*C16+($A$4-80)*AF16*$A$16/1000 -> 22.96685714 | AN16: =Z16*E16+($A$4-80)*AG16*$A$16/1000 -> 22.28571429 | AO16: =AA16*G16+($A$4-80)*AH16*$A$16/1000 -> 21.85828571 | AP16: =AB16*I16+($A$4-80)*AI16*$A$16/1000 -> 21.42171429 | AQ16: =AC16*K16+($A$4-80)*AJ16*$A$16/1000 -> 21.13371429 | AR16: =AD16*M16+($A$4-80)*AK16*$A$16/1000 -> 20.82742857 | AS16: =AE16*O16+($A$4-80)*AL16*$A$16/1000 -> 20
B17: 67 | C17: 34.05714286 | D17: 26.90514286 | E17: 32.68571429 | F17: 26.47542857 | G17: 31.77142857 | H17: 26.05257143 | I17: 30.85714286 | J17: 25.61142857 | K17: 29.94285714 | L17: 25.30171429 | M17: 29.02857143 | N17: 24.96457143 | O17: 27.2 | P17: 24.48 | R17: 1.064285714 | S17: 1.021428571 | T17: 0.9928571429 | U17: 0.9642857143 | V17: 0.9357142857 | W17: 0.9071428571 | X17: 0.85 | Y17: 0.79 | Z17: 0.81 | AA17: 0.82 | AB17: 0.83 | AC17: 0.845 | AD17: 0.86 | AE17: 0.9 | AF17: 0.7416888889 | AG17: 0.7626666667 | AH17: 0.7653333333 | AI17: 0.768 | AJ17: 0.7678222222 | AK17: 0.7676444444 | AL17: 0.8039111111 | AM17: =Y17*C17+($A$4-80)*AF17*$A$16/1000 -> 26.90514286 | AN17: =Z17*E17+($A$4-80)*AG17*$A$16/1000 -> 26.47542857 | AO17: =AA17*G17+($A$4-80)*AH17*$A$16/1000 -> 26.05257143 | AP17: =AB17*I17+($A$4-80)*AI17*$A$16/1000 -> 25.61142857 | AQ17: =AC17*K17+($A$4-80)*AJ17*$A$16/1000 -> 25.30171429 | AR17: =AD17*M17+($A$4-80)*AK17*$A$16/1000 -> 24.96457143 | AS17: =AE17*O17+($A$4-80)*AL17*$A$16/1000 -> 24.48
B18: 63 | C18: 32.22857143 | D18: 31.26171429 | E18: 31.08571429 | F18: 30.464 | G18: 30.4 | H18: 30.096 | I18: 29.71428571 | J18: 29.71428571 | K18: 29.02857143 | L18: 29.02857143 | M18: 28.34285714 | N18: 28.34285714 | O18: 26.51428571 | P18: 26.51428571 | R18: 1.007142857 | S18: 0.9714285714 | T18: 0.95 | U18: 0.9285714286 | V18: 0.9071428571 | W18: 0.8857142857 | X18: 0.8285714286 | Y18: 0.97 | Z18: 0.98 | AA18: 0.99 | AB18: 1 | AC18: 1 | AD18: 1 | AE18: 1 | AF18: 0.8021333333 | AG18: 0.7253333333 | AH18: 0.7093333333 | AI18: 0.6933333333 | AJ18: 0.6112 | AK18: 0.5290666667 | AL18: 0.3712 | AM18: 31.26171429 | AN18: =Z18*E18+($A$4-80)*AG18*$A$16/1000 -> 30.464 | AO18: =AA18*G18+($A$4-80)*AH18*$A$16/1000 -> 30.096 | AP18: 29.71428571 | AQ18: 29.02857143 | AR18: 28.34285714 | AS18: 26.51428571
B19: 59 | C19: 32.22857143 | D19: 32.22857143 | E19: 31.08571429 | F19: 31.08571429 | G19: 30.4 | H19: 30.4 | I19: 29.71428571 | J19: 29.71428571 | K19: 28.91428571 | L19: 28.91428571 | M19: 28.11428571 | N19: 28.11428571 | O19: 26.51428571 | P19: 26.51428571 | R19: 1.007142857 | S19: 0.9714285714 | T19: 0.95 | U19: 0.9285714286 | V19: 0.9035714286 | W19: 0.8785714286 | X19: 0.8285714286 | Y19: 1 | Z19: 1 | AA19: 1 | AB19: 1 | AC19: 1 | AD19: 1 | AE19: 1 | AF19: 0.05013333333 | AG19: 0 | AH19: 0 | AI19: 0 | AJ19: 0 | AK19: 0 | AL19: 0 | AM19: 32.22857143 | AN19: =Z19*E19+($A$4-80)*AG19*$A$16/1000 -> 31.08571429 | AO19: =AA19*G19+($A$4-80)*AH19*$A$16/1000 -> 30.4 | AP19: 29.71428571 | AQ19: 28.91428571 | AR19: 28.11428571 | AS19: 26.51428571

Sheet SL18XC_36 (hidden)
A2: SL18XC_36
A3: Evaporator Air | C3: Condenser Entering Air Temperature ˚F
A4: 80 | B4: °F DB | C4: 85 | E4: 95 | G4: 100 | I4: 105 | K4: 110 | M4: 115 | O4: 125
A5: CFM | B5: EWB† ˚F | C5: Capacity Mbtuh | E5: Capacity Mbtuh | G5: Capacity Mbtuh | I5: Capacity Mbtuh | K5: Capacity Mbtuh | M5: Capacity Mbtuh | O5: Capacity Mbtuh
C6: Total | D6: Sens. | E6: Total | F6: Sens. | G6: Total | H6: Sens. | I6: Total | J6: Sens. | K6: Total | L6: Sens. | M6: Total | N6: Sens. | O6: Total | P6: Sens.
R7: Total Factors | Y7: Sens. % | AF7: IDB Adj | AM7: Sens Calc
A8: 1050 | B8: 71 | C8: =R8*$E$13 -> 50.52023121 | D8: =IF(AM8>C8,C8,AM8) -> 30.31213873 | E8: =S8*$E$13 -> 48.32369942 | F8: =IF(AN8>E8,E8,AN8) -> 29.47745665 | G8: =T8*$E$13 -> 47.08815029 | H8: =IF(AO8>G8,G8,AO8) -> 28.95921243 | I8: =U8*$E$13 -> 45.85260116 | J8: =IF(AP8>I8,I8,AP8) -> 28.42861272 | K8: =V8*$E$13 -> 44.61705202 | L8: =IF(AQ8>K8,K8,AQ8) -> 28.10874277 | M8: =W8*$E$13 -> 43.38150289 | N8: =IF(AR8>M8,M8,AR8) -> 27.76416185 | O8: =X8*$E$13 -> 40.63583815 | P8: =IF(AS8>O8,O8,AS8) -> 26.81965318 | R8: 1.063583815 | S8: 1.01734104 | T8: 0.9913294798 | U8: 0.9653179191 | V8: 0.9393063584 | W8: 0.9132947977 | X8: 0.8554913295 | Y8: 0.6 | Z8: 0.61 | AA8: 0.615 | AB8: 0.62 | AC8: 0.63 | AD8: 0.64 | AE8: 0.66 | AF8: 0.8411428571 | AG8: 0.8716190476 | AH8: 0.8493333333 | AI8: 0.827047619 | AJ8: 0.864952381 | AK8: 0.9028571429 | AL8: 0.9020952381 | AM8: =Y8*C8+($A$4-80)*AF8*$A$8/1000 -> 30.31213873 | AN8: =Z8*E8+($A$4-80)*AG8*$A$8/1000 -> 29.47745665 | AO8: =AA8*G8+($A$4-80)*AH8*$A$8/1000 -> 28.95921243 | AP8: =AB8*I8+($A$4-80)*AI8*$A$8/1000 -> 28.42861272 | AQ8: =AC8*K8+($A$4-80)*AJ8*$A$8/1000 -> 28.10874277 | AR8: =AD8*M8+($A$4-80)*AK8*$A$8/1000 -> 27.76416185 | AS8: =AE8*O8+($A$4-80)*AL8*$A$8/1000 -> 26.81965318
B9: 67 | C9: 48.32369942 | D9: 36.24277457 | E9: =S9*$E$13 -> 46.4017341 | F9: =IF(AN9>E9,E9,AN9) -> 35.26531792 | G9: 45.16618497 | H9: =IF(AO9>G9,G9,AO9) -> 34.77796243 | I9: 43.93063584 | J9: =IF(AP9>I9,I9,AP9) -> 34.26589595 | K9: 42.69508671 | L9: =IF(AQ9>K9,K9,AQ9) -> 33.7291185 | M9: 41.45953757 | N9: =IF(AR9>M9,M9,AR9) -> 33.16763006 | O9: 38.71387283 | P9: =IF(AS9>O9,O9,AS9) -> 32.13251445 | R9: 1.01734104 | S9: 0.9768786127 | T9: 0.950867052 | U9: 0.9248554913 | V9: 0.8988439306 | W9: 0.8728323699 | X9: 0.8150289017 | Y9: 0.75 | Z9: 0.76 | AA9: 0.77 | AB9: 0.78 | AC9: 0.79 | AD9: 0.8 | AE9: 0.83 | AF9: 0.8716190476 | AG9: 0.836952381 | AH9: 0.8451428571 | AI9: 0.8533333333 | AJ9: 0.8580952381 | AK9: 0.8628571429 | AL9: 0.8594285714 | AM9: =Y9*C9+($A$4-80)*AF9*$A$8/1000 -> 36.24277457 | AN9: =Z9*E9+($A$4-80)*AG9*$A$8/1000 -> 35.26531792 | AO9: =AA9*G9+($A$4-80)*AH9*$A$8/1000 -> 34.77796243 | AP9: =AB9*I9+($A$4-80)*AI9*$A$8/1000 -> 34.26589595 | AQ9: =AC9*K9+($A$4-80)*AJ9*$A$8/1000 -> 33.7291185 | AR9: =AD9*M9+($A$4-80)*AK9*$A$8/1000 -> 33.16763006 | AS9: =AE9*O9+($A$4-80)*AL9*$A$8/1000 -> 32.13251445
B10: 63 | C10: 46.12716763 | D10: 41.97572254 | E10: =S10*$E$13 -> 44.20520231 | F10: 41.11083815 | G10: 43.10693642 | H10: 40.52052023 | I10: 42.00867052 | J10: 39.90823699 | K10: 40.91040462 | L10: 39.47854046 | M10: 39.81213873 | N10: 39.01589595 | O10: 37.06647399 | P10: 37.06647399 | R10: 0.9710982659 | S10: 0.9306358382 | T10: 0.9075144509 | U10: 0.8843930636 | V10: 0.8612716763 | W10: 0.838150289 | X10: 0.7803468208 | Y10: 0.91 | Z10: 0.93 | AA10: 0.94 | AB10: 0.95 | AC10: 0.965 | AD10: 0.98 | AE10: 1 | AF10: 0.896 | AG10: 0.8586666667 | AH10: 0.8664761905 | AI10: 0.8742857143 | AJ10: 0.879047619 | AK10: 0.8838095238 | AL10: 0.7714285714 | AM10: 41.97572254 | AN10: =Z10*E10+($A$4-80)*AG10*$A$8/1000 -> 41.11083815 | AO10: =AA10*G10+($A$4-80)*AH10*$A$8/1000 -> 40.52052023 | AP10: 39.90823699 | AQ10: 39.47854046 | AR10: 39.01589595 | AS10: 37.06647399
B11: 59 | C11: 45.02890173 | D11: 45.02890173 | E11: =S11*$E$13 -> 43.38150289 | F11: 43.38150289 | G11: 42.42052023 | H11: 42.42052023 | I11: 41.45953757 | J11: 41.45953757 | K11: 40.49855491 | L11: 40.49855491 | M11: 39.53757225 | N11: 39.53757225 | O11: 37.06647399 | P11: 37.06647399 | R11: 0.9479768786 | S11: 0.9132947977 | T11: 0.8930635838 | U11: 0.8728323699 | V11: 0.8526011561 | W11: 0.8323699422 | X11: 0.7803468208 | Y11: 1 | Z11: 1 | AA11: 1 | AB11: 1 | AC11: 1 | AD11: 1 | AE11: 1 | AF11: 0.3748571429 | AG11: 0.2407619048 | AH11: 0.1779047619 | AI11: 0.115047619 | AJ11: 0.05752380952 | AK11: 0 | AL11: 0 | AM11: 45.02890173 | AN11: =Z11*E11+($A$4-80)*AG11*$A$8/1000 -> 43.38150289 | AO11: =AA11*G11+($A$4-80)*AH11*$A$8/1000 -> 42.42052023 | AP11: =AB11*I11+($A$4-80)*AI11*$A$8/1000 -> 41.45953757 | AQ11: 40.49855491 | AR11: 39.53757225 | AS11: 37.06647399
A12: 1200 | B12: 71 | C12: 51.89306358 | D12: 32.17369942 | E12: =S12*$E$13 -> 49.69653179 | F12: 31.30881503 | G12: 48.46098266 | H12: 30.77272399 | I12: 47.22543353 | J12: 30.22427746 | K12: 45.85260116 | L12: 29.80419075 | M12: 44.47976879 | N12: 29.3566474 | O12: 41.45953757 | P12: 28.19248555 | R12: 1.092485549 | S12: 1.046242775 | T12: 1.020231214 | U12: 0.9942196532 | V12: 0.9653179191 | W12: 0.936416185 | X12: 0.8728323699 | Y12: 0.62 | Z12: 0.63 | AA12: 0.635 | AB12: 0.64 | AC12: 0.65 | AD12: 0.66 | AE12: 0.68 | AF12: 0.819 | AG12: 0.8446666667 | AH12: 0.8236666667 | AI12: 0.8026666667 | AJ12: 0.8333333333 | AK12: 0.864 | AL12: 0.8556666667 | AM12: =Y12*C12+($A$4-80)*AF12*$A$12/1000 -> 32.17369942 | AN12: =Z12*E12+($A$4-80)*AG12*$A$12/1000 -> 31.30881503 | AO12: =AA12*G12+($A$4-80)*AH12*$A$12/1000 -> 30.77272399 | AP12: =AB12*I12+($A$4-80)*AI12*$A$12/1000 -> 30.22427746 | AQ12: =AC12*K12+($A$4-80)*AJ12*$A$12/1000 -> 29.80419075 | AR12: =AD12*M12+($A$4-80)*AK12*$A$12/1000 -> 29.3566474 | AS12: =AE12*O12+($A$4-80)*AL12*$A$12/1000 -> 28.19248555
B13: 67 | C13: 49.69653179 | D13: 38.7632948 | E13: 47.5 | F13: 37.525 | G13: 46.26445087 | H13: 37.01156069 | I13: 45.02890173 | J13: 36.4734104 | K13: 43.7933526 | L13: 36.1295159 | M13: 42.55780347 | N13: 35.74855491 | O13: 39.81213873 | P13: 34.63656069 | R13: 1.046242775 | S13: 1 | T13: 0.9739884393 | U13: 0.9479768786 | V13: 0.9219653179 | W13: 0.8959537572 | X13: 0.838150289 | Y13: 0.78 | Z13: 0.79 | AA13: 0.8 | AB13: 0.81 | AC13: 0.825 | AD13: 0.84 | AE13: 0.87 | AF13: 0.905 | AG13: 0.865 | AH13: 0.8425 | AI13: 0.82 | AJ13: 0.8491666667 | AK13: 0.8783333333 | AL13: 0.87 | AM13: =Y13*C13+($A$4-80)*AF13*$A$12/1000 -> 38.7632948 | AN13: =Z13*E13+($A$4-80)*AG13*$A$12/1000 -> 37.525 | AO13: =AA13*G13+($A$4-80)*AH13*$A$12/1000 -> 37.01156069 | AP13: =AB13*I13+($A$4-80)*AI13*$A$12/1000 -> 36.4734104 | AQ13: =AC13*K13+($A$4-80)*AJ13*$A$12/1000 -> 36.1295159 | AR13: =AD13*M13+($A$4-80)*AK13*$A$12/1000 -> 35.74855491 | AS13: =AE13*O13+($A$4-80)*AL13*$A$12/1000 -> 34.63656069
B14: 63 | C14: 47.5 | D14: 44.65 | E14: =S14*$E$13 -> 45.30346821 | F14: 43.94436416 | G14: 44.34248555 | H14: 43.45563584 | I14: 43.38150289 | J14: 42.94768786 | K14: 42.14595376 | L14: 41.93522399 | M14: 40.91040462 | N14: 40.91040462 | O14: 38.43930636 | P14: 38.43930636 | R14: 1 | S14: 0.9537572254 | T14: 0.9335260116 | U14: 0.9132947977 | V14: 0.887283237 | W14: 0.8612716763 | X14: 0.8092485549 | Y14: 0.94 | Z14: 0.97 | AA14: 0.98 | AB14: 0.99 | AC14: 0.995 | AD14: 1 | AE14: 1 | AF14: 0.8073333333 | AG14: 0.88 | AH14: 0.8613333333 | AI14: 0.8426666667 | AJ14: 0.769 | AK14: 0.6953333333 | AL14: 0.5133333333 | AM14: 44.65 | AN14: =Z14*E14+($A$4-80)*AG14*$A$12/1000 -> 43.94436416 | AO14: =AA14*G14+($A$4-80)*AH14*$A$12/1000 -> 43.45563584 | AP14: 42.94768786 | AQ14: 41.93522399 | AR14: 40.91040462 | AS14: 38.43930636
B15: 59 | C15: 46.67630058 | D15: 46.67630058 | E15: 45.02890173 | F15: 45.02890173 | G15: 44.06791908 | H15: 44.06791908 | I15: 43.10693642 | J15: 43.10693642 | K15: 42.00867052 | L15: 42.00867052 | M15: 40.91040462 | N15: 40.91040462 | O15: 38.43930636 | P15: 38.43930636 | R15: 0.9826589595 | S15: 0.9479768786 | T15: 0.9277456647 | U15: 0.9075144509 | V15: 0.8843930636 | W15: 0.8612716763 | X15: 0.8092485549 | Y15: 1 | Z15: 1 | AA15: 1 | AB15: 1 | AC15: 1 | AD15: 1 | AE15: 1 | AF15: 0.1133333333 | AG15: 0.05466666667 | AH15: 0.02733333333 | AI15: 0 | AJ15: 0 | AK15: 0 | AL15: 0 | AM15: 46.67630058 | AN15: =Z15*E15+($A$4-80)*AG15*$A$12/1000 -> 45.02890173 | AO15: =AA15*G15+($A$4-80)*AH15*$A$12/1000 -> 44.06791908 | AP15: 43.10693642 | AQ15: 42.00867052 | AR15: 40.91040462 | AS15: 38.43930636
A16: 1350 | B16: 71 | C16: 52.85404624 | D16: 33.8265896 | E16: 50.79479769 | F16: 33.0166185 | G16: 49.42196532 | H16: 32.61849711 | I16: 48.04913295 | J16: 32.19291908 | K16: 46.67630058 | L16: 31.50650289 | M16: 45.30346821 | N16: 30.80635838 | O16: 42.28323699 | P16: 30.02109827 | R16: 1.112716763 | S16: 1.069364162 | T16: 1.040462428 | U16: 1.011560694 | V16: 0.9826589595 | W16: 0.9537572254 | X16: 0.8901734104 | Y16: 0.64 | Z16: 0.65 | AA16: 0.66 | AB16: 0.67 | AC16: 0.675 | AD16: 0.68 | AE16: 0.71 | AF16: 0.8555555556 | AG16: 0.8222222222 | AH16: 0.8259259259 | AI16: 0.8296296296 | AJ16: 0.8303703704 | AK16: 0.8311111111 | AL16: 0.866962963 | AM16: =Y16*C16+($A$4-80)*AF16*$A$16/1000 -> 33.8265896 | AN16: =Z16*E16+($A$4-80)*AG16*$A$16/1000 -> 33.0166185 | AO16: =AA16*G16+($A$4-80)*AH16*$A$16/1000 -> 32.61849711 | AP16: =AB16*I16+($A$4-80)*AI16*$A$16/1000 -> 32.19291908 | AQ16: =AC16*K16+($A$4-80)*AJ16*$A$16/1000 -> 31.50650289 | AR16: =AD16*M16+($A$4-80)*AK16*$A$16/1000 -> 30.80635838 | AS16: =AE16*O16+($A$4-80)*AL16*$A$16/1000 -> 30.02109827
B17: 67 | C17: 50.79479769 | D17: 40.63583815 | E17: 48.32369942 | F17: 39.62543353 | G17: 47.08815029 | H17: 39.31860549 | I17: 45.85260116 | J17: 38.97471098 | K17: 44.61705202 | L17: 38.37066474 | M17: 43.38150289 | N17: 37.74190751 | O17: 40.36127168 | P17: 36.32514451 | R17: 1.069364162 | S17: 1.01734104 | T17: 0.9913294798 | U17: 0.9653179191 | V17: 0.9393063584 | W17: 0.9132947977 | X17: 0.8497109827 | Y17: 0.8 | Z17: 0.82 | AA17: 0.835 | AB17: 0.85 | AC17: 0.86 | AD17: 0.87 | AE17: 0.9 | AF17: 0.8222222222 | AG17: 0.8343703704 | AH17: 0.8377777778 | AI17: 0.8411851852 | AJ17: 0.8419259259 | AK17: 0.8426666667 | AL17: 0.8275555556 | AM17: =Y17*C17+($A$4-80)*AF17*$A$16/1000 -> 40.63583815 | AN17: =Z17*E17+($A$4-80)*AG17*$A$16/1000 -> 39.62543353 | AO17: =AA17*G17+($A$4-80)*AH17*$A$16/1000 -> 39.31860549 | AP17: =AB17*I17+($A$4-80)*AI17*$A$16/1000 -> 38.97471098 | AQ17: =AC17*K17+($A$4-80)*AJ17*$A$16/1000 -> 38.37066474 | AR17: =AD17*M17+($A$4-80)*AK17*$A$16/1000 -> 37.74190751 | AS17: =AE17*O17+($A$4-80)*AL17*$A$16/1000 -> 36.32514451
B18: 63 | C18: 48.5982659 | D18: 47.62630058 | E18: 46.67630058 | F18: 46.20953757 | G18: 45.44075145 | H18: 45.21354769 | I18: 44.20520231 | J18: 44.20520231 | K18: 43.10693642 | L18: 43.10693642 | M18: 42.00867052 | N18: 42.00867052 | O18: 39.53757225 | P18: 39.53757225 | R18: 1.023121387 | S18: 0.9826589595 | T18: 0.9566473988 | U18: 0.9306358382 | V18: 0.9075144509 | W18: 0.8843930636 | X18: 0.8323699422 | Y18: 0.98 | Z18: 0.99 | AA18: 0.995 | AB18: 1 | AC18: 1 | AD18: 1 | AE18: 1 | AF18: 0.7866666667 | AG18: 0.7555555556 | AH18: 0.7117037037 | AI18: 0.6678518519 | AJ18: 0.5832592593 | AK18: 0.4986666667 | AL18: 0.2986666667 | AM18: 47.62630058 | AN18: =Z18*E18+($A$4-80)*AG18*$A$16/1000 -> 46.20953757 | AO18: =AA18*G18+($A$4-80)*AH18*$A$16/1000 -> 45.21354769 | AP18: 44.20520231 | AQ18: 43.10693642 | AR18: 42.00867052 | AS18: 39.53757225
B19: 59 | C19: 48.32369942 | D19: 48.32369942 | E19: 46.4017341 | F19: 46.4017341 | G19: 45.30346821 | H19: 45.30346821 | I19: 44.20520231 | J19: 44.20520231 | K19: 43.10693642 | L19: 43.10693642 | M19: 42.00867052 | N19: 42.00867052 | O19: 39.53757225 | P19: 39.53757225 | R19: 1.01734104 | S19: 0.9768786127 | T19: 0.9537572254 | U19: 0.9306358382 | V19: 0.9075144509 | W19: 0.8843930636 | X19: 0.8323699422 | Y19: 1 | Z19: 1 | AA19: 1 | AB19: 1 | AC19: 1 | AD19: 1 | AE19: 1 | AF19: 0 | AG19: 0 | AH19: 0 | AI19: 0 | AJ19: 0 | AK19: 0 | AL19: 0 | AM19: 48.32369942 | AN19: =Z19*E19+($A$4-80)*AG19*$A$16/1000 -> 46.4017341 | AO19: =AA19*G19+($A$4-80)*AH19*$A$16/1000 -> 45.30346821 | AP19: 44.20520231 | AQ19: 43.10693642 | AR19: 42.00867052 | AS19: 39.53757225

Sheet SL18XC_42 (hidden)
A2: SL18XC_42
A3: Evaporator Air | C3: Condenser Entering Air Temperature ˚F
A4: 80 | B4: °F DB | C4: 85 | E4: 95 | G4: 100 | I4: 105 | K4: 110 | M4: 115 | O4: 125
A5: CFM | B5: EWB† ˚F | C5: Capacity Mbtuh | E5: Capacity Mbtuh | G5: Capacity Mbtuh | I5: Capacity Mbtuh | K5: Capacity Mbtuh | M5: Capacity Mbtuh | O5: Capacity Mbtuh
C6: Total | D6: Sens. | E6: Total | F6: Sens. | G6: Total | H6: Sens. | I6: Total | J6: Sens. | K6: Total | L6: Sens. | M6: Total | N6: Sens. | O6: Total | P6: Sens.
R7: Total Factors | Y7: Sens. % | AF7: IDB Adj | AM7: Sens Calc
A8: 1225 | B8: 71 | C8: =R8*$E$13 -> 50.46875 | D8: =IF(AM8>C8,C8,AM8) -> 30.28125 | E8: =S8*$E$13 -> 48.09375 | F8: =IF(AN8>E8,E8,AN8) -> 29.3371875 | G8: =T8*$E$13 -> 47.203125 | H8: =IF(AO8>G8,G8,AO8) -> 29.02992187 | I8: =U8*$E$13 -> 46.3125 | J8: =IF(AP8>I8,I8,AP8) -> 28.71375 | K8: =V8*$E$13 -> 45.00625 | L8: =IF(AQ8>K8,K8,AQ8) -> 28.12890625 | M8: =W8*$E$13 -> 43.7 | N8: =IF(AR8>M8,M8,AR8) -> 27.531 | O8: =X8*$E$13 -> 41.0875 | P8: =IF(AS8>O8,O8,AS8) -> 26.706875 | R8: 1.0625 | S8: 1.0125 | T8: 0.99375 | U8: 0.975 | V8: 0.9475 | W8: 0.92 | X8: 0.865 | Y8: 0.6 | Z8: 0.61 | AA8: 0.615 | AB8: 0.62 | AC8: 0.625 | AD8: 0.63 | AE8: 0.65 | AF8: 0.8326530612 | AG8: 0.8595918367 | AH8: 0.8755102041 | AI8: 0.8914285714 | AJ8: 0.8662857143 | AK8: 0.8411428571 | AL8: 0.8473469388 | AM8: =Y8*C8+($A$4-80)*AF8*$A$8/1000 -> 30.28125 | AN8: =Z8*E8+($A$4-80)*AG8*$A$8/1000 -> 29.3371875 | AO8: =AA8*G8+($A$4-80)*AH8*$A$8/1000 -> 29.02992187 | AP8: =AB8*I8+($A$4-80)*AI8*$A$8/1000 -> 28.71375 | AQ8: =AC8*K8+($A$4-80)*AJ8*$A$8/1000 -> 28.12890625 | AR8: =AD8*M8+($A$4-80)*AK8*$A$8/1000 -> 27.531 | AS8: =AE8*O8+($A$4-80)*AL8*$A$8/1000 -> 26.706875
B9: 67 | C9: 48.09375 | D9: 35.589375 | E9: =S9*$E$13 -> 46.3125 | F9: =IF(AN9>E9,E9,AN9) -> 35.1975 | G9: 45.24375 | H9: =IF(AO9>G9,G9,AO9) -> 34.61146875 | I9: 44.175 | J9: =IF(AP9>I9,I9,AP9) -> 34.01475 | K9: 42.9875 | L9: =IF(AQ9>K9,K9,AQ9) -> 33.53025 | M9: 41.8 | N9: =IF(AR9>M9,M9,AR9) -> 33.022 | O9: 39.1875 | P9: =IF(AS9>O9,O9,AS9) -> 32.13375 | R9: 1.0125 | S9: 0.975 | T9: 0.9525 | U9: 0.93 | V9: 0.905 | W9: 0.88 | X9: 0.825 | Y9: 0.74 | Z9: 0.76 | AA9: 0.765 | AB9: 0.77 | AC9: 0.78 | AD9: 0.79 | AE9: 0.82 | AF9: 0.8595918367 | AG9: 0.8914285714 | AH9: 0.8708571429 | AI9: 0.8502857143 | AJ9: 0.8561632653 | AK9: 0.8620408163 | AL9: 0.8620408163 | AM9: =Y9*C9+($A$4-80)*AF9*$A$8/1000 -> 35.589375 | AN9: =Z9*E9+($A$4-80)*AG9*$A$8/1000 -> 35.1975 | AO9: =AA9*G9+($A$4-80)*AH9*$A$8/1000 -> 34.61146875 | AP9: =AB9*I9+($A$4-80)*AI9*$A$8/1000 -> 34.01475 | AQ9: =AC9*K9+($A$4-80)*AJ9*$A$8/1000 -> 33.53025 | AR9: =AD9*M9+($A$4-80)*AK9*$A$8/1000 -> 33.022 | AS9: =AE9*O9+($A$4-80)*AL9*$A$8/1000 -> 32.13375
B10: 63 | C10: 45.71875 | D10: 41.146875 | E10: =S10*$E$13 -> 44.175 | F10: 40.641 | G10: 43.10625 | H10: 40.0888125 | I10: 42.0375 | J10: 39.51525 | K10: 40.96875 | L10: 39.12515625 | M10: 39.9 | N10: 38.703 | O10: 37.525 | P10: 37.14975 | R10: 0.9625 | S10: 0.93 | T10: 0.9075 | U10: 0.885 | V10: 0.8625 | W10: 0.84 | X10: 0.79 | Y10: 0.9 | Z10: 0.92 | AA10: 0.93 | AB10: 0.94 | AC10: 0.955 | AD10: 0.97 | AE10: 0.99 | AF10: 0.88 | AG10: 0.8502857143 | AH10: 0.8297142857 | AI10: 0.8091428571 | AJ10: 0.816 | AK10: 0.8228571429 | AL10: 0.773877551 | AM10: 41.146875 | AN10: =Z10*E10+($A$4-80)*AG10*$A$8/1000 -> 40.641 | AO10: =AA10*G10+($A$4-80)*AH10*$A$8/1000 -> 40.0888125 | AP10: 39.51525 | AQ10: 39.12515625 | AR10: 38.703 | AS10: 37.14975
B11: 59 | C11: 44.65 | D11: 44.65 | E11: =S11*$E$13 -> 43.225 | F11: 43.225 | G11: 42.275 | H11: 42.275 | I11: 41.325 | J11: 41.325 | K11: 40.375 | L11: 40.375 | M11: 39.425 | N11: 39.425 | O11: 37.2875 | P11: 37.2875 | R11: 0.94 | S11: 0.91 | T11: 0.89 | U11: 0.87 | V11: 0.85 | W11: 0.83 | X11: 0.785 | Y11: 1 | Z11: 1 | AA11: 1 | AB11: 1 | AC11: 1 | AD11: 1 | AE11: 1 | AF11: 0.4297142857 | AG11: 0.2971428571 | AH11: 0.2337959184 | AI11: 0.1704489796 | AJ11: 0.1123265306 | AK11: 0.05420408163 | AL11: 0 | AM11: 44.65 | AN11: =Z11*E11+($A$4-80)*AG11*$A$8/1000 -> 43.225 | AO11: =AA11*G11+($A$4-80)*AH11*$A$8/1000 -> 42.275 | AP11: =AB11*I11+($A$4-80)*AI11*$A$8/1000 -> 41.325 | AQ11: 40.375 | AR11: 39.425 | AS11: 37.2875
A12: 1400 | B12: 71 | C12: 51.65625 | D12: 32.026875 | E12: =S12*$E$13 -> 49.875 | F12: 31.42125 | G12: 48.6875 | H12: 30.9165625 | I12: 47.5 | J12: 30.4 | K12: 46.19375 | L12: 29.79496875 | M12: 44.8875 | N12: 29.176875 | O12: 42.0375 | P12: 28.165125 | R12: 1.0875 | S12: 1.05 | T12: 1.025 | U12: 1 | V12: 0.9725 | W12: 0.945 | X12: 0.885 | Y12: 0.62 | Z12: 0.63 | AA12: 0.635 | AB12: 0.64 | AC12: 0.645 | AD12: 0.65 | AE12: 0.67 | AF12: 0.87 | AG12: 0.84 | AH12: 0.8485714286 | AI12: 0.8571428571 | AJ12: 0.8335714286 | AK12: 0.81 | AL12: 0.8091428571 | AM12: =Y12*C12+($A$4-80)*AF12*$A$12/1000 -> 32.026875 | AN12: =Z12*E12+($A$4-80)*AG12*$A$12/1000 -> 31.42125 | AO12: =AA12*G12+($A$4-80)*AH12*$A$12/1000 -> 30.9165625 | AP12: =AB12*I12+($A$4-80)*AI12*$A$12/1000 -> 30.4 | AQ12: =AC12*K12+($A$4-80)*AJ12*$A$12/1000 -> 29.79496875 | AR12: =AD12*M12+($A$4-80)*AK12*$A$12/1000 -> 29.176875 | AS12: =AE12*O12+($A$4-80)*AL12*$A$12/1000 -> 28.165125
B13: 67 | C13: 49.875 | D13: 38.40375 | E13: 47.5 | F13: 37.05 | G13: 46.3125 | H13: 36.586875 | I13: 45.125 | J13: 36.1 | K13: 43.9375 | L13: 35.8090625 | M13: 42.75 | N13: 35.4825 | O13: 39.9 | P13: 34.314 | R13: 1.05 | S13: 1 | T13: 0.975 | U13: 0.95 | V13: 0.925 | W13: 0.9 | X13: 0.84 | Y13: 0.77 | Z13: 0.78 | AA13: 0.79 | AB13: 0.8 | AC13: 0.815 | AD13: 0.83 | AE13: 0.86 | AF13: 0.84 | AG13: 0.8 | AH13: 0.8071428571 | AI13: 0.8142857143 | AJ13: 0.8442857143 | AK13: 0.8742857143 | AL13: 0.864 | AM13: =Y13*C13+($A$4-80)*AF13*$A$12/1000 -> 38.40375 | AN13: =Z13*E13+($A$4-80)*AG13*$A$12/1000 -> 37.05 | AO13: =AA13*G13+($A$4-80)*AH13*$A$12/1000 -> 36.586875 | AP13: =AB13*I13+($A$4-80)*AI13*$A$12/1000 -> 36.1 | AQ13: =AC13*K13+($A$4-80)*AJ13*$A$12/1000 -> 35.8090625 | AR13: =AD13*M13+($A$4-80)*AK13*$A$12/1000 -> 35.4825 | AS13: =AE13*O13+($A$4-80)*AL13*$A$12/1000 -> 34.314
B14: 63 | C14: 47.5 | D14: 44.65 | E14: =S14*$E$13 -> 45.125 | F14: 43.32 | G14: 44.175 | H14: 42.84975 | I14: 43.225 | J14: 42.3605 | K14: 42.15625 | L14: 41.7346875 | M14: 41.0875 | N14: 41.0875 | O14: 38.475 | P14: 38.475 | R14: 1 | S14: 0.95 | T14: 0.93 | U14: 0.91 | V14: 0.8875 | W14: 0.865 | X14: 0.81 | Y14: 0.94 | Z14: 0.96 | AA14: 0.97 | AB14: 0.98 | AC14: 0.99 | AD14: 1 | AE14: 1 | AF14: 0.8571428571 | AG14: 0.8142857143 | AH14: 0.7971428571 | AI14: 0.78 | AJ14: 0.7607142857 | AK14: 0.7414285714 | AL14: 0.5554285714 | AM14: 44.65 | AN14: =Z14*E14+($A$4-80)*AG14*$A$12/1000 -> 43.32 | AO14: =AA14*G14+($A$4-80)*AH14*$A$12/1000 -> 42.84975 | AP14: 42.3605 | AQ14: 41.7346875 | AR14: 41.0875 | AS14: 38.475
B15: 59 | C15: 46.3125 | D15: 46.3125 | E15: 44.65 | F15: 44.65 | G15: 43.7 | H15: 43.7 | I15: 42.75 | J15: 42.75 | K15: 41.8 | L15: 41.8 | M15: 40.85 | N15: 40.85 | O15: 38.475 | P15: 38.475 | R15: 0.975 | S15: 0.94 | T15: 0.92 | U15: 0.9 | V15: 0.88 | W15: 0.86 | X15: 0.81 | Y15: 1 | Z15: 1 | AA15: 1 | AB15: 1 | AC15: 1 | AD15: 1 | AE15: 1 | AF15: 0.1671428571 | AG15: 0.05371428571 | AH15: 0.02685714286 | AI15: 0 | AJ15: 0 | AK15: 0 | AL15: 0 | AM15: 46.3125 | AN15: =Z15*E15+($A$4-80)*AG15*$A$12/1000 -> 44.65 | AO15: =AA15*G15+($A$4-80)*AH15*$A$12/1000 -> 43.7 | AP15: 42.75 | AQ15: 41.8 | AR15: 40.85 | AS15: 38.475
A16: 1575 | B16: 71 | C16: 52.84375 | D16: 33.2915625 | E16: 50.46875 | F16: 32.8046875 | G16: 49.28125 | H16: 32.27921875 | I16: 48.09375 | J16: 31.741875 | K16: 46.90625 | L16: 31.19265625 | M16: 45.71875 | N16: 30.6315625 | O16: 42.75 | P16: 29.925 | R16: 1.1125 | S16: 1.0625 | T16: 1.0375 | U16: 1.0125 | V16: 0.9875 | W16: 0.9625 | X16: 0.9 | Y16: 0.63 | Z16: 0.65 | AA16: 0.655 | AB16: 0.66 | AC16: 0.665 | AD16: 0.67 | AE16: 0.7 | AF16: 0.7911111111 | AG16: 0.8095238095 | AH16: 0.8161904762 | AI16: 0.8228571429 | AJ16: 0.8025396825 | AK16: 0.7822222222 | AL16: 0.8228571429 | AM16: =Y16*C16+($A$4-80)*AF16*$A$16/1000 -> 33.2915625 | AN16: =Z16*E16+($A$4-80)*AG16*$A$16/1000 -> 32.8046875 | AO16: =AA16*G16+($A$4-80)*AH16*$A$16/1000 -> 32.27921875 | AP16: =AB16*I16+($A$4-80)*AI16*$A$16/1000 -> 31.741875 | AQ16: =AC16*K16+($A$4-80)*AJ16*$A$16/1000 -> 31.19265625 | AR16: =AD16*M16+($A$4-80)*AK16*$A$16/1000 -> 30.6315625 | AS16: =AE16*O16+($A$4-80)*AL16*$A$16/1000 -> 29.925
B17: 67 | C17: 50.46875 | D17: 39.8703125 | E17: 48.09375 | F17: 38.9559375 | G17: 47.203125 | H17: 38.7065625 | I17: 46.3125 | J17: 38.439375 | K17: 44.8875 | L17: 37.9299375 | M17: 43.4625 | N17: 37.37775 | O17: 40.85 | P17: 36.3565 | R17: 1.0625 | S17: 1.0125 | T17: 0.99375 | U17: 0.975 | V17: 0.945 | W17: 0.915 | X17: 0.86 | Y17: 0.79 | Z17: 0.81 | AA17: 0.82 | AB17: 0.83 | AC17: 0.845 | AD17: 0.86 | AE17: 0.89 | AF17: 0.7555555556 | AG17: 0.7714285714 | AH17: 0.7819047619 | AI17: 0.7923809524 | AJ17: 0.7912380952 | AK17: 0.7900952381 | AL17: 0.7862857143 | AM17: =Y17*C17+($A$4-80)*AF17*$A$16/1000 -> 39.8703125 | AN17: =Z17*E17+($A$4-80)*AG17*$A$16/1000 -> 38.9559375 | AO17: =AA17*G17+($A$4-80)*AH17*$A$16/1000 -> 38.7065625 | AP17: =AB17*I17+($A$4-80)*AI17*$A$16/1000 -> 38.439375 | AQ17: =AC17*K17+($A$4-80)*AJ17*$A$16/1000 -> 37.9299375 | AR17: =AD17*M17+($A$4-80)*AK17*$A$16/1000 -> 37.37775 | AS17: =AE17*O17+($A$4-80)*AL17*$A$16/1000 -> 36.3565
B18: 63 | C18: 48.6875 | D18: 47.226875 | E18: 46.3125 | F18: 45.849375 | G18: 45.24375 | H18: 45.01753125 | I18: 44.175 | J18: 44.175 | K18: 43.10625 | L18: 43.10625 | M18: 42.0375 | N18: 42.0375 | O18: 39.6625 | P18: 39.6625 | R18: 1.025 | S18: 0.975 | T18: 0.9525 | U18: 0.93 | V18: 0.9075 | W18: 0.885 | X18: 0.835 | Y18: 0.97 | Z18: 0.99 | AA18: 0.995 | AB18: 1 | AC18: 1 | AD18: 1 | AE18: 1 | AF18: 0.780952381 | AG18: 0.7428571429 | AH18: 0.7020952381 | AI18: 0.6613333333 | AJ18: 0.6003809524 | AK18: 0.5394285714 | AL18: 0.3817142857 | AM18: 47.226875 | AN18: =Z18*E18+($A$4-80)*AG18*$A$16/1000 -> 45.849375 | AO18: =AA18*G18+($A$4-80)*AH18*$A$16/1000 -> 45.01753125 | AP18: 44.175 | AQ18: 43.10625 | AR18: 42.0375 | AS18: 39.6625
B19: 59 | C19: 48.09375 | D19: 48.09375 | E19: 46.3125 | F19: 46.3125 | G19: 45.24375 | H19: 45.24375 | I19: 44.175 | J19: 44.175 | K19: 43.10625 | L19: 43.10625 | M19: 42.0375 | N19: 42.0375 | O19: 39.6625 | P19: 39.6625 | R19: 1.0125 | S19: 0.975 | T19: 0.9525 | U19: 0.93 | V19: 0.9075 | W19: 0.885 | X19: 0.835 | Y19: 1 | Z19: 1 | AA19: 1 | AB19: 1 | AC19: 1 | AD19: 1 | AE19: 1 | AF19: 0.05142857143 | AG19: 0 | AH19: 0 | AI19: 0 | AJ19: 0 | AK19: 0 | AL19: 0 | AM19: 48.09375 | AN19: =Z19*E19+($A$4-80)*AG19*$A$16/1000 -> 46.3125 | AO19: =AA19*G19+($A$4-80)*AH19*$A$16/1000 -> 45.24375 | AP19: 44.175 | AQ19: 43.10625 | AR19: 42.0375 | AS19: 39.6625

Sheet SL18XC_48 (hidden)
A2: SL18XC_48
A3: Evaporator Air | C3: Condenser Entering Air Temperature ˚F
A4: 80 | B4: °F DB | C4: 85 | E4: 95 | G4: 100 | I4: 105 | K4: 110 | M4: 115 | O4: 125
A5: CFM | B5: EWB† ˚F | C5: Capacity Mbtuh | E5: Capacity Mbtuh | G5: Capacity Mbtuh | I5: Capacity Mbtuh | K5: Capacity Mbtuh | M5: Capacity Mbtuh | O5: Capacity Mbtuh
C6: Total | D6: Sens. | E6: Total | F6: Sens. | G6: Total | H6: Sens. | I6: Total | J6: Sens. | K6: Total | L6: Sens. | M6: Total | N6: Sens. | O6: Total | P6: Sens.
R7: Total Factors | Y7: Sens. % | AF7: IDB Adj | AM7: Sens Calc
A8: 1400 | B8: 71 | C8: =R8*$E$13 -> 50.85858586 | D8: =IF(AM8>C8,C8,AM8) -> 29.4979798 | E8: =S8*$E$13 -> 48.45959596 | F8: =IF(AN8>E8,E8,AN8) -> 28.59116162 | G8: =T8*$E$13 -> 47.26010101 | H8: =IF(AO8>G8,G8,AO8) -> 28.1197601 | I8: =U8*$E$13 -> 46.06060606 | J8: =IF(AP8>I8,I8,AP8) -> 27.63636364 | K8: =V8*$E$13 -> 44.86111111 | L8: =IF(AQ8>K8,K8,AQ8) -> 27.14097222 | M8: =W8*$E$13 -> 43.66161616 | N8: =IF(AR8>M8,M8,AR8) -> 26.63358586 | O8: =X8*$E$13 -> 40.78282828 | P8: =IF(AS8>O8,O8,AS8) -> 25.28535354 | R8: 1.070707071 | S8: 1.02020202 | T8: 0.9949494949 | U8: 0.9696969697 | V8: 0.9444444444 | W8: 0.9191919192 | X8: 0.8585858586 | Y8: 0.58 | Z8: 0.59 | AA8: 0.595 | AB8: 0.6 | AC8: 0.605 | AD8: 0.61 | AE8: 0.62 | AF8: 0.9085714286 | AG8: 0.8657142857 | AH8: 0.8785714286 | AI8: 0.8914285714 | AJ8: 0.8682142857 | AK8: 0.845 | AL8: 0.85 | AM8: =Y8*C8+($A$4-80)*AF8*$A$8/1000 -> 29.4979798 | AN8: =Z8*E8+($A$4-80)*AG8*$A$8/1000 -> 28.59116162 | AO8: =AA8*G8+($A$4-80)*AH8*$A$8/1000 -> 28.1197601 | AP8: =AB8*I8+($A$4-80)*AI8*$A$8/1000 -> 27.63636364 | AQ8: =AC8*K8+($A$4-80)*AJ8*$A$8/1000 -> 27.14097222 | AR8: =AD8*M8+($A$4-80)*AK8*$A$8/1000 -> 26.63358586 | AS8: =AE8*O8+($A$4-80)*AL8*$A$8/1000 -> 25.28535354
B9: 67 | C9: 47.97979798 | D9: 34.06565657 | E9: =S9*$E$13 -> 46.06060606 | F9: =IF(AN9>E9,E9,AN9) -> 33.62424242 | G9: 45.1010101 | H9: =IF(AO9>G9,G9,AO9) -> 33.14924242 | I9: 44.14141414 | J9: =IF(AP9>I9,I9,AP9) -> 32.66464646 | K9: 42.94191919 | L9: =IF(AQ9>K9,K9,AQ9) -> 32.20643939 | M9: 41.74242424 | N9: =IF(AR9>M9,M9,AR9) -> 31.72424242 | O9: 38.86363636 | P9: =IF(AS9>O9,O9,AS9) -> 30.31363636 | R9: 1.01010101 | S9: 0.9696969697 | T9: 0.9494949495 | U9: 0.9292929293 | V9: 0.904040404 | W9: 0.8787878788 | X9: 0.8181818182 | Y9: 0.71 | Z9: 0.73 | AA9: 0.735 | AB9: 0.74 | AC9: 0.75 | AD9: 0.76 | AE9: 0.78 | AF9: 0.8571428571 | AG9: 0.8914285714 | AH9: 0.8728571429 | AI9: 0.8542857143 | AJ9: 0.8621428571 | AK9: 0.87 | AL9: 0.81 | AM9: =Y9*C9+($A$4-80)*AF9*$A$8/1000 -> 34.06565657 | AN9: =Z9*E9+($A$4-80)*AG9*$A$8/1000 -> 33.62424242 | AO9: =AA9*G9+($A$4-80)*AH9*$A$8/1000 -> 33.14924242 | AP9: =AB9*I9+($A$4-80)*AI9*$A$8/1000 -> 32.66464646 | AQ9: =AC9*K9+($A$4-80)*AJ9*$A$8/1000 -> 32.20643939 | AR9: =AD9*M9+($A$4-80)*AK9*$A$8/1000 -> 31.72424242 | AS9: =AE9*O9+($A$4-80)*AL9*$A$8/1000 -> 30.31363636
B10: 63 | C10: 45.58080808 | D10: 39.19949495 | E10: =S10*$E$13 -> 43.66161616 | F10: 38.42222222 | G10: 42.7020202 | H10: 38.00479798 | I10: 41.74242424 | J10: 37.56818182 | K10: 40.54292929 | L10: 37.0967803 | M10: 39.34343434 | N10: 36.58939394 | O10: 36.94444444 | P10: 35.46666667 | R10: 0.9595959596 | S10: 0.9191919192 | T10: 0.898989899 | U10: 0.8787878788 | V10: 0.8535353535 | W10: 0.8282828283 | X10: 0.7777777778 | Y10: 0.86 | Z10: 0.88 | AA10: 0.89 | AB10: 0.9 | AC10: 0.915 | AD10: 0.93 | AE10: 0.96 | AF10: 0.8142857143 | AG10: 0.845 | AH10: 0.8264285714 | AI10: 0.8078571429 | AJ10: 0.8432142857 | AK10: 0.8785714286 | AL10: 0.825 | AM10: 39.19949495 | AN10: =Z10*E10+($A$4-80)*AG10*$A$8/1000 -> 38.42222222 | AO10: =AA10*G10+($A$4-80)*AH10*$A$8/1000 -> 38.00479798 | AP10: 37.56818182 | AQ10: 37.0967803 | AR10: 36.58939394 | AS10: 35.46666667
B11: 59 | C11: 43.66161616 | D11: 43.66161616 | E11: =S11*$E$13 -> 41.74242424 | F11: 41.74242424 | G11: 41.02272727 | H11: 41.02272727 | I11: 40.3030303 | J11: 40.3030303 | K11: 39.34343434 | L11: 39.34343434 | M11: 38.38383838 | N11: 38.38383838 | O11: 36.27272727 | P11: 36.27272727 | R11: 0.9191919192 | S11: 0.8787878788 | T11: 0.8636363636 | U11: 0.8484848485 | V11: 0.8282828283 | W11: 0.8080808081 | X11: 0.7636363636 | Y11: 1 | Z11: 1 | AA11: 1 | AB11: 1 | AC11: 1 | AD11: 1 | AE11: 1 | AF11: 0.65 | AG11: 0.5592857143 | AH11: 0.4896428571 | AI11: 0.42 | AJ11: 0.3242857143 | AK11: 0.2285714286 | AL11: 0.054 | AM11: 43.66161616 | AN11: =Z11*E11+($A$4-80)*AG11*$A$8/1000 -> 41.74242424 | AO11: =AA11*G11+($A$4-80)*AH11*$A$8/1000 -> 41.02272727 | AP11: =AB11*I11+($A$4-80)*AI11*$A$8/1000 -> 40.3030303 | AQ11: 39.34343434 | AR11: 38.38383838 | AS11: 36.27272727
A12: 1600 | B12: 71 | C12: 51.81818182 | D12: 31.09090909 | E12: =S12*$E$13 -> 49.8989899 | F12: 30.43838384 | G12: 48.69949495 | H12: 29.95018939 | I12: 47.5 | J12: 29.45 | K12: 46.06060606 | L12: 28.78787879 | M12: 44.62121212 | N12: 28.11136364 | O12: 41.74242424 | P12: 27.13257576 | R12: 1.090909091 | S12: 1.050505051 | T12: 1.025252525 | U12: 1 | V12: 0.9696969697 | W12: 0.9393939394 | X12: 0.8787878788 | Y12: 0.6 | Z12: 0.61 | AA12: 0.615 | AB12: 0.62 | AC12: 0.625 | AD12: 0.63 | AE12: 0.65 | AF12: 0.8775 | AG12: 0.845 | AH12: 0.855625 | AI12: 0.86625 | AJ12: 0.84 | AK12: 0.81375 | AL12: 0.87 | AM12: =Y12*C12+($A$4-80)*AF12*$A$12/1000 -> 31.09090909 | AN12: =Z12*E12+($A$4-80)*AG12*$A$12/1000 -> 30.43838384 | AO12: =AA12*G12+($A$4-80)*AH12*$A$12/1000 -> 29.95018939 | AP12: =AB12*I12+($A$4-80)*AI12*$A$12/1000 -> 29.45 | AQ12: =AC12*K12+($A$4-80)*AJ12*$A$12/1000 -> 28.78787879 | AR12: =AD12*M12+($A$4-80)*AK12*$A$12/1000 -> 28.11136364 | AS12: =AE12*O12+($A$4-80)*AL12*$A$12/1000 -> 27.13257576
B13: 67 | C13: 49.41919192 | D13: 36.57020202 | E13: 47.5 | F13: 35.625 | G13: 46.30050505 | H13: 35.18838384 | I13: 45.1010101 | J13: 34.72777778 | K13: 43.90151515 | L13: 34.24318182 | M13: 42.7020202 | N13: 33.73459596 | O13: 39.82323232 | P13: 32.65505051 | R13: 1.04040404 | S13: 1 | T13: 0.9747474747 | U13: 0.9494949495 | V13: 0.9242424242 | W13: 0.898989899 | X13: 0.8383838384 | Y13: 0.74 | Z13: 0.75 | AA13: 0.76 | AB13: 0.77 | AC13: 0.78 | AD13: 0.79 | AE13: 0.82 | AF13: 0.836875 | AG13: 0.804375 | AH13: 0.8134375 | AI13: 0.8225 | AJ13: 0.8284375 | AK13: 0.834375 | AL13: 0.83 | AM13: =Y13*C13+($A$4-80)*AF13*$A$12/1000 -> 36.57020202 | AN13: =Z13*E13+($A$4-80)*AG13*$A$12/1000 -> 35.625 | AO13: =AA13*G13+($A$4-80)*AH13*$A$12/1000 -> 35.18838384 | AP13: =AB13*I13+($A$4-80)*AI13*$A$12/1000 -> 34.72777778 | AQ13: =AC13*K13+($A$4-80)*AJ13*$A$12/1000 -> 34.24318182 | AR13: =AD13*M13+($A$4-80)*AK13*$A$12/1000 -> 33.73459596 | AS13: =AE13*O13+($A$4-80)*AL13*$A$12/1000 -> 32.65505051
B14: 63 | C14: 47.02020202 | D14: 42.31818182 | E14: =S14*$E$13 -> 45.1010101 | F14: 41.49292929 | G14: 43.90151515 | H14: 40.82840909 | I14: 42.7020202 | J14: 40.13989899 | K14: 41.50252525 | L14: 39.63491162 | M14: 40.3030303 | N14: 39.09393939 | O14: 37.9040404 | P14: 37.9040404 | R14: 0.9898989899 | S14: 0.9494949495 | T14: 0.9242424242 | U14: 0.898989899 | V14: 0.8737373737 | W14: 0.8484848485 | X14: 0.797979798 | Y14: 0.9 | Z14: 0.92 | AA14: 0.93 | AB14: 0.94 | AC14: 0.955 | AD14: 0.97 | AE14: 1 | AF14: 0.8575 | AG14: 0.8225 | AH14: 0.8284375 | AI14: 0.834375 | AJ14: 0.8371875 | AK14: 0.84 | AL14: 0.79 | AM14: 42.31818182 | AN14: =Z14*E14+($A$4-80)*AG14*$A$12/1000 -> 41.49292929 | AO14: =AA14*G14+($A$4-80)*AH14*$A$12/1000 -> 40.82840909 | AP14: 40.13989899 | AQ14: 39.63491162 | AR14: 39.09393939 | AS14: 37.9040404
B15: 59 | C15: 45.1010101 | D15: 45.1010101 | E15: 43.66161616 | F15: 43.66161616 | G15: 42.7020202 | H15: 42.7020202 | I15: 41.74242424 | J15: 41.74242424 | K15: 40.78282828 | L15: 40.78282828 | M15: 39.82323232 | N15: 39.82323232 | O15: 37.42424242 | P15: 37.42424242 | R15: 0.9494949495 | S15: 0.9191919192 | T15: 0.898989899 | U15: 0.8787878788 | V15: 0.8585858586 | W15: 0.8383838384 | X15: 0.7878787879 | Y15: 1 | Z15: 1 | AA15: 1 | AB15: 1 | AC15: 1 | AD15: 1 | AE15: 1 | AF15: 0.41125 | AG15: 0.284375 | AH15: 0.22375 | AI15: 0.163125 | AJ15: 0.1075 | AK15: 0.051875 | AL15: 0 | AM15: 45.1010101 | AN15: =Z15*E15+($A$4-80)*AG15*$A$12/1000 -> 43.66161616 | AO15: =AA15*G15+($A$4-80)*AH15*$A$12/1000 -> 42.7020202 | AP15: 41.74242424 | AQ15: 40.78282828 | AR15: 39.82323232 | AS15: 37.42424242
A16: 1800 | B16: 71 | C16: 53.25757576 | D16: 32.48712121 | E16: 50.85858586 | F16: 31.53232323 | G16: 49.65909091 | H16: 31.03693182 | I16: 48.45959596 | J16: 30.52954545 | K16: 47.02020202 | L16: 30.09292929 | M16: 45.58080808 | N16: 29.62752525 | O16: 42.7020202 | P16: 28.61035354 | R16: 1.121212121 | S16: 1.070707071 | T16: 1.045454545 | U16: 1.02020202 | V16: 0.9898989899 | W16: 0.9595959596 | X16: 0.898989899 | Y16: 0.61 | Z16: 0.62 | AA16: 0.625 | AB16: 0.63 | AC16: 0.64 | AD16: 0.65 | AE16: 0.67 | AF16: 0.8016666667 | AG16: 0.8244444444 | AH16: 0.805 | AI16: 0.7855555556 | AJ16: 0.815 | AK16: 0.8444444444 | AL16: 0.8405555556 | AM16: =Y16*C16+($A$4-80)*AF16*$A$16/1000 -> 32.48712121 | AN16: =Z16*E16+($A$4-80)*AG16*$A$16/1000 -> 31.53232323 | AO16: =AA16*G16+($A$4-80)*AH16*$A$16/1000 -> 31.03693182 | AP16: =AB16*I16+($A$4-80)*AI16*$A$16/1000 -> 30.52954545 | AQ16: =AC16*K16+($A$4-80)*AJ16*$A$16/1000 -> 30.09292929 | AR16: =AD16*M16+($A$4-80)*AK16*$A$16/1000 -> 29.62752525 | AS16: =AE16*O16+($A$4-80)*AL16*$A$16/1000 -> 28.61035354
B17: 67 | C17: 50.37878788 | D17: 38.28787879 | E17: 48.45959596 | F17: 37.79848485 | G17: 47.26010101 | H17: 37.3354798 | I17: 46.06060606 | J17: 36.84848485 | K17: 44.86111111 | L17: 36.3375 | M17: 43.66161616 | N17: 35.80252525 | O17: 40.78282828 | P17: 34.66540404 | R17: 1.060606061 | S17: 1.02020202 | T17: 0.9949494949 | U17: 0.9696969697 | V17: 0.9444444444 | W17: 0.9191919192 | X17: 0.8585858586 | Y17: 0.76 | Z17: 0.78 | AA17: 0.79 | AB17: 0.8 | AC17: 0.81 | AD17: 0.82 | AE17: 0.85 | AF17: 0.7583333333 | AG17: 0.8416666667 | AH17: 0.8208333333 | AI17: 0.8 | AJ17: 0.8044444444 | AK17: 0.8088888889 | AL17: 0.85 | AM17: =Y17*C17+($A$4-80)*AF17*$A$16/1000 -> 38.28787879 | AN17: =Z17*E17+($A$4-80)*AG17*$A$16/1000 -> 37.79848485 | AO17: =AA17*G17+($A$4-80)*AH17*$A$16/1000 -> 37.3354798 | AP17: =AB17*I17+($A$4-80)*AI17*$A$16/1000 -> 36.84848485 | AQ17: =AC17*K17+($A$4-80)*AJ17*$A$16/1000 -> 36.3375 | AR17: =AD17*M17+($A$4-80)*AK17*$A$16/1000 -> 35.80252525 | AS17: =AE17*O17+($A$4-80)*AL17*$A$16/1000 -> 34.66540404
B18: 63 | C18: 47.97979798 | D18: 44.62121212 | E18: 46.06060606 | F18: 43.75757576 | G18: 44.86111111 | H18: 43.29097222 | I18: 43.66161616 | J18: 42.78838384 | K18: 42.46212121 | L18: 42.0375 | M18: 41.26262626 | N18: 41.26262626 | O18: 38.86363636 | P18: 38.86363636 | R18: 1.01010101 | S18: 0.9696969697 | T18: 0.9444444444 | U18: 0.9191919192 | V18: 0.8939393939 | W18: 0.8686868687 | X18: 0.8181818182 | Y18: 0.93 | Z18: 0.95 | AA18: 0.965 | AB18: 0.98 | AC18: 0.99 | AD18: 1 | AE18: 1 | AF18: 0.8333333333 | AG18: 0.8 | AH18: 0.8044444444 | AI18: 0.8088888889 | AJ18: 0.7866666667 | AK18: 0.7644444444 | AL18: 0.585 | AM18: 44.62121212 | AN18: =Z18*E18+($A$4-80)*AG18*$A$16/1000 -> 43.75757576 | AO18: =AA18*G18+($A$4-80)*AH18*$A$16/1000 -> 43.29097222 | AP18: 42.78838384 | AQ18: 42.0375 | AR18: 41.26262626 | AS18: 38.86363636
B19: 59 | C19: 47.02020202 | D19: 47.02020202 | E19: 45.1010101 | F19: 45.1010101 | G19: 44.14141414 | H19: 44.14141414 | I19: 43.18181818 | J19: 43.18181818 | K19: 42.22222222 | L19: 42.22222222 | M19: 41.26262626 | N19: 41.26262626 | O19: 38.86363636 | P19: 38.86363636 | R19: 0.9898989899 | S19: 0.9494949495 | T19: 0.9292929293 | U19: 0.9090909091 | V19: 0.8888888889 | W19: 0.8686868687 | X19: 0.8181818182 | Y19: 1 | Z19: 1 | AA19: 1 | AB19: 1 | AC19: 1 | AD19: 1 | AE19: 1 | AF19: 0.2177777778 | AG19: 0.1044444444 | AH19: 0.05222222222 | AI19: 0 | AJ19: 0 | AK19: 0 | AL19: 0 | AM19: 47.02020202 | AN19: =Z19*E19+($A$4-80)*AG19*$A$16/1000 -> 45.1010101 | AO19: =AA19*G19+($A$4-80)*AH19*$A$16/1000 -> 44.14141414 | AP19: 43.18181818 | AQ19: 42.22222222 | AR19: 41.26262626 | AS19: 38.86363636

Sheet SL18XC_60 (hidden)
A2: SL18XC_60
A3: Evaporator Air | C3: Condenser Entering Air Temperature ˚F
A4: 80 | B4: °F DB | C4: 85 | E4: 95 | G4: 100 | I4: 105 | K4: 110 | M4: 115 | O4: 125
A5: CFM | B5: EWB† ˚F | C5: Capacity Mbtuh | E5: Capacity Mbtuh | G5: Capacity Mbtuh | I5: Capacity Mbtuh | K5: Capacity Mbtuh | M5: Capacity Mbtuh | O5: Capacity Mbtuh
C6: Total | D6: Sens. | E6: Total | F6: Sens. | G6: Total | H6: Sens. | I6: Total | J6: Sens. | K6: Total | L6: Sens. | M6: Total | N6: Sens. | O6: Total | P6: Sens.
R7: Total Factors | Y7: Sens. % | AF7: IDB Adj | AM7: Sens Calc
A8: 1575 | B8: 71 | C8: =R8*$E$13 -> 50.72033898 | D8: =IF(AM8>C8,C8,AM8) -> 29.41779661 | E8: =S8*$E$13 -> 48.70762712 | F8: =IF(AN8>E8,E8,AN8) -> 28.7375 | G8: =T8*$E$13 -> 47.5 | H8: =IF(AO8>G8,G8,AO8) -> 28.2625 | I8: =U8*$E$13 -> 46.29237288 | J8: =IF(AP8>I8,I8,AP8) -> 27.77542373 | K8: =V8*$E$13 -> 45.08474576 | L8: =IF(AQ8>K8,K8,AQ8) -> 27.27627119 | M8: =W8*$E$13 -> 43.87711864 | N8: =IF(AR8>M8,M8,AR8) -> 26.76504237 | O8: =X8*$E$13 -> 41.05932203 | P8: =IF(AS8>O8,O8,AS8) -> 25.86737288 | R8: 1.06779661 | S8: 1.025423729 | T8: 1 | U8: 0.9745762712 | V8: 0.9491525424 | W8: 0.9237288136 | X8: 0.8644067797 | Y8: 0.58 | Z8: 0.59 | AA8: 0.595 | AB8: 0.6 | AC8: 0.605 | AD8: 0.61 | AE8: 0.63 | AF8: 0.96 | AG8: 0.9219047619 | AH8: 0.9355555556 | AI8: 0.9492063492 | AJ8: 0.959047619 | AK8: 0.9688888889 | AL8: 0.9714285714 | AM8: =Y8*C8+($A$4-80)*AF8*$A$8/1000 -> 29.41779661 | AN8: =Z8*E8+($A$4-80)*AG8*$A$8/1000 -> 28.7375 | AO8: =AA8*G8+($A$4-80)*AH8*$A$8/1000 -> 28.2625 | AP8: =AB8*I8+($A$4-80)*AI8*$A$8/1000 -> 27.77542373 | AQ8: =AC8*K8+($A$4-80)*AJ8*$A$8/1000 -> 27.27627119 | AR8: =AD8*M8+($A$4-80)*AK8*$A$8/1000 -> 26.76504237 | AS8: =AE8*O8+($A$4-80)*AL8*$A$8/1000 -> 25.86737288
B9: 67 | C9: 47.90254237 | D9: 34.48983051 | E9: =S9*$E$13 -> 45.88983051 | F9: =IF(AN9>E9,E9,AN9) -> 33.49957627 | G9: 44.88347458 | H9: =IF(AO9>G9,G9,AO9) -> 33.21377119 | I9: 43.87711864 | J9: =IF(AP9>I9,I9,AP9) -> 32.90783898 | K9: 42.66949153 | L9: =IF(AQ9>K9,K9,AQ9) -> 32.2154661 | M9: 41.46186441 | N9: =IF(AR9>M9,M9,AR9) -> 31.51101695 | O9: 39.04661017 | P9: =IF(AS9>O9,O9,AS9) -> 30.84682203 | R9: 1.008474576 | S9: 0.9661016949 | T9: 0.9449152542 | U9: 0.9237288136 | V9: 0.8983050847 | W9: 0.8728813559 | X9: 0.8220338983 | Y9: 0.72 | Z9: 0.73 | AA9: 0.74 | AB9: 0.75 | AC9: 0.755 | AD9: 0.76 | AE9: 0.79 | AF9: 0.9066666667 | AG9: 0.8685714286 | AH9: 0.9187301587 | AI9: 0.9688888889 | AJ9: 0.9422222222 | AK9: 0.9155555556 | AL9: 0.9238095238 | AM9: =Y9*C9+($A$4-80)*AF9*$A$8/1000 -> 34.48983051 | AN9: =Z9*E9+($A$4-80)*AG9*$A$8/1000 -> 33.49957627 | AO9: =AA9*G9+($A$4-80)*AH9*$A$8/1000 -> 33.21377119 | AP9: =AB9*I9+($A$4-80)*AI9*$A$8/1000 -> 32.90783898 | AQ9: =AC9*K9+($A$4-80)*AJ9*$A$8/1000 -> 32.2154661 | AR9: =AD9*M9+($A$4-80)*AK9*$A$8/1000 -> 31.51101695 | AS9: =AE9*O9+($A$4-80)*AL9*$A$8/1000 -> 30.84682203
B10: 63 | C10: 45.88983051 | D10: 39.92415254 | E10: =S10*$E$13 -> 43.87711864 | F10: 38.61186441 | G10: 42.87076271 | H10: 38.15497881 | I10: 41.86440678 | J10: 37.6779661 | K10: 40.65677966 | L10: 37.20095339 | M10: 39.44915254 | N10: 36.68771186 | O10: 37.03389831 | P10: 35.55254237 | R10: 0.9661016949 | S10: 0.9237288136 | T10: 0.9025423729 | U10: 0.8813559322 | V10: 0.8559322034 | W10: 0.8305084746 | X10: 0.7796610169 | Y10: 0.87 | Z10: 0.88 | AA10: 0.89 | AB10: 0.9 | AC10: 0.915 | AD10: 0.93 | AE10: 0.96 | AF10: 0.940952381 | AG10: 0.8996825397 | AH10: 0.879047619 | AI10: 0.8584126984 | AJ10: 0.8647619048 | AK10: 0.8711111111 | AL10: 0.8761904762 | AM10: 39.92415254 | AN10: =Z10*E10+($A$4-80)*AG10*$A$8/1000 -> 38.61186441 | AO10: =AA10*G10+($A$4-80)*AH10*$A$8/1000 -> 38.15497881 | AP10: 37.6779661 | AQ10: 37.20095339 | AR10: 36.68771186 | AS10: 35.55254237
B11: 59 | C11: 43.47457627 | D11: 43.47457627 | E11: =S11*$E$13 -> 41.86440678 | F11: 41.86440678 | G11: 41.05932203 | H11: 41.05932203 | I11: 40.25423729 | J11: 40.25423729 | K11: 39.44915254 | L11: 39.44915254 | M11: 38.6440678 | N11: 38.6440678 | O11: 36.63135593 | P11: 36.63135593 | R11: 0.9152542373 | S11: 0.8813559322 | T11: 0.8644067797 | U11: 0.8474576271 | V11: 0.8305084746 | W11: 0.813559322 | X11: 0.7711864407 | Y11: 1 | Z11: 1 | AA11: 1 | AB11: 1 | AC11: 1 | AD11: 1 | AE11: 1 | AF11: 0.6857142857 | AG11: 0.5282539683 | AH11: 0.4546031746 | AI11: 0.380952381 | AJ11: 0.3123809524 | AK11: 0.2438095238 | AL11: 0.05777777778 | AM11: 43.47457627 | AN11: =Z11*E11+($A$4-80)*AG11*$A$8/1000 -> 41.86440678 | AO11: =AA11*G11+($A$4-80)*AH11*$A$8/1000 -> 41.05932203 | AP11: =AB11*I11+($A$4-80)*AI11*$A$8/1000 -> 40.25423729 | AQ11: 39.44915254 | AR11: 38.6440678 | AS11: 36.63135593
A12: 1800 | B12: 71 | C12: 51.9279661 | D12: 31.15677966 | E12: =S12*$E$13 -> 49.91525424 | F12: 30.44830508 | G12: 48.70762712 | H12: 29.95519068 | I12: 47.5 | J12: 29.45 | K12: 46.29237288 | L12: 28.93273305 | M12: 45.08474576 | N12: 28.40338983 | O12: 41.86440678 | P12: 27.21186441 | R12: 1.093220339 | S12: 1.050847458 | T12: 1.025423729 | U12: 1 | V12: 0.9745762712 | W12: 0.9491525424 | X12: 0.8813559322 | Y12: 0.6 | Z12: 0.61 | AA12: 0.615 | AB12: 0.62 | AC12: 0.625 | AD12: 0.63 | AE12: 0.65 | AF12: 0.9316666667 | AG12: 0.9644444444 | AH12: 0.9411111111 | AI12: 0.9177777778 | AJ12: 0.8944444444 | AK12: 0.8711111111 | AL12: 0.9244444444 | AM12: =Y12*C12+($A$4-80)*AF12*$A$12/1000 -> 31.15677966 | AN12: =Z12*E12+($A$4-80)*AG12*$A$12/1000 -> 30.44830508 | AO12: =AA12*G12+($A$4-80)*AH12*$A$12/1000 -> 29.95519068 | AP12: =AB12*I12+($A$4-80)*AI12*$A$12/1000 -> 29.45 | AQ12: =AC12*K12+($A$4-80)*AJ12*$A$12/1000 -> 28.93273305 | AR12: =AD12*M12+($A$4-80)*AK12*$A$12/1000 -> 28.40338983 | AS12: =AE12*O12+($A$4-80)*AL12*$A$12/1000 -> 27.21186441
B13: 67 | C13: 49.51271186 | D13: 36.63940678 | E13: 47.5 | F13: 36.1 | G13: 46.29237288 | H13: 35.64512712 | I13: 45.08474576 | J13: 35.16610169 | K13: 43.87711864 | L13: 34.66292373 | M13: 42.66949153 | N13: 34.13559322 | O13: 39.85169492 | P13: 32.67838983 | R13: 1.042372881 | S13: 1 | T13: 0.9745762712 | U13: 0.9491525424 | V13: 0.9237288136 | W13: 0.8983050847 | X13: 0.8389830508 | Y13: 0.74 | Z13: 0.76 | AA13: 0.77 | AB13: 0.78 | AC13: 0.79 | AD13: 0.8 | AE13: 0.82 | AF13: 0.8883333333 | AG13: 0.9177777778 | AH13: 0.9255555556 | AI13: 0.9333333333 | AJ13: 0.9083333333 | AK13: 0.8833333333 | AL13: 0.88 | AM13: =Y13*C13+($A$4-80)*AF13*$A$12/1000 -> 36.63940678 | AN13: =Z13*E13+($A$4-80)*AG13*$A$12/1000 -> 36.1 | AO13: =AA13*G13+($A$4-80)*AH13*$A$12/1000 -> 35.64512712 | AP13: =AB13*I13+($A$4-80)*AI13*$A$12/1000 -> 35.16610169 | AQ13: =AC13*K13+($A$4-80)*AJ13*$A$12/1000 -> 34.66292373 | AR13: =AD13*M13+($A$4-80)*AK13*$A$12/1000 -> 34.13559322 | AS13: =AE13*O13+($A$4-80)*AL13*$A$12/1000 -> 32.67838983
B14: 63 | C14: 47.09745763 | D14: 42.38771186 | E14: =S14*$E$13 -> 45.08474576 | F14: 41.4779661 | G14: 44.07838983 | H14: 41.21329449 | I14: 43.0720339 | J14: 40.9184322 | K14: 41.86440678 | L14: 40.39915254 | M14: 40.65677966 | N14: 39.84364407 | O14: 37.83898305 | P14: 37.83898305 | R14: 0.9915254237 | S14: 0.9491525424 | T14: 0.9279661017 | U14: 0.906779661 | V14: 0.8813559322 | W14: 0.8559322034 | X14: 0.7966101695 | Y14: 0.9 | Z14: 0.92 | AA14: 0.935 | AB14: 0.95 | AC14: 0.965 | AD14: 0.98 | AE14: 1 | AF14: 0.845 | AG14: 0.8711111111 | AH14: 0.8813888889 | AI14: 0.8916666667 | AJ14: 0.8947222222 | AK14: 0.8977777778 | AL14: 0.7833333333 | AM14: 42.38771186 | AN14: =Z14*E14+($A$4-80)*AG14*$A$12/1000 -> 41.4779661 | AO14: =AA14*G14+($A$4-80)*AH14*$A$12/1000 -> 41.21329449 | AP14: 40.9184322 | AQ14: 40.39915254 | AR14: 39.84364407 | AS14: 37.83898305
B15: 59 | C15: 45.48728814 | D15: 45.48728814 | E15: 43.87711864 | F15: 43.87711864 | G15: 42.87076271 | H15: 42.87076271 | I15: 41.86440678 | J15: 41.86440678 | K15: 40.85805085 | L15: 40.85805085 | M15: 39.85169492 | N15: 39.85169492 | O15: 37.83898305 | P15: 37.83898305 | R15: 0.9576271186 | S15: 0.9237288136 | T15: 0.9025423729 | U15: 0.8813559322 | V15: 0.8601694915 | W15: 0.8389830508 | X15: 0.7966101695 | Y15: 1 | Z15: 1 | AA15: 1 | AB15: 1 | AC15: 1 | AD15: 1 | AE15: 1 | AF15: 0.4394444444 | AG15: 0.3027777778 | AH15: 0.2091666667 | AI15: 0.1155555556 | AJ15: 0.05777777778 | AK15: 0 | AL15: 0 | AM15: 45.48728814 | AN15: =Z15*E15+($A$4-80)*AG15*$A$12/1000 -> 43.87711864 | AO15: =AA15*G15+($A$4-80)*AH15*$A$12/1000 -> 42.87076271 | AP15: 41.86440678 | AQ15: 40.85805085 | AR15: 39.85169492 | AS15: 37.83898305
A16: 2025 | B16: 71 | C16: 53.13559322 | D16: 32.41271186 | E16: 50.72033898 | F16: 31.95381356 | G16: 49.51271186 | H16: 31.44057203 | I16: 48.30508475 | J16: 30.91525424 | K16: 47.09745763 | L16: 30.61334746 | M16: 45.88983051 | N16: 30.28728814 | O16: 42.66949153 | P16: 28.58855932 | R16: 1.118644068 | S16: 1.06779661 | T16: 1.042372881 | U16: 1.016949153 | V16: 0.9915254237 | W16: 0.9661016949 | X16: 0.8983050847 | Y16: 0.61 | Z16: 0.63 | AA16: 0.635 | AB16: 0.64 | AC16: 0.65 | AD16: 0.66 | AE16: 0.67 | AF16: 0.8474074074 | AG16: 0.9333333333 | AH16: 0.9111111111 | AI16: 0.8888888889 | AJ16: 0.8948148148 | AK16: 0.9007407407 | AL16: 0.8375308642 | AM16: =Y16*C16+($A$4-80)*AF16*$A$16/1000 -> 32.41271186 | AN16: =Z16*E16+($A$4-80)*AG16*$A$16/1000 -> 31.95381356 | AO16: =AA16*G16+($A$4-80)*AH16*$A$16/1000 -> 31.44057203 | AP16: =AB16*I16+($A$4-80)*AI16*$A$16/1000 -> 30.91525424 | AQ16: =AC16*K16+($A$4-80)*AJ16*$A$16/1000 -> 30.61334746 | AR16: =AD16*M16+($A$4-80)*AK16*$A$16/1000 -> 30.28728814 | AS16: =AE16*O16+($A$4-80)*AL16*$A$16/1000 -> 28.58855932
B17: 67 | C17: 50.72033898 | D17: 39.05466102 | E17: 48.30508475 | F17: 38.16101695 | G17: 47.29872881 | H17: 37.83898305 | I17: 46.29237288 | J17: 37.49682203 | K17: 44.88347458 | L17: 36.80444915 | M17: 43.47457627 | N17: 36.08389831 | O17: 40.65677966 | P17: 34.96483051 | R17: 1.06779661 | S17: 1.016949153 | T17: 0.9957627119 | U17: 0.9745762712 | V17: 0.9449152542 | W17: 0.9152542373 | X17: 0.8559322034 | Y17: 0.77 | Z17: 0.79 | AA17: 0.8 | AB17: 0.81 | AC17: 0.82 | AD17: 0.83 | AE17: 0.86 | AF17: 0.8711111111 | AG17: 0.8888888889 | AH17: 0.8987654321 | AI17: 0.9086419753 | AJ17: 0.8809876543 | AK17: 0.8533333333 | AL17: 0.8977777778 | AM17: =Y17*C17+($A$4-80)*AF17*$A$16/1000 -> 39.05466102 | AN17: =Z17*E17+($A$4-80)*AG17*$A$16/1000 -> 38.16101695 | AO17: =AA17*G17+($A$4-80)*AH17*$A$16/1000 -> 37.83898305 | AP17: =AB17*I17+($A$4-80)*AI17*$A$16/1000 -> 37.49682203 | AQ17: =AC17*K17+($A$4-80)*AJ17*$A$16/1000 -> 36.80444915 | AR17: =AD17*M17+($A$4-80)*AK17*$A$16/1000 -> 36.08389831 | AS17: =AE17*O17+($A$4-80)*AL17*$A$16/1000 -> 34.96483051
B18: 63 | C18: 48.30508475 | D18: 45.40677966 | E18: 46.29237288 | F18: 44.44067797 | G18: 45.08474576 | H18: 43.95762712 | I18: 43.87711864 | J18: 43.43834746 | K18: 42.66949153 | L18: 42.45614407 | M18: 41.46186441 | N18: 41.46186441 | O18: 39.04661017 | P18: 39.04661017 | R18: 1.016949153 | S18: 0.9745762712 | T18: 0.9491525424 | U18: 0.9237288136 | V18: 0.8983050847 | W18: 0.8728813559 | X18: 0.8220338983 | Y18: 0.94 | Z18: 0.96 | AA18: 0.975 | AB18: 0.99 | AC18: 0.995 | AD18: 1 | AE18: 1 | AF18: 0.8888888889 | AG18: 0.8518518519 | AH18: 0.8565432099 | AI18: 0.8612345679 | AJ18: 0.8120987654 | AK18: 0.762962963 | AL18: 0.5748148148 | AM18: 45.40677966 | AN18: =Z18*E18+($A$4-80)*AG18*$A$16/1000 -> 44.44067797 | AO18: =AA18*G18+($A$4-80)*AH18*$A$16/1000 -> 43.95762712 | AP18: 43.43834746 | AQ18: 42.45614407 | AR18: 41.46186441 | AS18: 39.04661017
B19: 59 | C19: 47.09745763 | D19: 47.09745763 | E19: 45.08474576 | F19: 45.08474576 | G19: 44.27966102 | H19: 44.27966102 | I19: 43.47457627 | J19: 43.47457627 | K19: 42.46822034 | L19: 42.46822034 | M19: 41.46186441 | N19: 41.46186441 | O19: 39.04661017 | P19: 39.04661017 | R19: 0.9915254237 | S19: 0.9491525424 | T19: 0.9322033898 | U19: 0.9152542373 | V19: 0.8940677966 | W19: 0.8728813559 | X19: 0.8220338983 | Y19: 1 | Z19: 1 | AA19: 1 | AB19: 1 | AC19: 1 | AD19: 1 | AE19: 1 | AF19: 0.1733333333 | AG19: 0.05530864198 | AH19: 0.02765432099 | AI19: 0 | AJ19: 0 | AK19: 0 | AL19: 0 | AM19: 47.09745763 | AN19: =Z19*E19+($A$4-80)*AG19*$A$16/1000 -> 45.08474576 | AO19: =AA19*G19+($A$4-80)*AH19*$A$16/1000 -> 44.27966102 | AP19: 43.47457627 | AQ19: 42.46822034 | AR19: 41.46186441 | AS19: 39.04661017

Sheet Form (hidden)
C2: Select Lennox Condenser:
C3: ADP Evaporator: | N3: 24
C4: Nominal Capacity: | E4: (Mbtuh) | L4: Condenser Entering Air Temperature: | N4: (°F) Dry Bulb, 85°F to 125°F
C5: AHRI Rated Capacity: | E5: (Mbtuh) @ 95 ˚F & 80/67 ˚F conditions | L5: Evaporator Air Flow (CFM): | O5: to
C6: Entering Evaporator Air (DB): | E6: (°F) Dry Bulb -- 80°F Standard | L6: Entering Evaporator Air (WB): | N6: (°F) Wet Bulb, 59°F to 71°F
N7: 48
N8: CFM
A14: Extended Ratings
F18: Lennox Condenser :
F19: ADP Evaporator:
F20: Condenser Entering Air Temperature: | H20: (°F) Dry Bulb, 85°F to 125°F
F21: Evaporator Air Flow: | H21: CFM
F22: Entering Evaporator Air (DB): | H22: (°F) Dry Bulb
F23: Entering Evaporator Air (WB): | H23: (°F) Wet Bulb, 59°F to 71°F
F24: AHRI Rated Capacity: | H24: (Mbtuh) @ 95 ˚F & 80/67 ˚F conditions
A26: Evaporator Air | C26: Condenser Entering Air Temperature ˚F
A27: 80 | B27: °F DB | C27: 85 | E27: 95 | G27: 100 | I27: 105 | K27: 110 | M27: 115 | O27: 125
A28: CFM | B28: EWB† ˚F | C28: Capacity Mbtuh | E28: Capacity Mbtuh | G28: Capacity Mbtuh | I28: Capacity Mbtuh | K28: Capacity Mbtuh | M28: Capacity Mbtuh | O28: Capacity Mbtuh
C29: Total | D29: Sens. | E29: Total | F29: Sens. | G29: Total | H29: Sens. | I29: Total | J29: Sens. | K29: Total | L29: Sens. | M29: Total | N29: Sens. | O29: Total | P29: Sens.
D44: Condenser Entering Air Temperature: | F44: (°F) Dry Bulb, 85°F to 125°F | J44: CAPACITY IN MBTUH UNDER SPECIFIC CONDITIONS LISTED
D45: Evaporator Air Flow: | F45: CFM | K45: TOTAL
D46: Entering Evaporator Air (WB): | F46: (°F) Wet Bulb, 59°F to 71°F | K46: SENSIBLE
A48: Notes: | B48: † Entering Wet Bulb
B49: Extended ratings are not certified. They are calculated based upon typical condenser performance curves and are for engineering information only.
B50: When the required data fall between the published data, interpolation may be performed. Extrapolation is not an acceptable practice.
B51: Displayed sensible capacity has been adjusted based upon indoor DB. Sensible capacity will increase with higher indoor DB and decrease with lower indoor DB.
B52: The magnitude of the adjustment depends partially on evaporator air flow, with greater adjustment at higher CFM.
A53: Printed: | P53: LS-19-A

Sheet Instructions (hidden)
B7: This spreadsheet generates capacity information for ADP rated matches at other than nominal conditions.
B8: The information is provided is not certified and is provided for engineering use only.
B10: The latest version will always be available at: www.adpnow.com/extratings/
B12: In order to generate an extended rating, you will need the following information:
C13: Condenser model number
C14: ADP coil model number
C15: Nominal capacity
C16: Rated capacity (from AHRI database)
C17: Condenser entering air dry bulb temperature
C18: Indoor entering air dry bulb temperature
C19: Indoor entering air wet bulb temperature
C20: Indoor airflow
B22: Select the condenser series and nominal tonnage form the drop down lists.
B23: Enter the remaining information in the correct cells. Note there are limits on the range of values allowed.
B24: Click on "Calculate" to calculate the extended ratings.
B25: The table will show capacities for various conditions. The capacities at the specific design point are
B26: at the bottom of the page.
B27: From this point you may:
C28: Click "Clear" to clear the form and start over.
C29: Click "Print" to print a copy of the data.
C30: Click "Copy" to copy the data to a new spreadsheet and save it in the same directory.
B32: Notes: | C32: Displayed sensible capacity has been adjusted based upon indoor DB. Sensible capacity will
C33: increase with higher indoor DB and decrease with lower indoor DB. The magnitude of the
C34: adjustment depends partially on evaporator air flow, with greater adjustment at higher CFM.
B36: Versions: | C36: LS-15-A | D36: 2015-02-01 | E36: Initial public release
C37: LS-15-B | D37: 2015-06-01 | E37: Fixed minor typos
C38: LS-15-C | D38: 2015-09-29 | E38: Added XC16S XC20 and consolidated with 14ACXS. Renamed file.
C39: LS-16-A | D39: 2016-03-22 | E39: Added SL18XC & Renewed date key through 2016
C40: LS-19-A | D40: 2019-05-20 | E40: New Version

Sheet Prompt
B6: In order to use this spreadsheet,
B7: Please enable Macros in your security settings.
B9: Enabling Macros in Excel 2007
B10: 1. In Excel, click the Office button in the upper left corner of the screen.
B11: 2. Click the "Excel Options" button in the lower right.
B12: 3. Click the "Trust Center" button on the left. Then, at the bottom right, select "Trust Center Settings" as shown below.
B13: 4. In the next window, select "Macro Settings," then select the radio button for "Disable all macros with notification."
B14: 5. When openning this spreadsheet, you will see a warning like this in the menu bar:
B17: 6. Select "Enable this content" and click "Okay". The spreadsheet will now be functional.
